Body,Body Name,Transaction No.,Invoice Ref.,Vendor name,Expense Code,Expense Type,Date,Amount,,
http://statistics.data.gov.uk/id/local-authority-district/23UB,Cheltenham Borough Council,459501,37431, AES PUMP LIMITED,C-PM0041-R022,Prince of Wales-Electrical Works,21-Oct-11,"2,288.27",,
http://statistics.data.gov.uk/id/local-authority-district/23UB,Cheltenham Borough Council,459502,37480, AES PUMP LIMITED,C-PM0041-R022,Prince of Wales-Electrical Works,21-Oct-11,748.00,,
http://statistics.data.gov.uk/id/local-authority-district/23UB,Cheltenham Borough Council,460019,144350,A&E FIRE EQUIPMENT LTD,C-C22110-1808,Parks & Gardens-RM-Routine works,21-Oct-11,6.00,,
http://statistics.data.gov.uk/id/local-authority-district/23UB,Cheltenham Borough Council,460006,144314,A&E FIRE EQUIPMENT LTD,C-C22120-1808,Sports & Open S-RM-Routine works,21-Oct-11,2.82,,
http://statistics.data.gov.uk/id/local-authority-district/23UB,Cheltenham Borough Council,460009,144317,A&E FIRE EQUIPMENT LTD,C-C22120-1808,Sports & Open S-RM-Routine works,21-Oct-11,1.88,,
http://statistics.data.gov.uk/id/local-authority-district/23UB,Cheltenham Borough Council,460008,144316,A&E FIRE EQUIPMENT LTD,C-C22120-1808,Sports & Open S-RM-Routine works,21-Oct-11,9.40,,
http://statistics.data.gov.uk/id/local-authority-district/23UB,Cheltenham Borough Council,460010,144319,A&E FIRE EQUIPMENT LTD,C-C22120-1808,Sports & Open S-RM-Routine works,21-Oct-11,1.88,,
http://statistics.data.gov.uk/id/local-authority-district/23UB,Cheltenham Borough Council,460014,144323,A&E FIRE EQUIPMENT LTD,C-C22120-1808,Sports & Open S-RM-Routine works,21-Oct-11,3.76,,
http://statistics.data.gov.uk/id/local-authority-district/23UB,Cheltenham Borough Council,460016,144325,A&E FIRE EQUIPMENT LTD,C-C22120-1808,Sports & Open S-RM-Routine works,21-Oct-11,2.82,,
http://statistics.data.gov.uk/id/local-authority-district/23UB,Cheltenham Borough Council,460018,144327,A&E FIRE EQUIPMENT LTD,C-C22120-1808,Sports & Open S-RM-Routine works,21-Oct-11,10.34,,
http://statistics.data.gov.uk/id/local-authority-district/23UB,Cheltenham Borough Council,460022,144965,A&E FIRE EQUIPMENT LTD,C-C22120-1808,Sports & Open S-RM-Routine works,21-Oct-11,18.64,,
http://statistics.data.gov.uk/id/local-authority-district/23UB,Cheltenham Borough Council,460017,144326,A&E FIRE EQUIPMENT LTD,C-C22120-1808,Sports & Open S-RM-Routine works,21-Oct-11,6.58,,
http://statistics.data.gov.uk/id/local-authority-district/23UB,Cheltenham Borough Council,460015,144324,A&E FIRE EQUIPMENT LTD,C-C22120-1808,Sports & Open S-RM-Routine works,21-Oct-11,2.82,,
http://statistics.data.gov.uk/id/local-authority-district/23UB,Cheltenham Borough Council,460013,144322,A&E FIRE EQUIPMENT LTD,C-C22120-1808,Sports & Open S-RM-Routine works,21-Oct-11,10.34,,
http://statistics.data.gov.uk/id/local-authority-district/23UB,Cheltenham Borough Council,460007,144315,A&E FIRE EQUIPMENT LTD,C-C23140-1808,Public Convnces-RM-Routine works,21-Oct-11,9.40,,
http://statistics.data.gov.uk/id/local-authority-district/23UB,Cheltenham Borough Council,460011,144320,A&E FIRE EQUIPMENT LTD,C-C23140-1808,Public Convnces-RM-Routine works,21-Oct-11,2.82,,
http://statistics.data.gov.uk/id/local-authority-district/23UB,Cheltenham Borough Council,460012,144321,A&E FIRE EQUIPMENT LTD,C-C23140-1808,Public Convnces-RM-Routine works,21-Oct-11,2.82,,
http://statistics.data.gov.uk/id/local-authority-district/23UB,Cheltenham Borough Council,460035,144322,A&E FIRE EQUIPMENT LTD,C-D13100-1808,Muni Off Blgs-RM-Routine works,21-Oct-11,588.46,,
http://statistics.data.gov.uk/id/local-authority-district/23UB,Cheltenham Borough Council,460037,144663,A&E FIRE EQUIPMENT LTD,C-D13100-1808,Muni Off Blgs-RM-Routine works,21-Oct-11,153.22,,
http://statistics.data.gov.uk/id/local-authority-district/23UB,Cheltenham Borough Council,460042,144850,A&E FIRE EQUIPMENT LTD,C-D13100-1808,Muni Off Blgs-RM-Routine works,21-Oct-11,12.46,,
http://statistics.data.gov.uk/id/local-authority-district/23UB,Cheltenham Borough Council,460021,144354,A&E FIRE EQUIPMENT LTD,C-D13550-1115,Area Off -E.Hse-Fire prevention,21-Oct-11,261.29,,
http://statistics.data.gov.uk/id/local-authority-district/23UB,Cheltenham Borough Council,460040,144763,A&E FIRE EQUIPMENT LTD,C-D14100-1808,Depot Building-RM-Routine works,21-Oct-11,191.86,,
http://statistics.data.gov.uk/id/local-authority-district/23UB,Cheltenham Borough Council,460027,144472,A&E FIRE EQUIPMENT LTD,C-D30200-1124,Misc Props & Ld-Berkeley Mews  Repairs,21-Oct-11,8.46,,
http://statistics.data.gov.uk/id/local-authority-district/23UB,Cheltenham Borough Council,460036,144625,A&E FIRE EQUIPMENT LTD,C-D33950-1808,Resource Centre-RM-Routine works,21-Oct-11,96.56,,
http://statistics.data.gov.uk/id/local-authority-district/23UB,Cheltenham Borough Council,460025,144459,A&E FIRE EQUIPMENT LTD,C-E21100-1808,Car Prks-Off St-RM-Routine works,21-Oct-11,81.78,,
http://statistics.data.gov.uk/id/local-authority-district/23UB,Cheltenham Borough Council,460032,144815,A&E FIRE EQUIPMENT LTD,C-E21100-1808,Car Prks-Off St-RM-Routine works,21-Oct-11,197.56,,
http://statistics.data.gov.uk/id/local-authority-district/23UB,Cheltenham Borough Council,460026,144460,A&E FIRE EQUIPMENT LTD,C-E21100-1808,Car Prks-Off St-RM-Routine works,21-Oct-11,47.00,,
http://statistics.data.gov.uk/id/local-authority-district/23UB,Cheltenham Borough Council,459486,143718,A&E FIRE EQUIPMENT LTD,C-H46200-1104,Fire. Syst.Serv-Council House repairs,21-Oct-11,20.33,,
http://statistics.data.gov.uk/id/local-authority-district/23UB,Cheltenham Borough Council,459990,143933,A&E FIRE EQUIPMENT LTD,C-H46200-1104,Fire. Syst.Serv-Council House repairs,21-Oct-11,319.57,,
http://statistics.data.gov.uk/id/local-authority-district/23UB,Cheltenham Borough Council,459989,143951,A&E FIRE EQUIPMENT LTD,C-H46200-1104,Fire. Syst.Serv-Council House repairs,21-Oct-11,73.13,,
http://statistics.data.gov.uk/id/local-authority-district/23UB,Cheltenham Borough Council,459339,143758,A&E FIRE EQUIPMENT LTD,C-H46200-1104,Fire. Syst.Serv-Council House repairs,21-Oct-11,60.16,,
http://statistics.data.gov.uk/id/local-authority-district/23UB,Cheltenham Borough Council,459338,143759,A&E FIRE EQUIPMENT LTD,C-H46200-1104,Fire. Syst.Serv-Council House repairs,21-Oct-11,2.82,,
http://statistics.data.gov.uk/id/local-authority-district/23UB,Cheltenham Borough Council,459337,143760,A&E FIRE EQUIPMENT LTD,C-H46200-1104,Fire. Syst.Serv-Council House repairs,21-Oct-11,15.04,,
http://statistics.data.gov.uk/id/local-authority-district/23UB,Cheltenham Borough Council,459336,143779,A&E FIRE EQUIPMENT LTD,C-H46200-1104,Fire. Syst.Serv-Council House repairs,21-Oct-11,53.58,,
http://statistics.data.gov.uk/id/local-authority-district/23UB,Cheltenham Borough Council,459335,143780,A&E FIRE EQUIPMENT LTD,C-H46200-1104,Fire. Syst.Serv-Council House repairs,21-Oct-11,15.04,,
http://statistics.data.gov.uk/id/local-authority-district/23UB,Cheltenham Borough Council,459334,143781,A&E FIRE EQUIPMENT LTD,C-H46200-1104,Fire. Syst.Serv-Council House repairs,21-Oct-11,17.86,,
http://statistics.data.gov.uk/id/local-authority-district/23UB,Cheltenham Borough Council,459324,144436,A&E FIRE EQUIPMENT LTD,C-H46200-1104,Fire. Syst.Serv-Council House repairs,21-Oct-11,16.92,,
http://statistics.data.gov.uk/id/local-authority-district/23UB,Cheltenham Borough Council,459323,144464,A&E FIRE EQUIPMENT LTD,C-H46200-1104,Fire. Syst.Serv-Council House repairs,21-Oct-11,6.58,,
http://statistics.data.gov.uk/id/local-authority-district/23UB,Cheltenham Borough Council,459322,144463,A&E FIRE EQUIPMENT LTD,C-H46200-1104,Fire. Syst.Serv-Council House repairs,21-Oct-11,6.58,,
http://statistics.data.gov.uk/id/local-authority-district/23UB,Cheltenham Borough Council,459321,144462,A&E FIRE EQUIPMENT LTD,C-H46200-1104,Fire. Syst.Serv-Council House repairs,21-Oct-11,6.58,,
http://statistics.data.gov.uk/id/local-authority-district/23UB,Cheltenham Borough Council,459320,144461,A&E FIRE EQUIPMENT LTD,C-H46200-1104,Fire. Syst.Serv-Council House repairs,21-Oct-11,6.58,,
http://statistics.data.gov.uk/id/local-authority-district/23UB,Cheltenham Borough Council,459319,144439,A&E FIRE EQUIPMENT LTD,C-H46200-1104,Fire. Syst.Serv-Council House repairs,21-Oct-11,2.82,,
http://statistics.data.gov.uk/id/local-authority-district/23UB,Cheltenham Borough Council,459318,144392,A&E FIRE EQUIPMENT LTD,C-H46200-1104,Fire. Syst.Serv-Council House repairs,21-Oct-11,74.94,,
http://statistics.data.gov.uk/id/local-authority-district/23UB,Cheltenham Borough Council,459317,144437,A&E FIRE EQUIPMENT LTD,C-H46200-1104,Fire. Syst.Serv-Council House repairs,21-Oct-11,60.16,,
http://statistics.data.gov.uk/id/local-authority-district/23UB,Cheltenham Borough Council,459316,144440,A&E FIRE EQUIPMENT LTD,C-H46200-1104,Fire. Syst.Serv-Council House repairs,21-Oct-11,15.04,,
http://statistics.data.gov.uk/id/local-authority-district/23UB,Cheltenham Borough Council,459344,143753,A&E FIRE EQUIPMENT LTD,C-H46200-1104,Fire. Syst.Serv-Council House repairs,21-Oct-11,10.34,,
http://statistics.data.gov.uk/id/local-authority-district/23UB,Cheltenham Borough Council,459343,143752,A&E FIRE EQUIPMENT LTD,C-H46200-1104,Fire. Syst.Serv-Council House repairs,21-Oct-11,40.42,,
http://statistics.data.gov.uk/id/local-authority-district/23UB,Cheltenham Borough Council,459342,143755,A&E FIRE EQUIPMENT LTD,C-H46200-1104,Fire. Syst.Serv-Council House repairs,21-Oct-11,9.40,,
http://statistics.data.gov.uk/id/local-authority-district/23UB,Cheltenham Borough Council,459341,143756,A&E FIRE EQUIPMENT LTD,C-H46200-1104,Fire. Syst.Serv-Council House repairs,21-Oct-11,1.88,,
http://statistics.data.gov.uk/id/local-authority-district/23UB,Cheltenham Borough Council,459340,143757,A&E FIRE EQUIPMENT LTD,C-H46200-1104,Fire. Syst.Serv-Council House repairs,21-Oct-11,16.92,,
http://statistics.data.gov.uk/id/local-authority-district/23UB,Cheltenham Borough Council,459333,143782,A&E FIRE EQUIPMENT LTD,C-H46200-1104,Fire. Syst.Serv-Council House repairs,21-Oct-11,23.50,,
http://statistics.data.gov.uk/id/local-authority-district/23UB,Cheltenham Borough Council,459332,143797,A&E FIRE EQUIPMENT LTD,C-H46200-1104,Fire. Syst.Serv-Council House repairs,21-Oct-11,123.09,,
http://statistics.data.gov.uk/id/local-authority-district/23UB,Cheltenham Borough Council,459331,143784,A&E FIRE EQUIPMENT LTD,C-H46200-1104,Fire. Syst.Serv-Council House repairs,21-Oct-11,31.96,,
http://statistics.data.gov.uk/id/local-authority-district/23UB,Cheltenham Borough Council,459330,143719,A&E FIRE EQUIPMENT LTD,C-H46200-1104,Fire. Syst.Serv-Council House repairs,21-Oct-11,20.33,,
http://statistics.data.gov.uk/id/local-authority-district/23UB,Cheltenham Borough Council,459329,143783,A&E FIRE EQUIPMENT LTD,C-H46200-1104,Fire. Syst.Serv-Council House repairs,21-Oct-11,65.42,,
http://statistics.data.gov.uk/id/local-authority-district/23UB,Cheltenham Borough Council,459328,143720,A&E FIRE EQUIPMENT LTD,C-H46200-1104,Fire. Syst.Serv-Council House repairs,21-Oct-11,22.21,,
http://statistics.data.gov.uk/id/local-authority-district/23UB,Cheltenham Borough Council,459327,144465,A&E FIRE EQUIPMENT LTD,C-H46200-1104,Fire. Syst.Serv-Council House repairs,21-Oct-11,7.52,,
http://statistics.data.gov.uk/id/local-authority-district/23UB,Cheltenham Borough Council,459326,144438,A&E FIRE EQUIPMENT LTD,C-H46200-1104,Fire. Syst.Serv-Council House repairs,21-Oct-11,1.88,,
http://statistics.data.gov.uk/id/local-authority-district/23UB,Cheltenham Borough Council,459325,144332,A&E FIRE EQUIPMENT LTD,C-H46200-1104,Fire. Syst.Serv-Council House repairs,21-Oct-11,24.98,,
http://statistics.data.gov.uk/id/local-authority-district/23UB,Cheltenham Borough Council,459487,143785,A&E FIRE EQUIPMENT LTD,C-H46200-1104,Fire. Syst.Serv-Council House repairs,21-Oct-11,3.76,,
http://statistics.data.gov.uk/id/local-authority-district/23UB,Cheltenham Borough Council,459312,142792,A&E FIRE EQUIPMENT LTD,C-H46200-1104,Fire. Syst.Serv-Council House repairs,21-Oct-11,51.36,,
http://statistics.data.gov.uk/id/local-authority-district/23UB,Cheltenham Borough Council,459488,143717,A&E FIRE EQUIPMENT LTD,C-H46200-1104,Fire. Syst.Serv-Council House repairs,21-Oct-11,20.33,,
http://statistics.data.gov.uk/id/local-authority-district/23UB,Cheltenham Borough Council,459315,144353,A&E FIRE EQUIPMENT LTD,C-H46200-1104,Fire. Syst.Serv-Council House repairs,21-Oct-11,159.38,,
http://statistics.data.gov.uk/id/local-authority-district/23UB,Cheltenham Borough Council,459313,143939,A&E FIRE EQUIPMENT LTD,C-HC4870-C302,Fire Protection-Building Contractor,21-Oct-11,145.00,,
http://statistics.data.gov.uk/id/local-authority-district/23UB,Cheltenham Borough Council,459314,143776,A&E FIRE EQUIPMENT LTD,C-HC4870-C302,Fire Protection-Building Contractor,21-Oct-11,96.84,,
http://statistics.data.gov.uk/id/local-authority-district/23UB,Cheltenham Borough Council,460028,144494,A&E FIRE EQUIPMENT LTD,C-L11500-1808,Rec Facilities-RM-Routine works,21-Oct-11,33.82,,
http://statistics.data.gov.uk/id/local-authority-district/23UB,Cheltenham Borough Council,460038,144679,A&E FIRE EQUIPMENT LTD,C-L11500-1808,Rec Facilities-RM-Routine works,21-Oct-11,134.54,,
http://statistics.data.gov.uk/id/local-authority-district/23UB,Cheltenham Borough Council,460041,144828,A&E FIRE EQUIPMENT LTD,C-L11500-1808,Rec Facilities-RM-Routine works,21-Oct-11,250.43,,
http://statistics.data.gov.uk/id/local-authority-district/23UB,Cheltenham Borough Council,460034,145033,A&E FIRE EQUIPMENT LTD,C-L11500-1808,Rec Facilities-RM-Routine works,21-Oct-11,49.96,,
http://statistics.data.gov.uk/id/local-authority-district/23UB,Cheltenham Borough Council,460029,144495,A&E FIRE EQUIPMENT LTD,C-L11500-1808,Rec Facilities-RM-Routine works,21-Oct-11,27.26,,
http://statistics.data.gov.uk/id/local-authority-district/23UB,Cheltenham Borough Council,460030,144496,A&E FIRE EQUIPMENT LTD,C-L11500-1808,Rec Facilities-RM-Routine works,21-Oct-11,91.52,,
http://statistics.data.gov.uk/id/local-authority-district/23UB,Cheltenham Borough Council,460033,145032,A&E FIRE EQUIPMENT LTD,C-L11500-1808,Rec Facilities-RM-Routine works,21-Oct-11,74.94,,
http://statistics.data.gov.uk/id/local-authority-district/23UB,Cheltenham Borough Council,460031,14497,A&E FIRE EQUIPMENT LTD,C-L11500-1808,Rec Facilities-RM-Routine works,21-Oct-11,386.20,,
http://statistics.data.gov.uk/id/local-authority-district/23UB,Cheltenham Borough Council,460020,144351,A&E FIRE EQUIPMENT LTD,C-L21100-1808,Town Hall-RM-Routine works,21-Oct-11,74.94,,
http://statistics.data.gov.uk/id/local-authority-district/23UB,Cheltenham Borough Council,460023,144435,A&E FIRE EQUIPMENT LTD,C-L21100-1808,Town Hall-RM-Routine works,21-Oct-11,188.00,,
http://statistics.data.gov.uk/id/local-authority-district/23UB,Cheltenham Borough Council,460024,144441,A&E FIRE EQUIPMENT LTD,C-L21200-1808,Pump Room-RM-Routine works,21-Oct-11,374.17,,
http://statistics.data.gov.uk/id/local-authority-district/23UB,Cheltenham Borough Council,460043,144900,A&E FIRE EQUIPMENT LTD,C-L41100-1808,AG & M-RM-Routine works,21-Oct-11,92.60,,
http://statistics.data.gov.uk/id/local-authority-district/23UB,Cheltenham Borough Council,458672,T84506,ACCESS TO TIME LIMITED,C-D13100-1114,Muni Off Blgs-Security systems,07-Oct-11,"3,347.96",,
http://statistics.data.gov.uk/id/local-authority-district/23UB,Cheltenham Borough Council,458933,REDACTED,ADRIAN B BLACKTON,C-HC4100-C801,Dis.Adapt.HRA-Grants,14-Oct-11,"5,065.00",,
http://statistics.data.gov.uk/id/local-authority-district/23UB,Cheltenham Borough Council,460089,010701,AIREY CONSULTANCY SERVICES LTD,C-D12420-3608,Bens jnt train-Trainers Fees,28-Oct-11,630.00,,
http://statistics.data.gov.uk/id/local-authority-district/23UB,Cheltenham Borough Council,458798,REDACTED,ALEX CLARKE RESIDENTIAL LETTINGS,C-H22400-3828,Homelessness-Prevention Fund,07-Oct-11,600.00,,
http://statistics.data.gov.uk/id/local-authority-district/23UB,Cheltenham Borough Council,458655,51962,ALPHA COLOUR PRINTERS LTD,C-1T17F1-3528,BBC NOW-Programme costs,07-Oct-11,171.00,,
http://statistics.data.gov.uk/id/local-authority-district/23UB,Cheltenham Borough Council,458656,51777,ALPHA COLOUR PRINTERS LTD,C-D11300-3401,Accountancy-Printing - general,07-Oct-11,120.00,,
http://statistics.data.gov.uk/id/local-authority-district/23UB,Cheltenham Borough Council,458789,52076,ALPHA COLOUR PRINTERS LTD,C-D12440-3401,Coun Tax overhe-Printing - general,07-Oct-11,320.00,,
http://statistics.data.gov.uk/id/local-authority-district/23UB,Cheltenham Borough Council,459022,52070,ALPHA COLOUR PRINTERS LTD,C-D13100-3401,Muni Off Blgs-Printing - general,14-Oct-11,57.00,,
http://statistics.data.gov.uk/id/local-authority-district/23UB,Cheltenham Borough Council,459154,52062,ALPHA COLOUR PRINTERS LTD,C-D21100-3403,Dem Process-Printing-Committee Papers,14-Oct-11,182.00,,
http://statistics.data.gov.uk/id/local-authority-district/23UB,Cheltenham Borough Council,459148,52061,ALPHA COLOUR PRINTERS LTD,C-D21190-3403,O&S Committees-Printing-Committee Papers,14-Oct-11,285.00,,
http://statistics.data.gov.uk/id/local-authority-district/23UB,Cheltenham Borough Council,459146,52064,ALPHA COLOUR PRINTERS LTD,C-D21190-3412,O&S Committees-Printing - Cabinet Papers,14-Oct-11,102.00,,
http://statistics.data.gov.uk/id/local-authority-district/23UB,Cheltenham Borough Council,459008,52078,ALPHA COLOUR PRINTERS LTD,C-E71150-3401,Public Protn Div-Printing - general,14-Oct-11,345.00,,
http://statistics.data.gov.uk/id/local-authority-district/23UB,Cheltenham Borough Council,459002,52066,ALPHA COLOUR PRINTERS LTD,C-H22600-3410,Community Servs-Stationery & office supp,14-Oct-11,68.00,,
http://statistics.data.gov.uk/id/local-authority-district/23UB,Cheltenham Borough Council,460295,S2156,ALPHA COLOUR PRINTERS LTD,C-D11300-3401,Accountancy-Printing - general,28-Oct-11,191.00,,
http://statistics.data.gov.uk/id/local-authority-district/23UB,Cheltenham Borough Council,460185,52154,ALPHA COLOUR PRINTERS LTD,C-D12430-3401,Housing & CT Be-Printing - general,28-Oct-11,607.00,,
http://statistics.data.gov.uk/id/local-authority-district/23UB,Cheltenham Borough Council,460452,50515,ALPHA COLOUR PRINTERS LTD,C-E36200-3401,On-St Car Prkng-Printing - general,28-Oct-11,125.00,,
http://statistics.data.gov.uk/id/local-authority-district/23UB,Cheltenham Borough Council,459985,0751,ANDERSON CIVIL ENGINEERING UK LIMITED,C-E22100-1129,Chel River&W/C-CBC Riparian Ownership,21-Oct-11,"5,103.00",,
http://statistics.data.gov.uk/id/local-authority-district/23UB,Cheltenham Borough Council,459986,0752,ANDERSON CIVIL ENGINEERING UK LIMITED,C-E22100-1129,Chel River&W/C-CBC Riparian Ownership,21-Oct-11,"3,397.00",,
http://statistics.data.gov.uk/id/local-authority-district/23UB,Cheltenham Borough Council,459986,0752,ANDERSON CIVIL ENGINEERING UK LIMITED,C-N11250-9227,Excluded,21-Oct-11,-80.00,,
http://statistics.data.gov.uk/id/local-authority-district/23UB,Cheltenham Borough Council,459985,0751,ANDERSON CIVIL ENGINEERING UK LIMITED,C-N11250-9227,Excluded,21-Oct-11,-140.00,,
http://statistics.data.gov.uk/id/local-authority-district/23UB,Cheltenham Borough Council,460443,2500000129140,AON LIMITED,C-L41100-1901,AG & M-Insurance-fire,28-Oct-11,350.00,,
http://statistics.data.gov.uk/id/local-authority-district/23UB,Cheltenham Borough Council,460444,2500000129120,AON LIMITED,C-L41100-3501,AG & M-Hire of outside services,28-Oct-11,159.00,,
http://statistics.data.gov.uk/id/local-authority-district/23UB,Cheltenham Borough Council,458938,REDACTED,AON UK,C-P12270-9101,Tenants Ins-Payments,21-Oct-11,"6,725.58",,
http://statistics.data.gov.uk/id/local-authority-district/23UB,Cheltenham Borough Council,459843,25552,ARKELL AND HURCOMBE BRONZE WORK LTD,C-E63100-3111,Cemetery & Crem-Goods purch for resale,21-Oct-11,646.00,,
http://statistics.data.gov.uk/id/local-authority-district/23UB,Cheltenham Borough Council,459845,25550,ARKELL AND HURCOMBE BRONZE WORK LTD,C-E63100-3111,Cemetery & Crem-Goods purch for resale,21-Oct-11,50.00,,
http://statistics.data.gov.uk/id/local-authority-district/23UB,Cheltenham Borough Council,459848,25551,ARKELL AND HURCOMBE BRONZE WORK LTD,C-E63100-3111,Cemetery & Crem-Goods purch for resale,21-Oct-11,100.00,,
http://statistics.data.gov.uk/id/local-authority-district/23UB,Cheltenham Borough Council,459852,25553,ARKELL AND HURCOMBE BRONZE WORK LTD,C-E63100-3111,Cemetery & Crem-Goods purch for resale,21-Oct-11,175.00,,
http://statistics.data.gov.uk/id/local-authority-district/23UB,Cheltenham Borough Council,460436,13297,ART WORKS DESIGN CONSULTANTS (CHELT) LTD,C-1T31J1-3510,New Years Eve-Promotion & Marketing,28-Oct-11,300.00,,
http://statistics.data.gov.uk/id/local-authority-district/23UB,Cheltenham Borough Council,460437,13298,ART WORKS DESIGN CONSULTANTS (CHELT) LTD,C-1T70L0-3406,Folk Festival-Printing-Promotion/Mkting,28-Oct-11,400.00,,
http://statistics.data.gov.uk/id/local-authority-district/23UB,Cheltenham Borough Council,458565,10652,ARTFUL LIMITED,C-B51120-3920,Develt Con-Advertising,07-Oct-11,"2,192.32",,
http://statistics.data.gov.uk/id/local-authority-district/23UB,Cheltenham Borough Council,458748,1016951655,ARVAL UK LIMITED,C-N42250-3112,DSO Stores - Stock purchases,07-Oct-11,35.17,,
http://statistics.data.gov.uk/id/local-authority-district/23UB,Cheltenham Borough Council,458747,1016951654,ARVAL UK LIMITED,C-N42250-3112,DSO Stores - Stock purchases,07-Oct-11,907.54,,
http://statistics.data.gov.uk/id/local-authority-district/23UB,Cheltenham Borough Council,458885,1017094506,ARVAL UK LIMITED,C-N42250-3112,DSO Stores - Stock purchases,21-Oct-11,7.18,,
http://statistics.data.gov.uk/id/local-authority-district/23UB,Cheltenham Borough Council,458886,1017094505,ARVAL UK LIMITED,C-N42250-3112,DSO Stores - Stock purchases,21-Oct-11,"1,028.64",,
http://statistics.data.gov.uk/id/local-authority-district/23UB,Cheltenham Borough Council,458887,1017094507,ARVAL UK LIMITED,C-N42250-3112,DSO Stores - Stock purchases,21-Oct-11,40.94,,
http://statistics.data.gov.uk/id/local-authority-district/23UB,Cheltenham Borough Council,458739,14289,ASKAS,C-N42250-3112,DSO Stores - Stock purchases,07-Oct-11,653.57,,
http://statistics.data.gov.uk/id/local-authority-district/23UB,Cheltenham Borough Council,459955,REDACTED,AUTOMATED DOOR SYSTEMS,C-HC4100-C801,Dis.Adapt.HRA-Grants,21-Oct-11,"2,078.00",,
http://statistics.data.gov.uk/id/local-authority-district/23UB,Cheltenham Borough Council,460107,SIN002926,AVALON PROMOTIONS LIMITED,C-1T24G1-3568,Joe Wilkinson-Artist Fees,26-Oct-11,650.00,,
http://statistics.data.gov.uk/id/local-authority-district/23UB,Cheltenham Borough Council,458826,342097,AVM INTERNATIONAL,C-H22400-3501,Homelessness-Hire of outside services,07-Oct-11,117.00,,
http://statistics.data.gov.uk/id/local-authority-district/23UB,Cheltenham Borough Council,458829,342507,AVM INTERNATIONAL,C-H22400-3501,Homelessness-Hire of outside services,07-Oct-11,78.00,,
http://statistics.data.gov.uk/id/local-authority-district/23UB,Cheltenham Borough Council,458830,342234,AVM INTERNATIONAL,C-H22400-3501,Homelessness-Hire of outside services,07-Oct-11,39.00,,
http://statistics.data.gov.uk/id/local-authority-district/23UB,Cheltenham Borough Council,458827,342415,AVM INTERNATIONAL,C-H22400-3501,Homelessness-Hire of outside services,07-Oct-11,117.00,,
http://statistics.data.gov.uk/id/local-authority-district/23UB,Cheltenham Borough Council,458828,342436,AVM INTERNATIONAL,C-H22400-3501,Homelessness-Hire of outside services,07-Oct-11,156.00,,
http://statistics.data.gov.uk/id/local-authority-district/23UB,Cheltenham Borough Council,459945,CBC/0001,AVONLINE,C-H46550-1104,TV Aerials-Council House repairs,21-Oct-11,674.67,,
http://statistics.data.gov.uk/id/local-authority-district/23UB,Cheltenham Borough Council,459946,CBC/0006,AVONLINE,C-H46550-1104,TV Aerials-Council House repairs,21-Oct-11,433.80,,
http://statistics.data.gov.uk/id/local-authority-district/23UB,Cheltenham Borough Council,458566,20526,BAM AGENCY LIMITED,C-L41100-3155,AG & M-Life Long Learning,07-Oct-11,550.00,,
http://statistics.data.gov.uk/id/local-authority-district/23UB,Cheltenham Borough Council,458919,2011/004,BATH ROAD TRADERS ASSOCIATION,C-C23140-3501,Public Convnces-Hire of outside services,14-Oct-11,572.00,,
http://statistics.data.gov.uk/id/local-authority-district/23UB,Cheltenham Borough Council,459125,90767947,BBC,C-1T17F1-3568,BBC NOW-Artist Fees,14-Oct-11,"7,968.21",,
http://statistics.data.gov.uk/id/local-authority-district/23UB,Cheltenham Borough Council,458991,78359,BERMAN GUEDES STRETTON,C-LC4006-C713,AG&M Dev Scheme-Other Professional Fees,14-Oct-11,"4,533.37",,
http://statistics.data.gov.uk/id/local-authority-district/23UB,Cheltenham Borough Council,460077,1579,BETTERSOUND SYSTEMS,C-D13100-1805,Muni Off Blgs-RM-Int. fixtures/fittings,28-Oct-11,95.00,,
http://statistics.data.gov.uk/id/local-authority-district/23UB,Cheltenham Borough Council,460077,1579,BETTERSOUND SYSTEMS,C-D13100-3101,Muni Off Blgs-Equipment purchases,28-Oct-11,510.00,,
http://statistics.data.gov.uk/id/local-authority-district/23UB,Cheltenham Borough Council,459613,SETTLEMENT,BOLDEAN PRODUCTIONS,C-1T23F1-3568,Johnny Cash-Artist Fees,21-Oct-11,"2,552.46",,
http://statistics.data.gov.uk/id/local-authority-district/23UB,Cheltenham Borough Council,459613,SETTLEMENT,BOLDEAN PRODUCTIONS,C-N13125-9205,ASH Ledger-Town Hall Invoices Paid,21-Oct-11,-753.60,,
http://statistics.data.gov.uk/id/local-authority-district/23UB,Cheltenham Borough Council,458984,47SI 627008,BRENNTAG UK,C-L11500-1714,Rec Facilities-Chemicals,14-Oct-11,732.90,,
http://statistics.data.gov.uk/id/local-authority-district/23UB,Cheltenham Borough Council,458984,47SI 627008,BRENNTAG UK,C-L11500-1714,Rec Facilities-Chemicals,14-Oct-11,35.40,,
http://statistics.data.gov.uk/id/local-authority-district/23UB,Cheltenham Borough Council,458984,47SI 627008,BRENNTAG UK,C-L11500-1714,Rec Facilities-Chemicals,14-Oct-11,68.00,,
http://statistics.data.gov.uk/id/local-authority-district/23UB,Cheltenham Borough Council,458984,47SI 627008,BRENNTAG UK,C-L11500-1714,Rec Facilities-Chemicals,14-Oct-11,50.40,,
http://statistics.data.gov.uk/id/local-authority-district/23UB,Cheltenham Borough Council,458984,47SI 627008,BRENNTAG UK,C-L11500-1714,Rec Facilities-Chemicals,14-Oct-11,40.56,,
http://statistics.data.gov.uk/id/local-authority-district/23UB,Cheltenham Borough Council,458984,47SI 627008,BRENNTAG UK,C-L11500-1714,Rec Facilities-Chemicals,14-Oct-11,25.50,,
http://statistics.data.gov.uk/id/local-authority-district/23UB,Cheltenham Borough Council,458984,47SI 627008,BRENNTAG UK,C-L11500-1714,Rec Facilities-Chemicals,14-Oct-11,8.50,,
http://statistics.data.gov.uk/id/local-authority-district/23UB,Cheltenham Borough Council,458984,47SI 627008,BRENNTAG UK,C-L11500-1714,Rec Facilities-Chemicals,14-Oct-11,40.00,,
http://statistics.data.gov.uk/id/local-authority-district/23UB,Cheltenham Borough Council,458984,47SI 627008,BRENNTAG UK,C-L11500-1714,Rec Facilities-Chemicals,14-Oct-11,56.00,,
http://statistics.data.gov.uk/id/local-authority-district/23UB,Cheltenham Borough Council,458984,47SI 627008,BRENNTAG UK,C-L11500-1714,Rec Facilities-Chemicals,14-Oct-11,120.00,,
http://statistics.data.gov.uk/id/local-authority-district/23UB,Cheltenham Borough Council,458984,47SI 627008,BRENNTAG UK,C-L11500-1714,Rec Facilities-Chemicals,14-Oct-11,8.50,,
http://statistics.data.gov.uk/id/local-authority-district/23UB,Cheltenham Borough Council,458575,8500 1715 0422,BRITISH GAS TRADING LIMITED,C-H33700-1402,Estate Services-Electricity,07-Oct-11,"4,062.85",,
http://statistics.data.gov.uk/id/local-authority-district/23UB,Cheltenham Borough Council,458778,28737,BRITISH PARKING ASSOCIATION,C-E36200-3501,On-St Car Prkng-Hire of outside services,07-Oct-11,795.00,,
http://statistics.data.gov.uk/id/local-authority-district/23UB,Cheltenham Borough Council,459293,4597,C AND R DECORATORS,C-H4201V-1104,Voids 2201-Council House repairs,21-Oct-11,600.88,,
http://statistics.data.gov.uk/id/local-authority-district/23UB,Cheltenham Borough Council,459300,45294,C AND R DECORATORS,C-H4207V-1104,Voids 2207-Council House repairs,21-Oct-11,133.63,,
http://statistics.data.gov.uk/id/local-authority-district/23UB,Cheltenham Borough Council,459301,4587,C AND R DECORATORS,C-H4207V-1104,Voids 2207-Council House repairs,21-Oct-11,52.20,,
http://statistics.data.gov.uk/id/local-authority-district/23UB,Cheltenham Borough Council,459292,4595,C AND R DECORATORS,C-H4208V-1104,Voids 2208-Council House repairs,21-Oct-11,425.57,,
http://statistics.data.gov.uk/id/local-authority-district/23UB,Cheltenham Borough Council,459297,4585,C AND R DECORATORS,C-H4208V-1104,Voids 2208-Council House repairs,21-Oct-11,"1,460.00",,
http://statistics.data.gov.uk/id/local-authority-district/23UB,Cheltenham Borough Council,459291,4596,C AND R DECORATORS,C-H4209V-1104,Voids 2209-Council House repairs,21-Oct-11,503.99,,
http://statistics.data.gov.uk/id/local-authority-district/23UB,Cheltenham Borough Council,459299,4592,C AND R DECORATORS,C-H4213G-1104,Gen Wks 2213-Council House repairs,21-Oct-11,190.00,,
http://statistics.data.gov.uk/id/local-authority-district/23UB,Cheltenham Borough Council,459296,4588,C AND R DECORATORS,C-H4213V-1104,Voids 2213-Council House repairs,21-Oct-11,419.61,,
http://statistics.data.gov.uk/id/local-authority-district/23UB,Cheltenham Borough Council,459298,4586,C AND R DECORATORS,C-H4213V-1104,Voids 2213-Council House repairs,21-Oct-11,52.20,,
http://statistics.data.gov.uk/id/local-authority-district/23UB,Cheltenham Borough Council,459294,4589,C AND R DECORATORS,C-H4214V-1104,Voids 2214-Council House repairs,21-Oct-11,"4,757.60",,
http://statistics.data.gov.uk/id/local-authority-district/23UB,Cheltenham Borough Council,459295,4584,C AND R DECORATORS,C-HC4844-C302,Internal Imp-Building Contractor,21-Oct-11,"6,800.00",,
http://statistics.data.gov.uk/id/local-authority-district/23UB,Cheltenham Borough Council,460421,4581,C AND R DECORATORS,C-H22400-1125,Homelessness-Refurbishments,28-Oct-11,477.61,,
http://statistics.data.gov.uk/id/local-authority-district/23UB,Cheltenham Borough Council,460328,4604,C AND R DECORATORS,C-HC4841-C302,Major Voids-Building Contractor,28-Oct-11,"4,368.68",,
http://statistics.data.gov.uk/id/local-authority-district/23UB,Cheltenham Borough Council,460369,REDACTED,CAP SECURITY LIMITED,C-HC4100-C801,Dis.Adapt.HRA-Grants,28-Oct-11,"2,629.84",,
http://statistics.data.gov.uk/id/local-authority-district/23UB,Cheltenham Borough Council,460227,REDACTED,CGT LETTINGS,C-H22400-3828,Homelessness-Prevention Fund,28-Oct-11,570.00,,
http://statistics.data.gov.uk/id/local-authority-district/23UB,Cheltenham Borough Council,460352,REDACTED,CGT TEWKESBURY,C-H22400-3828,Homelessness-Prevention Fund,28-Oct-11,600.00,,
http://statistics.data.gov.uk/id/local-authority-district/23UB,Cheltenham Borough Council,460432,HC6905,CHAMBERS MANAGEMENT CLIENT ACCOUNT,C-1T02G1-3568,Jimmy Carr-Artist Fees,28-Oct-11,"1,189.75",,
http://statistics.data.gov.uk/id/local-authority-district/23UB,Cheltenham Borough Council,459021,35,CHARLTON KINGS PARISH COUNCIL,C-Z13300-3501,LAA - BSC Rev-Hire of outside services,14-Oct-11,"1,500.00",,
http://statistics.data.gov.uk/id/local-authority-district/23UB,Cheltenham Borough Council,460186,31857,CHARTERHOUSE SECURITY MANAGEMENT,C-H44752-1104,Dis Adapts-Tech-Council House repairs,28-Oct-11,50.00,,
http://statistics.data.gov.uk/id/local-authority-district/23UB,Cheltenham Borough Council,460187,31869,CHARTERHOUSE SECURITY MANAGEMENT,C-H44752-1104,Dis Adapts-Tech-Council House repairs,28-Oct-11,120.00,,
http://statistics.data.gov.uk/id/local-authority-district/23UB,Cheltenham Borough Council,460188,31870,CHARTERHOUSE SECURITY MANAGEMENT,C-H44752-1104,Dis Adapts-Tech-Council House repairs,28-Oct-11,120.00,,
http://statistics.data.gov.uk/id/local-authority-district/23UB,Cheltenham Borough Council,460193,31860,CHARTERHOUSE SECURITY MANAGEMENT,C-H46400-1104,Door Entry-Council House repairs,28-Oct-11,50.00,,
http://statistics.data.gov.uk/id/local-authority-district/23UB,Cheltenham Borough Council,460192,31861,CHARTERHOUSE SECURITY MANAGEMENT,C-H46400-1104,Door Entry-Council House repairs,28-Oct-11,340.00,,
http://statistics.data.gov.uk/id/local-authority-district/23UB,Cheltenham Borough Council,458587,SETTLEMENT,CHELTENHAM CANTILENA ORCHESTRA,C-N13125-9205,ASH Ledger-Town Hall Invoices Paid,07-Oct-11,"-1,169.28",,
http://statistics.data.gov.uk/id/local-authority-district/23UB,Cheltenham Borough Council,458587,SETTLEMENT,CHELTENHAM CANTILENA ORCHESTRA,C-Z12210-9138,Box Off A/C-TH Hirers Tkt Pd out,07-Oct-11,"1,951.00",,
http://statistics.data.gov.uk/id/local-authority-district/23UB,Cheltenham Borough Council,459006,4117,CHIMES INTERNATIONAL ENTERTAINMENTS LTD,C-1T20G1-3568,60s Gold-Artist Fees,14-Oct-11,"10,000.00",,
http://statistics.data.gov.uk/id/local-authority-district/23UB,Cheltenham Borough Council,458547,3053297,CIPFA PROPERTY,C-D12500-3890,Property Servs-Subscriptions - general,07-Oct-11,"1,295.00",,
http://statistics.data.gov.uk/id/local-authority-district/23UB,Cheltenham Borough Council,459122,C00175,COLIN FRY ENTERPRISES LIMITED,C-1T30F1-3568,Colin Fry-Artist Fees,14-Oct-11,"6,513.98",,
http://statistics.data.gov.uk/id/local-authority-district/23UB,Cheltenham Borough Council,459184,21421,COLLETT TRANSPORT SERVICES LIMITED,C-C24100-2701,Fleet Maint-Hired transport,14-Oct-11,74.00,,
http://statistics.data.gov.uk/id/local-authority-district/23UB,Cheltenham Borough Council,458884,21385,COLLETT TRANSPORT SERVICES LIMITED,C-C24100-2701,Fleet Maint-Hired transport,14-Oct-11,"3,080.00",,
http://statistics.data.gov.uk/id/local-authority-district/23UB,Cheltenham Borough Council,459609,12631,COMBINED BUILDING &  ELECTRICAL SERVICES,C-HC4867-C302,Misc Works-Building Contractor,21-Oct-11,"2,387.50",,
http://statistics.data.gov.uk/id/local-authority-district/23UB,Cheltenham Borough Council,459761,509877,COMENSURA LIMITED,C-C22100-0115,Green Env Div-Temporary Agency Staff,21-Oct-11,186.13,,
http://statistics.data.gov.uk/id/local-authority-district/23UB,Cheltenham Borough Council,459761,509877,COMENSURA LIMITED,C-C22100-0115,Green Env Div-Temporary Agency Staff,21-Oct-11,335.97,,
http://statistics.data.gov.uk/id/local-authority-district/23UB,Cheltenham Borough Council,459761,509877,COMENSURA LIMITED,C-C22100-0115,Green Env Div-Temporary Agency Staff,21-Oct-11,286.12,,
http://statistics.data.gov.uk/id/local-authority-district/23UB,Cheltenham Borough Council,459761,509877,COMENSURA LIMITED,C-C22100-0115,Green Env Div-Temporary Agency Staff,21-Oct-11,286.12,,
http://statistics.data.gov.uk/id/local-authority-district/23UB,Cheltenham Borough Council,459761,509877,COMENSURA LIMITED,C-C22100-0115,Green Env Div-Temporary Agency Staff,21-Oct-11,286.12,,
http://statistics.data.gov.uk/id/local-authority-district/23UB,Cheltenham Borough Council,459769,510082,COMENSURA LIMITED,C-C22100-0115,Green Env Div-Temporary Agency Staff,21-Oct-11,357.65,,
http://statistics.data.gov.uk/id/local-authority-district/23UB,Cheltenham Borough Council,459769,510082,COMENSURA LIMITED,C-C22100-0115,Green Env Div-Temporary Agency Staff,21-Oct-11,286.12,,
http://statistics.data.gov.uk/id/local-authority-district/23UB,Cheltenham Borough Council,459769,510082,COMENSURA LIMITED,C-C22100-0115,Green Env Div-Temporary Agency Staff,21-Oct-11,355.48,,
http://statistics.data.gov.uk/id/local-authority-district/23UB,Cheltenham Borough Council,459769,510082,COMENSURA LIMITED,C-C22100-0115,Green Env Div-Temporary Agency Staff,21-Oct-11,355.48,,
http://statistics.data.gov.uk/id/local-authority-district/23UB,Cheltenham Borough Council,459769,510082,COMENSURA LIMITED,C-C22100-0115,Green Env Div-Temporary Agency Staff,21-Oct-11,355.48,,
http://statistics.data.gov.uk/id/local-authority-district/23UB,Cheltenham Borough Council,459761,509877,COMENSURA LIMITED,C-C22100-0115,Green Env Div-Temporary Agency Staff,21-Oct-11,286.12,,
http://statistics.data.gov.uk/id/local-authority-district/23UB,Cheltenham Borough Council,459741,509700,COMENSURA LIMITED,C-C22100-0115,Green Env Div-Temporary Agency Staff,21-Oct-11,346.88,,
http://statistics.data.gov.uk/id/local-authority-district/23UB,Cheltenham Borough Council,459741,509700,COMENSURA LIMITED,C-C22100-0115,Green Env Div-Temporary Agency Staff,21-Oct-11,346.88,,
http://statistics.data.gov.uk/id/local-authority-district/23UB,Cheltenham Borough Council,459741,509700,COMENSURA LIMITED,C-C22100-0115,Green Env Div-Temporary Agency Staff,21-Oct-11,346.88,,
http://statistics.data.gov.uk/id/local-authority-district/23UB,Cheltenham Borough Council,459741,509700,COMENSURA LIMITED,C-C22100-0115,Green Env Div-Temporary Agency Staff,21-Oct-11,346.88,,
http://statistics.data.gov.uk/id/local-authority-district/23UB,Cheltenham Borough Council,459769,510082,COMENSURA LIMITED,C-C22120-0115,Spts/Open Space-Temporary Agency Staff,21-Oct-11,294.80,,
http://statistics.data.gov.uk/id/local-authority-district/23UB,Cheltenham Borough Council,459741,509700,COMENSURA LIMITED,C-C22120-0115,Spts/Open Space-Temporary Agency Staff,21-Oct-11,215.73,,
http://statistics.data.gov.uk/id/local-authority-district/23UB,Cheltenham Borough Council,459741,509700,COMENSURA LIMITED,C-C22120-0115,Spts/Open Space-Temporary Agency Staff,21-Oct-11,287.64,,
http://statistics.data.gov.uk/id/local-authority-district/23UB,Cheltenham Borough Council,459761,509877,COMENSURA LIMITED,C-C22120-0115,Spts/Open Space-Temporary Agency Staff,21-Oct-11,346.86,,
http://statistics.data.gov.uk/id/local-authority-district/23UB,Cheltenham Borough Council,459761,509877,COMENSURA LIMITED,C-C23100-0115,Refuse Collection-Temporary Agency Staff,21-Oct-11,63.45,,
http://statistics.data.gov.uk/id/local-authority-district/23UB,Cheltenham Borough Council,459761,509877,COMENSURA LIMITED,C-C23100-0115,Refuse Collection-Temporary Agency Staff,21-Oct-11,363.78,,
http://statistics.data.gov.uk/id/local-authority-district/23UB,Cheltenham Borough Council,459761,509877,COMENSURA LIMITED,C-C23100-0115,Refuse Collection-Temporary Agency Staff,21-Oct-11,461.71,,
http://statistics.data.gov.uk/id/local-authority-district/23UB,Cheltenham Borough Council,459761,509877,COMENSURA LIMITED,C-C23100-0115,Refuse Collection-Temporary Agency Staff,21-Oct-11,320.77,,
http://statistics.data.gov.uk/id/local-authority-district/23UB,Cheltenham Borough Council,459761,509877,COMENSURA LIMITED,C-C23100-0115,Refuse Collection-Temporary Agency Staff,21-Oct-11,52.02,,
http://statistics.data.gov.uk/id/local-authority-district/23UB,Cheltenham Borough Council,459761,509877,COMENSURA LIMITED,C-C23100-0115,Refuse Collection-Temporary Agency Staff,21-Oct-11,281.79,,
http://statistics.data.gov.uk/id/local-authority-district/23UB,Cheltenham Borough Council,459761,509877,COMENSURA LIMITED,C-C23100-0115,Refuse Collection-Temporary Agency Staff,21-Oct-11,264.43,,
http://statistics.data.gov.uk/id/local-authority-district/23UB,Cheltenham Borough Council,459769,510082,COMENSURA LIMITED,C-C23100-0115,Refuse Collection-Temporary Agency Staff,21-Oct-11,320.77,,
http://statistics.data.gov.uk/id/local-authority-district/23UB,Cheltenham Borough Council,459741,509700,COMENSURA LIMITED,C-C23100-0115,Refuse Collection-Temporary Agency Staff,21-Oct-11,292.61,,
http://statistics.data.gov.uk/id/local-authority-district/23UB,Cheltenham Borough Council,459741,509700,COMENSURA LIMITED,C-C23100-0115,Refuse Collection-Temporary Agency Staff,21-Oct-11,300.33,,
http://statistics.data.gov.uk/id/local-authority-district/23UB,Cheltenham Borough Council,459741,509700,COMENSURA LIMITED,C-C23100-0115,Refuse Collection-Temporary Agency Staff,21-Oct-11,313.02,,
http://statistics.data.gov.uk/id/local-authority-district/23UB,Cheltenham Borough Council,459741,509700,COMENSURA LIMITED,C-C23100-0115,Refuse Collection-Temporary Agency Staff,21-Oct-11,291.83,,
http://statistics.data.gov.uk/id/local-authority-district/23UB,Cheltenham Borough Council,459741,509700,COMENSURA LIMITED,C-C23100-0115,Refuse Collection-Temporary Agency Staff,21-Oct-11,296.10,,
http://statistics.data.gov.uk/id/local-authority-district/23UB,Cheltenham Borough Council,459741,509700,COMENSURA LIMITED,C-C23100-0115,Refuse Collection-Temporary Agency Staff,21-Oct-11,236.88,,
http://statistics.data.gov.uk/id/local-authority-district/23UB,Cheltenham Borough Council,459741,509700,COMENSURA LIMITED,C-C23100-0115,Refuse Collection-Temporary Agency Staff,21-Oct-11,274.95,,
http://statistics.data.gov.uk/id/local-authority-district/23UB,Cheltenham Borough Council,459741,509700,COMENSURA LIMITED,C-C23100-0115,Refuse Collection-Temporary Agency Staff,21-Oct-11,260.13,,
http://statistics.data.gov.uk/id/local-authority-district/23UB,Cheltenham Borough Council,459741,509700,COMENSURA LIMITED,C-C23100-0115,Refuse Collection-Temporary Agency Staff,21-Oct-11,126.90,,
http://statistics.data.gov.uk/id/local-authority-district/23UB,Cheltenham Borough Council,459741,509700,COMENSURA LIMITED,C-C23100-0115,Refuse Collection-Temporary Agency Staff,21-Oct-11,63.45,,
http://statistics.data.gov.uk/id/local-authority-district/23UB,Cheltenham Borough Council,459741,509700,COMENSURA LIMITED,C-C23100-0115,Refuse Collection-Temporary Agency Staff,21-Oct-11,177.66,,
http://statistics.data.gov.uk/id/local-authority-district/23UB,Cheltenham Borough Council,459741,509700,COMENSURA LIMITED,C-C23100-0115,Refuse Collection-Temporary Agency Staff,21-Oct-11,329.94,,
http://statistics.data.gov.uk/id/local-authority-district/23UB,Cheltenham Borough Council,459761,509877,COMENSURA LIMITED,C-C23100-0115,Refuse Collection-Temporary Agency Staff,21-Oct-11,303.46,,
http://statistics.data.gov.uk/id/local-authority-district/23UB,Cheltenham Borough Council,459741,509700,COMENSURA LIMITED,C-C23100-0115,Refuse Collection-Temporary Agency Staff,21-Oct-11,173.40,,
http://statistics.data.gov.uk/id/local-authority-district/23UB,Cheltenham Borough Council,459741,509700,COMENSURA LIMITED,C-C23100-0115,Refuse Collection-Temporary Agency Staff,21-Oct-11,63.45,,
http://statistics.data.gov.uk/id/local-authority-district/23UB,Cheltenham Borough Council,459741,509700,COMENSURA LIMITED,C-C23100-0115,Refuse Collection-Temporary Agency Staff,21-Oct-11,97.04,,
http://statistics.data.gov.uk/id/local-authority-district/23UB,Cheltenham Borough Council,459741,509700,COMENSURA LIMITED,C-C23100-0115,Refuse Collection-Temporary Agency Staff,21-Oct-11,118.44,,
http://statistics.data.gov.uk/id/local-authority-district/23UB,Cheltenham Borough Council,459741,509700,COMENSURA LIMITED,C-C23100-0115,Refuse Collection-Temporary Agency Staff,21-Oct-11,277.07,,
http://statistics.data.gov.uk/id/local-authority-district/23UB,Cheltenham Borough Council,459741,509700,COMENSURA LIMITED,C-C23100-0115,Refuse Collection-Temporary Agency Staff,21-Oct-11,274.95,,
http://statistics.data.gov.uk/id/local-authority-district/23UB,Cheltenham Borough Council,459761,509877,COMENSURA LIMITED,C-C23100-0115,Refuse Collection-Temporary Agency Staff,21-Oct-11,264.44,,
http://statistics.data.gov.uk/id/local-authority-district/23UB,Cheltenham Borough Council,459769,510082,COMENSURA LIMITED,C-C23100-0115,Refuse Collection-Temporary Agency Staff,21-Oct-11,312.13,,
http://statistics.data.gov.uk/id/local-authority-district/23UB,Cheltenham Borough Council,459769,510082,COMENSURA LIMITED,C-C23100-0115,Refuse Collection-Temporary Agency Staff,21-Oct-11,65.02,,
http://statistics.data.gov.uk/id/local-authority-district/23UB,Cheltenham Borough Council,459769,510082,COMENSURA LIMITED,C-C23100-0115,Refuse Collection-Temporary Agency Staff,21-Oct-11,309.96,,
http://statistics.data.gov.uk/id/local-authority-district/23UB,Cheltenham Borough Council,459769,510082,COMENSURA LIMITED,C-C23100-0115,Refuse Collection-Temporary Agency Staff,21-Oct-11,47.68,,
http://statistics.data.gov.uk/id/local-authority-district/23UB,Cheltenham Borough Council,459769,510082,COMENSURA LIMITED,C-C23100-0115,Refuse Collection-Temporary Agency Staff,21-Oct-11,194.08,,
http://statistics.data.gov.uk/id/local-authority-district/23UB,Cheltenham Borough Council,459769,510082,COMENSURA LIMITED,C-C23100-0115,Refuse Collection-Temporary Agency Staff,21-Oct-11,294.79,,
http://statistics.data.gov.uk/id/local-authority-district/23UB,Cheltenham Borough Council,459769,510082,COMENSURA LIMITED,C-C23100-0115,Refuse Collection-Temporary Agency Staff,21-Oct-11,244.92,,
http://statistics.data.gov.uk/id/local-authority-district/23UB,Cheltenham Borough Council,459761,509877,COMENSURA LIMITED,C-C23100-0115,Refuse Collection-Temporary Agency Staff,21-Oct-11,125.71,,
http://statistics.data.gov.uk/id/local-authority-district/23UB,Cheltenham Borough Council,459761,509877,COMENSURA LIMITED,C-C23100-0115,Refuse Collection-Temporary Agency Staff,21-Oct-11,69.36,,
http://statistics.data.gov.uk/id/local-authority-district/23UB,Cheltenham Borough Council,459769,510082,COMENSURA LIMITED,C-C23100-0115,Refuse Collection-Temporary Agency Staff,21-Oct-11,296.95,,
http://statistics.data.gov.uk/id/local-authority-district/23UB,Cheltenham Borough Council,459769,510082,COMENSURA LIMITED,C-C23100-0115,Refuse Collection-Temporary Agency Staff,21-Oct-11,294.79,,
http://statistics.data.gov.uk/id/local-authority-district/23UB,Cheltenham Borough Council,459769,510082,COMENSURA LIMITED,C-C23100-0115,Refuse Collection-Temporary Agency Staff,21-Oct-11,58.52,,
http://statistics.data.gov.uk/id/local-authority-district/23UB,Cheltenham Borough Council,459769,510082,COMENSURA LIMITED,C-C23100-0115,Refuse Collection-Temporary Agency Staff,21-Oct-11,190.73,,
http://statistics.data.gov.uk/id/local-authority-district/23UB,Cheltenham Borough Council,459769,510082,COMENSURA LIMITED,C-C23100-0115,Refuse Collection-Temporary Agency Staff,21-Oct-11,405.33,,
http://statistics.data.gov.uk/id/local-authority-district/23UB,Cheltenham Borough Council,459769,510082,COMENSURA LIMITED,C-C23100-0115,Refuse Collection-Temporary Agency Staff,21-Oct-11,355.50,,
http://statistics.data.gov.uk/id/local-authority-district/23UB,Cheltenham Borough Council,459769,510082,COMENSURA LIMITED,C-C23100-0115,Refuse Collection-Temporary Agency Staff,21-Oct-11,372.79,,
http://statistics.data.gov.uk/id/local-authority-district/23UB,Cheltenham Borough Council,459769,510082,COMENSURA LIMITED,C-C23100-0115,Refuse Collection-Temporary Agency Staff,21-Oct-11,320.77,,
http://statistics.data.gov.uk/id/local-authority-district/23UB,Cheltenham Borough Council,459761,509877,COMENSURA LIMITED,C-C23100-0115,Refuse Collection-Temporary Agency Staff,21-Oct-11,281.76,,
http://statistics.data.gov.uk/id/local-authority-district/23UB,Cheltenham Borough Council,459761,509877,COMENSURA LIMITED,C-C23100-0115,Refuse Collection-Temporary Agency Staff,21-Oct-11,69.36,,
http://statistics.data.gov.uk/id/local-authority-district/23UB,Cheltenham Borough Council,459761,509877,COMENSURA LIMITED,C-C23100-0115,Refuse Collection-Temporary Agency Staff,21-Oct-11,277.43,,
http://statistics.data.gov.uk/id/local-authority-district/23UB,Cheltenham Borough Council,459761,509877,COMENSURA LIMITED,C-C23100-0115,Refuse Collection-Temporary Agency Staff,21-Oct-11,190.73,,
http://statistics.data.gov.uk/id/local-authority-district/23UB,Cheltenham Borough Council,459761,509877,COMENSURA LIMITED,C-C23100-0115,Refuse Collection-Temporary Agency Staff,21-Oct-11,260.10,,
http://statistics.data.gov.uk/id/local-authority-district/23UB,Cheltenham Borough Council,459761,509877,COMENSURA LIMITED,C-C23100-0115,Refuse Collection-Temporary Agency Staff,21-Oct-11,215.73,,
http://statistics.data.gov.uk/id/local-authority-district/23UB,Cheltenham Borough Council,459741,509700,COMENSURA LIMITED,C-C23110-0115,Street Cleaning-Temporary Agency Staff,21-Oct-11,122.67,,
http://statistics.data.gov.uk/id/local-authority-district/23UB,Cheltenham Borough Council,459769,510082,COMENSURA LIMITED,C-C23120-0115,Recycling Cntr-Temporary Agency Staff,21-Oct-11,47.68,,
http://statistics.data.gov.uk/id/local-authority-district/23UB,Cheltenham Borough Council,459769,510082,COMENSURA LIMITED,C-C23160-0115,Env Maint Div-Temporary Agency Staff,21-Oct-11,276.92,,
http://statistics.data.gov.uk/id/local-authority-district/23UB,Cheltenham Borough Council,459769,510082,COMENSURA LIMITED,C-C23160-0115,Env Maint Div-Temporary Agency Staff,21-Oct-11,170.34,,
http://statistics.data.gov.uk/id/local-authority-district/23UB,Cheltenham Borough Council,459769,510082,COMENSURA LIMITED,C-C23160-0115,Env Maint Div-Temporary Agency Staff,21-Oct-11,350.70,,
http://statistics.data.gov.uk/id/local-authority-district/23UB,Cheltenham Borough Council,459741,509700,COMENSURA LIMITED,C-C23160-0115,Env Maint Div-Temporary Agency Staff,21-Oct-11,346.15,,
http://statistics.data.gov.uk/id/local-authority-district/23UB,Cheltenham Borough Council,459769,510082,COMENSURA LIMITED,C-C23160-0115,Env Maint Div-Temporary Agency Staff,21-Oct-11,350.70,,
http://statistics.data.gov.uk/id/local-authority-district/23UB,Cheltenham Borough Council,459769,510082,COMENSURA LIMITED,C-C23160-0115,Env Maint Div-Temporary Agency Staff,21-Oct-11,350.70,,
http://statistics.data.gov.uk/id/local-authority-district/23UB,Cheltenham Borough Council,459761,509877,COMENSURA LIMITED,C-C23180-0115,Rcycl Coltn Schms-Temporary Agency Staff,21-Oct-11,130.04,,
http://statistics.data.gov.uk/id/local-authority-district/23UB,Cheltenham Borough Council,459761,509877,COMENSURA LIMITED,C-C23180-0115,Rcycl Coltn Schms-Temporary Agency Staff,21-Oct-11,353.30,,
http://statistics.data.gov.uk/id/local-authority-district/23UB,Cheltenham Borough Council,459761,509877,COMENSURA LIMITED,C-C23180-0115,Rcycl Coltn Schms-Temporary Agency Staff,21-Oct-11,491.26,,
http://statistics.data.gov.uk/id/local-authority-district/23UB,Cheltenham Borough Council,459761,509877,COMENSURA LIMITED,C-C23180-0115,Rcycl Coltn Schms-Temporary Agency Staff,21-Oct-11,390.15,,
http://statistics.data.gov.uk/id/local-authority-district/23UB,Cheltenham Borough Council,459761,509877,COMENSURA LIMITED,C-C23180-0115,Rcycl Coltn Schms-Temporary Agency Staff,21-Oct-11,253.59,,
http://statistics.data.gov.uk/id/local-authority-district/23UB,Cheltenham Borough Council,459761,509877,COMENSURA LIMITED,C-C23180-0115,Rcycl Coltn Schms-Temporary Agency Staff,21-Oct-11,290.46,,
http://statistics.data.gov.uk/id/local-authority-district/23UB,Cheltenham Borough Council,459761,509877,COMENSURA LIMITED,C-C23180-0115,Rcycl Coltn Schms-Temporary Agency Staff,21-Oct-11,561.03,,
http://statistics.data.gov.uk/id/local-authority-district/23UB,Cheltenham Borough Council,459761,509877,COMENSURA LIMITED,C-C23180-0115,Rcycl Coltn Schms-Temporary Agency Staff,21-Oct-11,65.02,,
http://statistics.data.gov.uk/id/local-authority-district/23UB,Cheltenham Borough Council,459761,509877,COMENSURA LIMITED,C-C23180-0115,Rcycl Coltn Schms-Temporary Agency Staff,21-Oct-11,485.20,,
http://statistics.data.gov.uk/id/local-authority-district/23UB,Cheltenham Borough Council,459761,509877,COMENSURA LIMITED,C-C23180-0115,Rcycl Coltn Schms-Temporary Agency Staff,21-Oct-11,318.61,,
http://statistics.data.gov.uk/id/local-authority-district/23UB,Cheltenham Borough Council,459761,509877,COMENSURA LIMITED,C-C23180-0115,Rcycl Coltn Schms-Temporary Agency Staff,21-Oct-11,518.55,,
http://statistics.data.gov.uk/id/local-authority-district/23UB,Cheltenham Borough Council,459761,509877,COMENSURA LIMITED,C-C23180-0115,Rcycl Coltn Schms-Temporary Agency Staff,21-Oct-11,322.96,,
http://statistics.data.gov.uk/id/local-authority-district/23UB,Cheltenham Borough Council,459761,509877,COMENSURA LIMITED,C-C23180-0115,Rcycl Coltn Schms-Temporary Agency Staff,21-Oct-11,318.61,,
http://statistics.data.gov.uk/id/local-authority-district/23UB,Cheltenham Borough Council,459761,509877,COMENSURA LIMITED,C-C23180-0115,Rcycl Coltn Schms-Temporary Agency Staff,21-Oct-11,318.62,,
http://statistics.data.gov.uk/id/local-authority-district/23UB,Cheltenham Borough Council,459761,509877,COMENSURA LIMITED,C-C23180-0115,Rcycl Coltn Schms-Temporary Agency Staff,21-Oct-11,186.42,,
http://statistics.data.gov.uk/id/local-authority-district/23UB,Cheltenham Borough Council,459741,509700,COMENSURA LIMITED,C-C23180-0115,Rcycl Coltn Schms-Temporary Agency Staff,21-Oct-11,186.12,,
http://statistics.data.gov.uk/id/local-authority-district/23UB,Cheltenham Borough Council,459769,510082,COMENSURA LIMITED,C-C23180-0115,Rcycl Coltn Schms-Temporary Agency Staff,21-Oct-11,316.44,,
http://statistics.data.gov.uk/id/local-authority-district/23UB,Cheltenham Borough Council,459769,510082,COMENSURA LIMITED,C-C23180-0115,Rcycl Coltn Schms-Temporary Agency Staff,21-Oct-11,54.19,,
http://statistics.data.gov.uk/id/local-authority-district/23UB,Cheltenham Borough Council,459769,510082,COMENSURA LIMITED,C-C23180-0115,Rcycl Coltn Schms-Temporary Agency Staff,21-Oct-11,49.85,,
http://statistics.data.gov.uk/id/local-authority-district/23UB,Cheltenham Borough Council,459769,510082,COMENSURA LIMITED,C-C23180-0115,Rcycl Coltn Schms-Temporary Agency Staff,21-Oct-11,331.42,,
http://statistics.data.gov.uk/id/local-authority-district/23UB,Cheltenham Borough Council,459769,510082,COMENSURA LIMITED,C-C23180-0115,Rcycl Coltn Schms-Temporary Agency Staff,21-Oct-11,296.94,,
http://statistics.data.gov.uk/id/local-authority-district/23UB,Cheltenham Borough Council,459769,510082,COMENSURA LIMITED,C-C23180-0115,Rcycl Coltn Schms-Temporary Agency Staff,21-Oct-11,214.58,,
http://statistics.data.gov.uk/id/local-authority-district/23UB,Cheltenham Borough Council,459769,510082,COMENSURA LIMITED,C-C23180-0115,Rcycl Coltn Schms-Temporary Agency Staff,21-Oct-11,292.60,,
http://statistics.data.gov.uk/id/local-authority-district/23UB,Cheltenham Borough Council,459769,510082,COMENSURA LIMITED,C-C23180-0115,Rcycl Coltn Schms-Temporary Agency Staff,21-Oct-11,485.20,,
http://statistics.data.gov.uk/id/local-authority-district/23UB,Cheltenham Borough Council,459741,509700,COMENSURA LIMITED,C-C23180-0115,Rcycl Coltn Schms-Temporary Agency Staff,21-Oct-11,291.88,,
http://statistics.data.gov.uk/id/local-authority-district/23UB,Cheltenham Borough Council,459741,509700,COMENSURA LIMITED,C-C23180-0115,Rcycl Coltn Schms-Temporary Agency Staff,21-Oct-11,293.99,,
http://statistics.data.gov.uk/id/local-authority-district/23UB,Cheltenham Borough Council,459741,509700,COMENSURA LIMITED,C-C23180-0115,Rcycl Coltn Schms-Temporary Agency Staff,21-Oct-11,315.14,,
http://statistics.data.gov.uk/id/local-authority-district/23UB,Cheltenham Borough Council,459741,509700,COMENSURA LIMITED,C-C23180-0115,Rcycl Coltn Schms-Temporary Agency Staff,21-Oct-11,54.99,,
http://statistics.data.gov.uk/id/local-authority-district/23UB,Cheltenham Borough Council,459741,509700,COMENSURA LIMITED,C-C23180-0115,Rcycl Coltn Schms-Temporary Agency Staff,21-Oct-11,296.10,,
http://statistics.data.gov.uk/id/local-authority-district/23UB,Cheltenham Borough Council,459741,509700,COMENSURA LIMITED,C-C23180-0115,Rcycl Coltn Schms-Temporary Agency Staff,21-Oct-11,497.33,,
http://statistics.data.gov.uk/id/local-authority-district/23UB,Cheltenham Borough Council,459741,509700,COMENSURA LIMITED,C-C23180-0115,Rcycl Coltn Schms-Temporary Agency Staff,21-Oct-11,133.24,,
http://statistics.data.gov.uk/id/local-authority-district/23UB,Cheltenham Borough Council,459741,509700,COMENSURA LIMITED,C-C23180-0115,Rcycl Coltn Schms-Temporary Agency Staff,21-Oct-11,530.25,,
http://statistics.data.gov.uk/id/local-authority-district/23UB,Cheltenham Borough Council,459741,509700,COMENSURA LIMITED,C-C23180-0115,Rcycl Coltn Schms-Temporary Agency Staff,21-Oct-11,194.58,,
http://statistics.data.gov.uk/id/local-authority-district/23UB,Cheltenham Borough Council,459741,509700,COMENSURA LIMITED,C-C23180-0115,Rcycl Coltn Schms-Temporary Agency Staff,21-Oct-11,291.12,,
http://statistics.data.gov.uk/id/local-authority-district/23UB,Cheltenham Borough Council,459741,509700,COMENSURA LIMITED,C-C23180-0115,Rcycl Coltn Schms-Temporary Agency Staff,21-Oct-11,147.39,,
http://statistics.data.gov.uk/id/local-authority-district/23UB,Cheltenham Borough Council,459741,509700,COMENSURA LIMITED,C-C23180-0115,Rcycl Coltn Schms-Temporary Agency Staff,21-Oct-11,212.28,,
http://statistics.data.gov.uk/id/local-authority-district/23UB,Cheltenham Borough Council,459741,509700,COMENSURA LIMITED,C-C23180-0115,Rcycl Coltn Schms-Temporary Agency Staff,21-Oct-11,59.22,,
http://statistics.data.gov.uk/id/local-authority-district/23UB,Cheltenham Borough Council,459741,509700,COMENSURA LIMITED,C-C23180-0115,Rcycl Coltn Schms-Temporary Agency Staff,21-Oct-11,194.08,,
http://statistics.data.gov.uk/id/local-authority-district/23UB,Cheltenham Borough Council,459741,509700,COMENSURA LIMITED,C-C23180-0115,Rcycl Coltn Schms-Temporary Agency Staff,21-Oct-11,345.04,,
http://statistics.data.gov.uk/id/local-authority-district/23UB,Cheltenham Borough Council,459741,509700,COMENSURA LIMITED,C-C23180-0115,Rcycl Coltn Schms-Temporary Agency Staff,21-Oct-11,342.63,,
http://statistics.data.gov.uk/id/local-authority-district/23UB,Cheltenham Borough Council,459741,509700,COMENSURA LIMITED,C-C23180-0115,Rcycl Coltn Schms-Temporary Agency Staff,21-Oct-11,308.79,,
http://statistics.data.gov.uk/id/local-authority-district/23UB,Cheltenham Borough Council,459741,509700,COMENSURA LIMITED,C-C23180-0115,Rcycl Coltn Schms-Temporary Agency Staff,21-Oct-11,84.60,,
http://statistics.data.gov.uk/id/local-authority-district/23UB,Cheltenham Borough Council,459741,509700,COMENSURA LIMITED,C-C23180-0115,Rcycl Coltn Schms-Temporary Agency Staff,21-Oct-11,332.05,,
http://statistics.data.gov.uk/id/local-authority-district/23UB,Cheltenham Borough Council,459741,509700,COMENSURA LIMITED,C-C23180-0115,Rcycl Coltn Schms-Temporary Agency Staff,21-Oct-11,274.95,,
http://statistics.data.gov.uk/id/local-authority-district/23UB,Cheltenham Borough Council,459741,509700,COMENSURA LIMITED,C-C23180-0115,Rcycl Coltn Schms-Temporary Agency Staff,21-Oct-11,530.70,,
http://statistics.data.gov.uk/id/local-authority-district/23UB,Cheltenham Borough Council,459741,509700,COMENSURA LIMITED,C-C23180-0115,Rcycl Coltn Schms-Temporary Agency Staff,21-Oct-11,293.99,,
http://statistics.data.gov.uk/id/local-authority-district/23UB,Cheltenham Borough Council,459769,510082,COMENSURA LIMITED,C-C23180-0115,Rcycl Coltn Schms-Temporary Agency Staff,21-Oct-11,294.78,,
http://statistics.data.gov.uk/id/local-authority-district/23UB,Cheltenham Borough Council,459769,510082,COMENSURA LIMITED,C-C23180-0115,Rcycl Coltn Schms-Temporary Agency Staff,21-Oct-11,491.26,,
http://statistics.data.gov.uk/id/local-authority-district/23UB,Cheltenham Borough Council,459769,510082,COMENSURA LIMITED,C-C23180-0115,Rcycl Coltn Schms-Temporary Agency Staff,21-Oct-11,292.60,,
http://statistics.data.gov.uk/id/local-authority-district/23UB,Cheltenham Borough Council,459769,510082,COMENSURA LIMITED,C-C23180-0115,Rcycl Coltn Schms-Temporary Agency Staff,21-Oct-11,294.78,,
http://statistics.data.gov.uk/id/local-authority-district/23UB,Cheltenham Borough Council,459769,510082,COMENSURA LIMITED,C-C23180-0115,Rcycl Coltn Schms-Temporary Agency Staff,21-Oct-11,316.45,,
http://statistics.data.gov.uk/id/local-authority-district/23UB,Cheltenham Borough Council,459769,510082,COMENSURA LIMITED,C-C23180-0115,Rcycl Coltn Schms-Temporary Agency Staff,21-Oct-11,56.36,,
http://statistics.data.gov.uk/id/local-authority-district/23UB,Cheltenham Borough Council,459769,510082,COMENSURA LIMITED,C-C23180-0115,Rcycl Coltn Schms-Temporary Agency Staff,21-Oct-11,491.26,,
http://statistics.data.gov.uk/id/local-authority-district/23UB,Cheltenham Borough Council,459769,510082,COMENSURA LIMITED,C-C23180-0115,Rcycl Coltn Schms-Temporary Agency Staff,21-Oct-11,238.42,,
http://statistics.data.gov.uk/id/local-authority-district/23UB,Cheltenham Borough Council,459761,509877,COMENSURA LIMITED,C-C23180-0115,Rcycl Coltn Schms-Temporary Agency Staff,21-Oct-11,69.36,,
http://statistics.data.gov.uk/id/local-authority-district/23UB,Cheltenham Borough Council,459761,509877,COMENSURA LIMITED,C-C23180-0115,Rcycl Coltn Schms-Temporary Agency Staff,21-Oct-11,281.78,,
http://statistics.data.gov.uk/id/local-authority-district/23UB,Cheltenham Borough Council,459761,509877,COMENSURA LIMITED,C-C23180-0115,Rcycl Coltn Schms-Temporary Agency Staff,21-Oct-11,367.74,,
http://statistics.data.gov.uk/id/local-authority-district/23UB,Cheltenham Borough Council,459761,509877,COMENSURA LIMITED,C-C23180-0115,Rcycl Coltn Schms-Temporary Agency Staff,21-Oct-11,372.83,,
http://statistics.data.gov.uk/id/local-authority-district/23UB,Cheltenham Borough Council,459761,509877,COMENSURA LIMITED,C-C23180-0115,Rcycl Coltn Schms-Temporary Agency Staff,21-Oct-11,368.48,,
http://statistics.data.gov.uk/id/local-authority-district/23UB,Cheltenham Borough Council,459761,509877,COMENSURA LIMITED,C-C23180-0115,Rcycl Coltn Schms-Temporary Agency Staff,21-Oct-11,277.43,,
http://statistics.data.gov.uk/id/local-authority-district/23UB,Cheltenham Borough Council,459761,509877,COMENSURA LIMITED,C-C23180-0115,Rcycl Coltn Schms-Temporary Agency Staff,21-Oct-11,312.12,,
http://statistics.data.gov.uk/id/local-authority-district/23UB,Cheltenham Borough Council,459769,510082,COMENSURA LIMITED,C-C23180-0115,Rcycl Coltn Schms-Temporary Agency Staff,21-Oct-11,512.48,,
http://statistics.data.gov.uk/id/local-authority-district/23UB,Cheltenham Borough Council,459769,510082,COMENSURA LIMITED,C-C23180-0115,Rcycl Coltn Schms-Temporary Agency Staff,21-Oct-11,251.43,,
http://statistics.data.gov.uk/id/local-authority-district/23UB,Cheltenham Borough Council,459769,510082,COMENSURA LIMITED,C-C23180-0115,Rcycl Coltn Schms-Temporary Agency Staff,21-Oct-11,288.27,,
http://statistics.data.gov.uk/id/local-authority-district/23UB,Cheltenham Borough Council,459769,510082,COMENSURA LIMITED,C-C23180-0115,Rcycl Coltn Schms-Temporary Agency Staff,21-Oct-11,88.87,,
http://statistics.data.gov.uk/id/local-authority-district/23UB,Cheltenham Borough Council,459769,510082,COMENSURA LIMITED,C-C23180-0115,Rcycl Coltn Schms-Temporary Agency Staff,21-Oct-11,58.52,,
http://statistics.data.gov.uk/id/local-authority-district/23UB,Cheltenham Borough Council,459769,510082,COMENSURA LIMITED,C-C23180-0115,Rcycl Coltn Schms-Temporary Agency Staff,21-Oct-11,130.04,,
http://statistics.data.gov.uk/id/local-authority-district/23UB,Cheltenham Borough Council,459761,509877,COMENSURA LIMITED,C-C23190-0115,Garden Collectn-Temporary Agency Staff,21-Oct-11,238.42,,
http://statistics.data.gov.uk/id/local-authority-district/23UB,Cheltenham Borough Council,459761,509877,COMENSURA LIMITED,C-C23190-0115,Garden Collectn-Temporary Agency Staff,21-Oct-11,190.73,,
http://statistics.data.gov.uk/id/local-authority-district/23UB,Cheltenham Borough Council,459761,509877,COMENSURA LIMITED,C-C23190-0115,Garden Collectn-Temporary Agency Staff,21-Oct-11,60.69,,
http://statistics.data.gov.uk/id/local-authority-district/23UB,Cheltenham Borough Council,459769,510082,COMENSURA LIMITED,C-C23190-0115,Garden Collectn-Temporary Agency Staff,21-Oct-11,194.08,,
http://statistics.data.gov.uk/id/local-authority-district/23UB,Cheltenham Borough Council,459769,510082,COMENSURA LIMITED,C-C23190-0115,Garden Collectn-Temporary Agency Staff,21-Oct-11,93.20,,
http://statistics.data.gov.uk/id/local-authority-district/23UB,Cheltenham Borough Council,459769,510082,COMENSURA LIMITED,C-C23190-0115,Garden Collectn-Temporary Agency Staff,21-Oct-11,95.36,,
http://statistics.data.gov.uk/id/local-authority-district/23UB,Cheltenham Borough Council,459741,509700,COMENSURA LIMITED,C-C23190-0115,Garden Collectn-Temporary Agency Staff,21-Oct-11,200.93,,
http://statistics.data.gov.uk/id/local-authority-district/23UB,Cheltenham Borough Council,459741,509700,COMENSURA LIMITED,C-C23190-0115,Garden Collectn-Temporary Agency Staff,21-Oct-11,12.69,,
http://statistics.data.gov.uk/id/local-authority-district/23UB,Cheltenham Borough Council,459741,509700,COMENSURA LIMITED,C-C23190-0115,Garden Collectn-Temporary Agency Staff,21-Oct-11,97.04,,
http://statistics.data.gov.uk/id/local-authority-district/23UB,Cheltenham Borough Council,459741,509700,COMENSURA LIMITED,C-C23190-0115,Garden Collectn-Temporary Agency Staff,21-Oct-11,485.20,,
http://statistics.data.gov.uk/id/local-authority-district/23UB,Cheltenham Borough Council,459741,509700,COMENSURA LIMITED,C-C23190-0115,Garden Collectn-Temporary Agency Staff,21-Oct-11,186.12,,
http://statistics.data.gov.uk/id/local-authority-district/23UB,Cheltenham Borough Council,459769,510082,COMENSURA LIMITED,C-C23190-0115,Garden Collectn-Temporary Agency Staff,21-Oct-11,93.20,,
http://statistics.data.gov.uk/id/local-authority-district/23UB,Cheltenham Borough Council,459769,510082,COMENSURA LIMITED,C-C23190-0115,Garden Collectn-Temporary Agency Staff,21-Oct-11,52.02,,
http://statistics.data.gov.uk/id/local-authority-district/23UB,Cheltenham Borough Council,459769,510082,COMENSURA LIMITED,C-C23190-0115,Garden Collectn-Temporary Agency Staff,21-Oct-11,194.08,,
http://statistics.data.gov.uk/id/local-authority-district/23UB,Cheltenham Borough Council,459769,510082,COMENSURA LIMITED,C-C23190-0115,Garden Collectn-Temporary Agency Staff,21-Oct-11,41.18,,
http://statistics.data.gov.uk/id/local-authority-district/23UB,Cheltenham Borough Council,459769,510082,COMENSURA LIMITED,C-C23190-0115,Garden Collectn-Temporary Agency Staff,21-Oct-11,134.38,,
http://statistics.data.gov.uk/id/local-authority-district/23UB,Cheltenham Borough Council,459761,509877,COMENSURA LIMITED,C-D12500-0115,Property Servs-Temporary Agency Staff,21-Oct-11,105.75,,
http://statistics.data.gov.uk/id/local-authority-district/23UB,Cheltenham Borough Council,459761,509877,COMENSURA LIMITED,C-D12500-0115,Property Servs-Temporary Agency Staff,21-Oct-11,86.72,,
http://statistics.data.gov.uk/id/local-authority-district/23UB,Cheltenham Borough Council,459769,510082,COMENSURA LIMITED,C-D12500-0115,Property Servs-Temporary Agency Staff,21-Oct-11,108.40,,
http://statistics.data.gov.uk/id/local-authority-district/23UB,Cheltenham Borough Council,459769,510082,COMENSURA LIMITED,C-D13100-0115,Muni Off Blgs-Temporary Agency Staff,21-Oct-11,60.70,,
http://statistics.data.gov.uk/id/local-authority-district/23UB,Cheltenham Borough Council,459769,510082,COMENSURA LIMITED,C-D13100-0115,Muni Off Blgs-Temporary Agency Staff,21-Oct-11,134.38,,
http://statistics.data.gov.uk/id/local-authority-district/23UB,Cheltenham Borough Council,459769,510082,COMENSURA LIMITED,C-D13100-0115,Muni Off Blgs-Temporary Agency Staff,21-Oct-11,8.67,,
http://statistics.data.gov.uk/id/local-authority-district/23UB,Cheltenham Borough Council,459761,509877,COMENSURA LIMITED,C-E36200-0115,On-St Car Prkng-Temporary Agency Staff,21-Oct-11,513.34,,
http://statistics.data.gov.uk/id/local-authority-district/23UB,Cheltenham Borough Council,459761,509877,COMENSURA LIMITED,C-E36200-0115,On-St Car Prkng-Temporary Agency Staff,21-Oct-11,488.61,,
http://statistics.data.gov.uk/id/local-authority-district/23UB,Cheltenham Borough Council,459769,510082,COMENSURA LIMITED,C-E63100-0115,Cemetery & Crem-Temporary Agency Staff,21-Oct-11,320.77,,
http://statistics.data.gov.uk/id/local-authority-district/23UB,Cheltenham Borough Council,459741,509700,COMENSURA LIMITED,C-E63100-0115,Cemetery & Crem-Temporary Agency Staff,21-Oct-11,313.02,,
http://statistics.data.gov.uk/id/local-authority-district/23UB,Cheltenham Borough Council,459741,509700,COMENSURA LIMITED,C-E63100-0115,Cemetery & Crem-Temporary Agency Staff,21-Oct-11,253.80,,
http://statistics.data.gov.uk/id/local-authority-district/23UB,Cheltenham Borough Council,459741,509700,COMENSURA LIMITED,C-E63100-0115,Cemetery & Crem-Temporary Agency Staff,21-Oct-11,63.45,,
http://statistics.data.gov.uk/id/local-authority-district/23UB,Cheltenham Borough Council,459761,509877,COMENSURA LIMITED,C-E63100-0115,Cemetery & Crem-Temporary Agency Staff,21-Oct-11,260.08,,
http://statistics.data.gov.uk/id/local-authority-district/23UB,Cheltenham Borough Council,459769,510082,COMENSURA LIMITED,C-E63100-0115,Cemetery & Crem-Temporary Agency Staff,21-Oct-11,65.02,,
http://statistics.data.gov.uk/id/local-authority-district/23UB,Cheltenham Borough Council,459761,509877,COMENSURA LIMITED,C-E63100-0115,Cemetery & Crem-Temporary Agency Staff,21-Oct-11,65.02,,
http://statistics.data.gov.uk/id/local-authority-district/23UB,Cheltenham Borough Council,459761,509877,COMENSURA LIMITED,C-GCERP-3501,GO Capital Cost-Hire of outside services,21-Oct-11,323.10,,
http://statistics.data.gov.uk/id/local-authority-district/23UB,Cheltenham Borough Council,459761,509877,COMENSURA LIMITED,C-GCERP-3501,GO Capital Cost-Hire of outside services,21-Oct-11,323.10,,
http://statistics.data.gov.uk/id/local-authority-district/23UB,Cheltenham Borough Council,460525,510285,COMENSURA LIMITED,C-C22100-0115,Green Env Div-Temporary Agency Staff,28-Oct-11,286.12,,
http://statistics.data.gov.uk/id/local-authority-district/23UB,Cheltenham Borough Council,460525,510285,COMENSURA LIMITED,C-C22100-0115,Green Env Div-Temporary Agency Staff,28-Oct-11,286.12,,
http://statistics.data.gov.uk/id/local-authority-district/23UB,Cheltenham Borough Council,460525,510285,COMENSURA LIMITED,C-C22120-0115,Spts/Open Space-Temporary Agency Staff,28-Oct-11,274.95,,
http://statistics.data.gov.uk/id/local-authority-district/23UB,Cheltenham Borough Council,460525,510285,COMENSURA LIMITED,C-C22120-0115,Spts/Open Space-Temporary Agency Staff,28-Oct-11,355.49,,
http://statistics.data.gov.uk/id/local-authority-district/23UB,Cheltenham Borough Council,460525,510285,COMENSURA LIMITED,C-C23100-0115,Refuse Collection-Temporary Agency Staff,28-Oct-11,355.45,,
http://statistics.data.gov.uk/id/local-authority-district/23UB,Cheltenham Borough Council,460525,510285,COMENSURA LIMITED,C-C23100-0115,Refuse Collection-Temporary Agency Staff,28-Oct-11,257.93,,
http://statistics.data.gov.uk/id/local-authority-district/23UB,Cheltenham Borough Council,460525,510285,COMENSURA LIMITED,C-C23100-0115,Refuse Collection-Temporary Agency Staff,28-Oct-11,223.24,,
http://statistics.data.gov.uk/id/local-authority-district/23UB,Cheltenham Borough Council,460525,510285,COMENSURA LIMITED,C-C23100-0115,Refuse Collection-Temporary Agency Staff,28-Oct-11,190.73,,
http://statistics.data.gov.uk/id/local-authority-district/23UB,Cheltenham Borough Council,460525,510285,COMENSURA LIMITED,C-C23100-0115,Refuse Collection-Temporary Agency Staff,28-Oct-11,485.20,,
http://statistics.data.gov.uk/id/local-authority-district/23UB,Cheltenham Borough Council,460525,510285,COMENSURA LIMITED,C-C23100-0115,Refuse Collection-Temporary Agency Staff,28-Oct-11,292.62,,
http://statistics.data.gov.uk/id/local-authority-district/23UB,Cheltenham Borough Council,460525,510285,COMENSURA LIMITED,C-C23100-0115,Refuse Collection-Temporary Agency Staff,28-Oct-11,541.90,,
http://statistics.data.gov.uk/id/local-authority-district/23UB,Cheltenham Borough Council,460525,510285,COMENSURA LIMITED,C-C23100-0115,Refuse Collection-Temporary Agency Staff,28-Oct-11,320.77,,
http://statistics.data.gov.uk/id/local-authority-district/23UB,Cheltenham Borough Council,460525,510285,COMENSURA LIMITED,C-C23100-0115,Refuse Collection-Temporary Agency Staff,28-Oct-11,320.77,,
http://statistics.data.gov.uk/id/local-authority-district/23UB,Cheltenham Borough Council,460525,510285,COMENSURA LIMITED,C-C23100-0115,Refuse Collection-Temporary Agency Staff,28-Oct-11,320.77,,
http://statistics.data.gov.uk/id/local-authority-district/23UB,Cheltenham Borough Council,460525,510285,COMENSURA LIMITED,C-C23180-0115,Rcycl Coltn Schms-Temporary Agency Staff,28-Oct-11,39.02,,
http://statistics.data.gov.uk/id/local-authority-district/23UB,Cheltenham Borough Council,460525,510285,COMENSURA LIMITED,C-C23180-0115,Rcycl Coltn Schms-Temporary Agency Staff,28-Oct-11,205.91,,
http://statistics.data.gov.uk/id/local-authority-district/23UB,Cheltenham Borough Council,460525,510285,COMENSURA LIMITED,C-C23180-0115,Rcycl Coltn Schms-Temporary Agency Staff,28-Oct-11,65.02,,
http://statistics.data.gov.uk/id/local-authority-district/23UB,Cheltenham Borough Council,460525,510285,COMENSURA LIMITED,C-C23180-0115,Rcycl Coltn Schms-Temporary Agency Staff,28-Oct-11,130.04,,
http://statistics.data.gov.uk/id/local-authority-district/23UB,Cheltenham Borough Council,460525,510285,COMENSURA LIMITED,C-C23180-0115,Rcycl Coltn Schms-Temporary Agency Staff,28-Oct-11,491.26,,
http://statistics.data.gov.uk/id/local-authority-district/23UB,Cheltenham Borough Council,460525,510285,COMENSURA LIMITED,C-C23180-0115,Rcycl Coltn Schms-Temporary Agency Staff,28-Oct-11,485.20,,
http://statistics.data.gov.uk/id/local-authority-district/23UB,Cheltenham Borough Council,460525,510285,COMENSURA LIMITED,C-C23180-0115,Rcycl Coltn Schms-Temporary Agency Staff,28-Oct-11,145.22,,
http://statistics.data.gov.uk/id/local-authority-district/23UB,Cheltenham Borough Council,460525,510285,COMENSURA LIMITED,C-C23180-0115,Rcycl Coltn Schms-Temporary Agency Staff,28-Oct-11,179.91,,
http://statistics.data.gov.uk/id/local-authority-district/23UB,Cheltenham Borough Council,460525,510285,COMENSURA LIMITED,C-C23180-0115,Rcycl Coltn Schms-Temporary Agency Staff,28-Oct-11,229.76,,
http://statistics.data.gov.uk/id/local-authority-district/23UB,Cheltenham Borough Council,460525,510285,COMENSURA LIMITED,C-C23180-0115,Rcycl Coltn Schms-Temporary Agency Staff,28-Oct-11,338.12,,
http://statistics.data.gov.uk/id/local-authority-district/23UB,Cheltenham Borough Council,460525,510285,COMENSURA LIMITED,C-C23180-0115,Rcycl Coltn Schms-Temporary Agency Staff,28-Oct-11,273.10,,
http://statistics.data.gov.uk/id/local-authority-district/23UB,Cheltenham Borough Council,460525,510285,COMENSURA LIMITED,C-C23180-0115,Rcycl Coltn Schms-Temporary Agency Staff,28-Oct-11,338.12,,
http://statistics.data.gov.uk/id/local-authority-district/23UB,Cheltenham Borough Council,460525,510285,COMENSURA LIMITED,C-C23180-0115,Rcycl Coltn Schms-Temporary Agency Staff,28-Oct-11,316.47,,
http://statistics.data.gov.uk/id/local-authority-district/23UB,Cheltenham Borough Council,460525,510285,COMENSURA LIMITED,C-C23180-0115,Rcycl Coltn Schms-Temporary Agency Staff,28-Oct-11,221.08,,
http://statistics.data.gov.uk/id/local-authority-district/23UB,Cheltenham Borough Council,460525,510285,COMENSURA LIMITED,C-C23180-0115,Rcycl Coltn Schms-Temporary Agency Staff,28-Oct-11,309.94,,
http://statistics.data.gov.uk/id/local-authority-district/23UB,Cheltenham Borough Council,460525,510285,COMENSURA LIMITED,C-C23180-0115,Rcycl Coltn Schms-Temporary Agency Staff,28-Oct-11,251.42,,
http://statistics.data.gov.uk/id/local-authority-district/23UB,Cheltenham Borough Council,460525,510285,COMENSURA LIMITED,C-C23180-0115,Rcycl Coltn Schms-Temporary Agency Staff,28-Oct-11,335.96,,
http://statistics.data.gov.uk/id/local-authority-district/23UB,Cheltenham Borough Council,460525,510285,COMENSURA LIMITED,C-C23180-0115,Rcycl Coltn Schms-Temporary Agency Staff,28-Oct-11,303.24,,
http://statistics.data.gov.uk/id/local-authority-district/23UB,Cheltenham Borough Council,460525,510285,COMENSURA LIMITED,C-C23180-0115,Rcycl Coltn Schms-Temporary Agency Staff,28-Oct-11,333.79,,
http://statistics.data.gov.uk/id/local-authority-district/23UB,Cheltenham Borough Council,460525,510285,COMENSURA LIMITED,C-C23180-0115,Rcycl Coltn Schms-Temporary Agency Staff,28-Oct-11,19.51,,
http://statistics.data.gov.uk/id/local-authority-district/23UB,Cheltenham Borough Council,460525,510285,COMENSURA LIMITED,C-C23180-0115,Rcycl Coltn Schms-Temporary Agency Staff,28-Oct-11,521.58,,
http://statistics.data.gov.uk/id/local-authority-district/23UB,Cheltenham Borough Council,460525,510285,COMENSURA LIMITED,C-C23180-0115,Rcycl Coltn Schms-Temporary Agency Staff,28-Oct-11,208.09,,
http://statistics.data.gov.uk/id/local-authority-district/23UB,Cheltenham Borough Council,460525,510285,COMENSURA LIMITED,C-C23180-0115,Rcycl Coltn Schms-Temporary Agency Staff,28-Oct-11,270.94,,
http://statistics.data.gov.uk/id/local-authority-district/23UB,Cheltenham Borough Council,460525,510285,COMENSURA LIMITED,C-C23190-0115,Garden Collectn-Temporary Agency Staff,28-Oct-11,275.28,,
http://statistics.data.gov.uk/id/local-authority-district/23UB,Cheltenham Borough Council,460525,510285,COMENSURA LIMITED,C-C23190-0115,Garden Collectn-Temporary Agency Staff,28-Oct-11,56.36,,
http://statistics.data.gov.uk/id/local-authority-district/23UB,Cheltenham Borough Council,460525,510285,COMENSURA LIMITED,C-C23190-0115,Garden Collectn-Temporary Agency Staff,28-Oct-11,236.26,,
http://statistics.data.gov.uk/id/local-authority-district/23UB,Cheltenham Borough Council,460525,510285,COMENSURA LIMITED,C-D12500-0115,Property Servs-Temporary Agency Staff,28-Oct-11,21.68,,
http://statistics.data.gov.uk/id/local-authority-district/23UB,Cheltenham Borough Council,460525,510285,COMENSURA LIMITED,C-D13100-0115,Muni Off Blgs-Temporary Agency Staff,28-Oct-11,177.76,,
http://statistics.data.gov.uk/id/local-authority-district/23UB,Cheltenham Borough Council,460525,510285,COMENSURA LIMITED,C-D13100-0115,Muni Off Blgs-Temporary Agency Staff,28-Oct-11,43.36,,
http://statistics.data.gov.uk/id/local-authority-district/23UB,Cheltenham Borough Council,460525,510285,COMENSURA LIMITED,C-D13100-0115,Muni Off Blgs-Temporary Agency Staff,28-Oct-11,173.42,,
http://statistics.data.gov.uk/id/local-authority-district/23UB,Cheltenham Borough Council,460525,510285,COMENSURA LIMITED,C-E63100-0115,Cemetery & Crem-Temporary Agency Staff,28-Oct-11,320.77,,
http://statistics.data.gov.uk/id/local-authority-district/23UB,Cheltenham Borough Council,460525,510285,COMENSURA LIMITED,C-E63100-0115,Cemetery & Crem-Temporary Agency Staff,28-Oct-11,320.77,,
http://statistics.data.gov.uk/id/local-authority-district/23UB,Cheltenham Borough Council,460509,SIT100728,COMMERCIAL LIMITED,C-D11800-3501,IT Services-Hire of outside services,28-Oct-11,"3,580.00",,
http://statistics.data.gov.uk/id/local-authority-district/23UB,Cheltenham Borough Council,460510,SIT100791,COMMERCIAL LIMITED,C-GCERP-350A,GO Capital Cost-Consultants Fees,28-Oct-11,"14,885.00",,
http://statistics.data.gov.uk/id/local-authority-district/23UB,Cheltenham Borough Council,458595,11185,COMPLETE CLIMATE SOLUTIONS LIMITED,C-D13100-1123,Muni Off Blgs-M&E Planned & Preventative,07-Oct-11,"2,700.00",,
http://statistics.data.gov.uk/id/local-authority-district/23UB,Cheltenham Borough Council,458596,11203,COMPLETE CLIMATE SOLUTIONS LIMITED,C-D13100-1123,Muni Off Blgs-M&E Planned & Preventative,07-Oct-11,"2,700.00",,
http://statistics.data.gov.uk/id/local-authority-district/23UB,Cheltenham Borough Council,458597,11237,COMPLETE CLIMATE SOLUTIONS LIMITED,C-D13100-1123,Muni Off Blgs-M&E Planned & Preventative,07-Oct-11,"2,700.00",,
http://statistics.data.gov.uk/id/local-authority-district/23UB,Cheltenham Borough Council,458597,11237,COMPLETE CLIMATE SOLUTIONS LIMITED,C-N11250-9227,In.Revenue CIS-Payments - tax Dedn,07-Oct-11,-540.00,,
http://statistics.data.gov.uk/id/local-authority-district/23UB,Cheltenham Borough Council,458596,11203,COMPLETE CLIMATE SOLUTIONS LIMITED,C-N11250-9227,In.Revenue CIS-Payments - tax Dedn,07-Oct-11,-540.00,,
http://statistics.data.gov.uk/id/local-authority-district/23UB,Cheltenham Borough Council,458595,11185,COMPLETE CLIMATE SOLUTIONS LIMITED,C-N11250-9227,In.Revenue CIS-Payments - tax Dedn,07-Oct-11,-540.00,,
http://statistics.data.gov.uk/id/local-authority-district/23UB,Cheltenham Borough Council,459692,11200,COMPLETE CLIMATE SOLUTIONS LIMITED,C-C22120-1801,Sports & Open S-RM-Electrical repairs,21-Oct-11,42.48,,
http://statistics.data.gov.uk/id/local-authority-district/23UB,Cheltenham Borough Council,459653,11232,COMPLETE CLIMATE SOLUTIONS LIMITED,C-C22120-1809,Sports & Open S-RM-sanitary works,21-Oct-11,41.81,,
http://statistics.data.gov.uk/id/local-authority-district/23UB,Cheltenham Borough Council,459677,11179,COMPLETE CLIMATE SOLUTIONS LIMITED,C-C22120-1809,Sports & Open S-RM-sanitary works,21-Oct-11,101.10,,
http://statistics.data.gov.uk/id/local-authority-district/23UB,Cheltenham Borough Council,459694,11181,COMPLETE CLIMATE SOLUTIONS LIMITED,C-C22120-1809,Sports & Open S-RM-sanitary works,21-Oct-11,167.82,,
http://statistics.data.gov.uk/id/local-authority-district/23UB,Cheltenham Borough Council,459689,11199,COMPLETE CLIMATE SOLUTIONS LIMITED,C-C22120-1809,Sports & Open S-RM-sanitary works,21-Oct-11,199.07,,
http://statistics.data.gov.uk/id/local-authority-district/23UB,Cheltenham Borough Council,459660,11231,COMPLETE CLIMATE SOLUTIONS LIMITED,C-C22120-1809,Sports & Open S-RM-sanitary works,21-Oct-11,27.23,,
http://statistics.data.gov.uk/id/local-authority-district/23UB,Cheltenham Borough Council,459653,11232,COMPLETE CLIMATE SOLUTIONS LIMITED,C-C22120-1809,Sports & Open S-RM-sanitary works,21-Oct-11,-3.90,,
http://statistics.data.gov.uk/id/local-authority-district/23UB,Cheltenham Borough Council,459633,11180,COMPLETE CLIMATE SOLUTIONS LIMITED,C-C22120-1811,Sports & Open S-RM-Plan.& Prev.Mech.Ctrc,21-Oct-11,114.12,,
http://statistics.data.gov.uk/id/local-authority-district/23UB,Cheltenham Borough Council,459652,11235,COMPLETE CLIMATE SOLUTIONS LIMITED,C-C22140-1812,Nursery-Boiler M&E repairs,21-Oct-11,116.41,,
http://statistics.data.gov.uk/id/local-authority-district/23UB,Cheltenham Borough Council,459686,11201,COMPLETE CLIMATE SOLUTIONS LIMITED,C-D13100-1810,Muni Off Blgs-RM- Air conditioning,21-Oct-11,39.01,,
http://statistics.data.gov.uk/id/local-authority-district/23UB,Cheltenham Borough Council,459642,11182,COMPLETE CLIMATE SOLUTIONS LIMITED,C-D13100-1811,Muni Off Blgs-RM-Plan.& Prev.Mech.Ctrct,21-Oct-11,238.15,,
http://statistics.data.gov.uk/id/local-authority-district/23UB,Cheltenham Borough Council,459651,11236,COMPLETE CLIMATE SOLUTIONS LIMITED,C-E21400-1809,Shopmobility-RM-sanitary works,21-Oct-11,60.01,,
http://statistics.data.gov.uk/id/local-authority-district/23UB,Cheltenham Borough Council,459651,11236,COMPLETE CLIMATE SOLUTIONS LIMITED,C-E21400-1809,Shopmobility-RM-sanitary works,21-Oct-11,-2.93,,
http://statistics.data.gov.uk/id/local-authority-district/23UB,Cheltenham Borough Council,459672,11202,COMPLETE CLIMATE SOLUTIONS LIMITED,C-L11500-1801,Rec Facilities-RM-Electrical repairs,21-Oct-11,"1,852.12",,
http://statistics.data.gov.uk/id/local-authority-district/23UB,Cheltenham Borough Council,459655,11233,COMPLETE CLIMATE SOLUTIONS LIMITED,C-L11500-1809,Rec Facilities-RM-sanitary works,21-Oct-11,134.71,,
http://statistics.data.gov.uk/id/local-authority-district/23UB,Cheltenham Borough Council,459695,11184,COMPLETE CLIMATE SOLUTIONS LIMITED,C-L11500-1812,Rec Facilities-Boiler M&E repairs,21-Oct-11,46.81,,
http://statistics.data.gov.uk/id/local-authority-district/23UB,Cheltenham Borough Council,459667,11230,COMPLETE CLIMATE SOLUTIONS LIMITED,C-L21100-1810,Town Hall-RM- Air conditioning,21-Oct-11,966.91,,
http://statistics.data.gov.uk/id/local-authority-district/23UB,Cheltenham Borough Council,459682,11178,COMPLETE CLIMATE SOLUTIONS LIMITED,C-L21100-1810,Town Hall-RM- Air conditioning,21-Oct-11,92.26,,
http://statistics.data.gov.uk/id/local-authority-district/23UB,Cheltenham Borough Council,459693,11198,COMPLETE CLIMATE SOLUTIONS LIMITED,C-L21100-1810,Town Hall-RM- Air conditioning,21-Oct-11,389.32,,
http://statistics.data.gov.uk/id/local-authority-district/23UB,Cheltenham Borough Council,459623,11234,COMPLETE CLIMATE SOLUTIONS LIMITED,C-L21400-1812,Stanton Room-Boiler M&E repairs,21-Oct-11,265.70,,
http://statistics.data.gov.uk/id/local-authority-district/23UB,Cheltenham Borough Council,459633,11180,COMPLETE CLIMATE SOLUTIONS LIMITED,C-N11250-9227,Excluded,21-Oct-11,-7.80,,
http://statistics.data.gov.uk/id/local-authority-district/23UB,Cheltenham Borough Council,459652,11235,COMPLETE CLIMATE SOLUTIONS LIMITED,C-N11250-9227,Excluded,21-Oct-11,-5.85,,
http://statistics.data.gov.uk/id/local-authority-district/23UB,Cheltenham Borough Council,459694,11181,COMPLETE CLIMATE SOLUTIONS LIMITED,C-N11250-9227,Excluded,21-Oct-11,-7.80,,
http://statistics.data.gov.uk/id/local-authority-district/23UB,Cheltenham Borough Council,459693,11198,COMPLETE CLIMATE SOLUTIONS LIMITED,C-N11250-9227,Excluded,21-Oct-11,-13.65,,
http://statistics.data.gov.uk/id/local-authority-district/23UB,Cheltenham Borough Council,459692,11200,COMPLETE CLIMATE SOLUTIONS LIMITED,C-N11250-9227,Excluded,21-Oct-11,-3.90,,
http://statistics.data.gov.uk/id/local-authority-district/23UB,Cheltenham Borough Council,459689,11199,COMPLETE CLIMATE SOLUTIONS LIMITED,C-N11250-9227,Excluded,21-Oct-11,-10.73,,
http://statistics.data.gov.uk/id/local-authority-district/23UB,Cheltenham Borough Council,459686,11201,COMPLETE CLIMATE SOLUTIONS LIMITED,C-N11250-9227,Excluded,21-Oct-11,-7.80,,
http://statistics.data.gov.uk/id/local-authority-district/23UB,Cheltenham Borough Council,459682,11178,COMPLETE CLIMATE SOLUTIONS LIMITED,C-N11250-9227,Excluded,21-Oct-11,-15.60,,
http://statistics.data.gov.uk/id/local-authority-district/23UB,Cheltenham Borough Council,459677,11179,COMPLETE CLIMATE SOLUTIONS LIMITED,C-N11250-9227,Excluded,21-Oct-11,-7.80,,
http://statistics.data.gov.uk/id/local-authority-district/23UB,Cheltenham Borough Council,459672,11202,COMPLETE CLIMATE SOLUTIONS LIMITED,C-N11250-9227,Excluded,21-Oct-11,-16.58,,
http://statistics.data.gov.uk/id/local-authority-district/23UB,Cheltenham Borough Council,459667,11230,COMPLETE CLIMATE SOLUTIONS LIMITED,C-N11250-9227,Excluded,21-Oct-11,-34.60,,
http://statistics.data.gov.uk/id/local-authority-district/23UB,Cheltenham Borough Council,459660,11231,COMPLETE CLIMATE SOLUTIONS LIMITED,C-N11250-9227,Excluded,21-Oct-11,-3.90,,
http://statistics.data.gov.uk/id/local-authority-district/23UB,Cheltenham Borough Council,459655,11233,COMPLETE CLIMATE SOLUTIONS LIMITED,C-N11250-9227,Excluded,21-Oct-11,-17.55,,
http://statistics.data.gov.uk/id/local-authority-district/23UB,Cheltenham Borough Council,459642,11182,COMPLETE CLIMATE SOLUTIONS LIMITED,C-N11250-9227,Excluded,21-Oct-11,-13.65,,
http://statistics.data.gov.uk/id/local-authority-district/23UB,Cheltenham Borough Council,459623,11234,COMPLETE CLIMATE SOLUTIONS LIMITED,C-N11250-9227,Excluded,21-Oct-11,-5.00,,
http://statistics.data.gov.uk/id/local-authority-district/23UB,Cheltenham Borough Council,460489,11246,COMPLETE CLIMATE SOLUTIONS LIMITED,C-D13100-1123,Muni Off Blgs-M&E Planned & Preventative,28-Oct-11,"2,700.00",,
http://statistics.data.gov.uk/id/local-authority-district/23UB,Cheltenham Borough Council,460489,11246,COMPLETE CLIMATE SOLUTIONS LIMITED,C-N11250-9227,Excluded,28-Oct-11,-540.00,,
http://statistics.data.gov.uk/id/local-authority-district/23UB,Cheltenham Borough Council,459507,2680,CORNERSTONE LEARNING LTD,C-D12310-0205,Corporate Trg-Training fees/exp (Corp),21-Oct-11,"1,150.00",,
http://statistics.data.gov.uk/id/local-authority-district/23UB,Cheltenham Borough Council,458915,015956,CORY ENVIRONMENTAL LTD,C-C23100-3581,Refuse Collctn-Tipping charges,14-Oct-11,"5,198.71",,
http://statistics.data.gov.uk/id/local-authority-district/23UB,Cheltenham Borough Council,459228,016018,CORY ENVIRONMENTAL LTD,C-C23100-3581,Refuse Collctn-Tipping charges,21-Oct-11,"4,874.73",,
http://statistics.data.gov.uk/id/local-authority-district/23UB,Cheltenham Borough Council,459876,016079,CORY ENVIRONMENTAL LTD,C-C23100-3581,Refuse Collctn-Tipping charges,21-Oct-11,"5,569.45",,
http://statistics.data.gov.uk/id/local-authority-district/23UB,Cheltenham Borough Council,458813,RENTATCFS,COUNTY COMMUNITY PROJECTS,C-H22300-3877,Housing Grants-Grants - One-Stop-Shop,07-Oct-11,"4,878.18",,
http://statistics.data.gov.uk/id/local-authority-district/23UB,Cheltenham Borough Council,458814,CKS ADMIN,COUNTY COMMUNITY PROJECTS,C-H22300-3877,Housing Grants-Grants - One-Stop-Shop,07-Oct-11,"1,675.69",,
http://statistics.data.gov.uk/id/local-authority-district/23UB,Cheltenham Borough Council,459614,814243,CRIMINAL RECORDS BUREAU,C-A21500-3501,Licensing-Hire of outside services,21-Oct-11,714.00,,
http://statistics.data.gov.uk/id/local-authority-district/23UB,Cheltenham Borough Council,459614,814243,CRIMINAL RECORDS BUREAU,C-C22100-3501,Green Env Div-Hire of outside services,21-Oct-11,44.00,,
http://statistics.data.gov.uk/id/local-authority-district/23UB,Cheltenham Borough Council,458988,CD971186083,CRYO SERVICE LTD,C-L11500-3167,Rec Facilities-Maintenance Agreements,14-Oct-11,49.50,,
http://statistics.data.gov.uk/id/local-authority-district/23UB,Cheltenham Borough Council,458989,CD971183836,CRYO SERVICE LTD,C-L11500-3167,Rec Facilities-Maintenance Agreements,14-Oct-11,372.76,,
http://statistics.data.gov.uk/id/local-authority-district/23UB,Cheltenham Borough Council,458989,CD971183836,CRYO SERVICE LTD,C-L11500-3167,Rec Facilities-Maintenance Agreements,14-Oct-11,82.36,,
http://statistics.data.gov.uk/id/local-authority-district/23UB,Cheltenham Borough Council,458988,CD971186083,CRYO SERVICE LTD,C-L11500-3167,Rec Facilities-Maintenance Agreements,14-Oct-11,5.00,,
http://statistics.data.gov.uk/id/local-authority-district/23UB,Cheltenham Borough Council,458988,CD971186083,CRYO SERVICE LTD,C-L11500-3167,Rec Facilities-Maintenance Agreements,14-Oct-11,12.76,,
http://statistics.data.gov.uk/id/local-authority-district/23UB,Cheltenham Borough Council,459840,01116,D A JONES,C-C22110-3152,Parks & Gardens-Commemorative Seats,21-Oct-11,30.00,,
http://statistics.data.gov.uk/id/local-authority-district/23UB,Cheltenham Borough Council,459840,01116,D A JONES,C-C22110-3152,Parks & Gardens-Commemorative Seats,21-Oct-11,60.00,,
http://statistics.data.gov.uk/id/local-authority-district/23UB,Cheltenham Borough Council,459261,01119,D A JONES,C-C22120-1119,Spts/Open Space-Playground Maint,21-Oct-11,150.00,,
http://statistics.data.gov.uk/id/local-authority-district/23UB,Cheltenham Borough Council,459266,01118,D A JONES,C-C22120-1119,Spts/Open Space-Playground Maint,21-Oct-11,340.00,,
http://statistics.data.gov.uk/id/local-authority-district/23UB,Cheltenham Borough Council,459266,01118,D A JONES,C-C22120-1119,Spts/Open Space-Playground Maint,21-Oct-11,60.00,,
http://statistics.data.gov.uk/id/local-authority-district/23UB,Cheltenham Borough Council,459873,01115,D A JONES,C-C22120-3110,Spts/Open Space-Materials,21-Oct-11,160.00,,
http://statistics.data.gov.uk/id/local-authority-district/23UB,Cheltenham Borough Council,459261,01119,D A JONES,C-N11250-9227,Excluded,21-Oct-11,-24.00,,
http://statistics.data.gov.uk/id/local-authority-district/23UB,Cheltenham Borough Council,459266,01118,D A JONES,C-N11250-9227,Excluded,21-Oct-11,-68.00,,
http://statistics.data.gov.uk/id/local-authority-district/23UB,Cheltenham Borough Council,459873,01115,D A JONES,C-N11250-9227,Excluded,21-Oct-11,-32.00,,
http://statistics.data.gov.uk/id/local-authority-district/23UB,Cheltenham Borough Council,459840,01116,D A JONES,C-N11250-9227,Excluded,21-Oct-11,-18.00,,
http://statistics.data.gov.uk/id/local-authority-district/23UB,Cheltenham Borough Council,459259,DLS18087,D L SPENCER AND CO LIMITED,C-L21100-3211,Town Hall-Catering Equip,21-Oct-11,68.50,,
http://statistics.data.gov.uk/id/local-authority-district/23UB,Cheltenham Borough Council,459259,DLS18087,D L SPENCER AND CO LIMITED,C-L21100-3211,Town Hall-Catering Equip,21-Oct-11,172.80,,
http://statistics.data.gov.uk/id/local-authority-district/23UB,Cheltenham Borough Council,459255,DLS18088,D L SPENCER AND CO LIMITED,C-L21200-3211,Pump Room-Catering Equip,21-Oct-11,355.10,,
http://statistics.data.gov.uk/id/local-authority-district/23UB,Cheltenham Borough Council,459255,DLS18088,D L SPENCER AND CO LIMITED,C-L21200-3211,Pump Room-Catering Equip,21-Oct-11,401.65,,
http://statistics.data.gov.uk/id/local-authority-district/23UB,Cheltenham Borough Council,459868,1068,D W BROOKES,C-C22120-1301,Spts/Open Space-Routine grounds maint,21-Oct-11,"1,300.00",,
http://statistics.data.gov.uk/id/local-authority-district/23UB,Cheltenham Borough Council,460475,1069,D W BROOKES,C-LC6006-C306,Play Area Maint-Landscape Contractor,28-Oct-11,402.00,,
http://statistics.data.gov.uk/id/local-authority-district/23UB,Cheltenham Borough Council,460475,1069,D W BROOKES,C-LC6006-C306,Play Area Maint-Landscape Contractor,28-Oct-11,"1,485.00",,
http://statistics.data.gov.uk/id/local-authority-district/23UB,Cheltenham Borough Council,459005,900074707,DAVIS LANGDON LLP,C-LC4006-C711,AG&M Dev Scheme-External - QS,14-Oct-11,"4,000.00",,
http://statistics.data.gov.uk/id/local-authority-district/23UB,Cheltenham Borough Council,459004,900074707,DAVIS LANGDON LLP,C-LC4006-C713,AG&M Dev Scheme-Other Professional Fees,14-Oct-11,"4,314.00",,
http://statistics.data.gov.uk/id/local-authority-district/23UB,Cheltenham Borough Council,458657,16035A,DELAWARE COMMUNICATIONS PLC,C-E61500-3103,CCTV/TC Safety-Equipment repairs & maint,07-Oct-11,"1,419.17",,
http://statistics.data.gov.uk/id/local-authority-district/23UB,Cheltenham Borough Council,460184,39650,DELAWARE COMMUNICATIONS PLC,C-E61500-3103,CCTV/TC Safety-Equipment repairs & maint,28-Oct-11,"1,419.17",,
http://statistics.data.gov.uk/id/local-authority-district/23UB,Cheltenham Borough Council,458901,7401874234,DELL COMPUTER CORPORATION LTD,C-D11820-3660,IT Infrastructu-Hardware PC & Servers,14-Oct-11,10.99,,
http://statistics.data.gov.uk/id/local-authority-district/23UB,Cheltenham Borough Council,458902,7401874233,DELL COMPUTER CORPORATION LTD,C-D11820-3660,IT Infrastructu-Hardware PC & Servers,14-Oct-11,578.90,,
http://statistics.data.gov.uk/id/local-authority-district/23UB,Cheltenham Borough Council,458899,7401873577,DELL COMPUTER CORPORATION LTD,C-D11820-3660,IT Infrastructu-Hardware PC & Servers,14-Oct-11,934.24,,
http://statistics.data.gov.uk/id/local-authority-district/23UB,Cheltenham Borough Council,458724,DE10581851,DENNIS EAGLE,C-C24100-3582,Fleet Maint-DSO Invoices,07-Oct-11,105.80,,
http://statistics.data.gov.uk/id/local-authority-district/23UB,Cheltenham Borough Council,458723,DE10582122,DENNIS EAGLE,C-C24100-3582,Fleet Maint-DSO Invoices,07-Oct-11,38.91,,
http://statistics.data.gov.uk/id/local-authority-district/23UB,Cheltenham Borough Council,458719,DE10581261,DENNIS EAGLE,C-C24100-3582,Fleet Maint-DSO Invoices,07-Oct-11,144.30,,
http://statistics.data.gov.uk/id/local-authority-district/23UB,Cheltenham Borough Council,458718,DE10581262,DENNIS EAGLE,C-C24100-3582,Fleet Maint-DSO Invoices,07-Oct-11,215.50,,
http://statistics.data.gov.uk/id/local-authority-district/23UB,Cheltenham Borough Council,458715,197172,DENNIS EAGLE,C-C24100-3582,Fleet Maint-DSO Invoices,07-Oct-11,450.00,,
http://statistics.data.gov.uk/id/local-authority-district/23UB,Cheltenham Borough Council,458751,DE10580999,DENNIS EAGLE,C-C24100-3582,Fleet Maint-DSO Invoices,07-Oct-11,88.98,,
http://statistics.data.gov.uk/id/local-authority-district/23UB,Cheltenham Borough Council,458746,DE10581551,DENNIS EAGLE,C-C24100-3582,Fleet Maint-DSO Invoices,07-Oct-11,110.09,,
http://statistics.data.gov.uk/id/local-authority-district/23UB,Cheltenham Borough Council,460169,513662,DESIGNA UK LIMITED,C-E21100-3103,Car Prks-Off St-Equipment repairs & main,28-Oct-11,"1,584.08",,
http://statistics.data.gov.uk/id/local-authority-district/23UB,Cheltenham Borough Council,460513,513742,DESIGNA UK LIMITED,C-E21100-3103,Car Prks-Off St-Equipment repairs & main,28-Oct-11,"1,584.08",,
http://statistics.data.gov.uk/id/local-authority-district/23UB,Cheltenham Borough Council,458992,N079.11.20/LN011,DEWHURST MACFARLANE & PARTNERS,C-LC4006-C702,AG&M Dev Scheme-CBC - Engineers,14-Oct-11,"2,200.00",,
http://statistics.data.gov.uk/id/local-authority-district/23UB,Cheltenham Borough Council,459961,SITE CLEARANCE,DMY BUILDING SERVICES LTD,C-H44500-1104,Prop.Manager-Council House repairs,21-Oct-11,900.00,,
http://statistics.data.gov.uk/id/local-authority-district/23UB,Cheltenham Borough Council,459001,10/002,DORCHESTER HOUSE TRUST,C-H22400-5204,Homelessness-Provision of accommo(B&B),21-Oct-11,717.90,,
http://statistics.data.gov.uk/id/local-authority-district/23UB,Cheltenham Borough Council,459016,10/001,DORCHESTER HOUSE TRUST,C-H22400-5204,Homelessness-Provision of accommo(B&B),21-Oct-11,"1,416.12",,
http://statistics.data.gov.uk/id/local-authority-district/23UB,Cheltenham Borough Council,460099,101004,DORCHESTER HOUSE TRUST,C-H22400-5204,Homelessness-Provision of accommo(B&B),28-Oct-11,506.81,,
http://statistics.data.gov.uk/id/local-authority-district/23UB,Cheltenham Borough Council,460176,10052366,DOVER DISTRICT COUNCIL,C-D12430-3401,Housing & CT Be-Printing - general,28-Oct-11,"2,240.00",,
http://statistics.data.gov.uk/id/local-authority-district/23UB,Cheltenham Borough Council,459304,11079,ELEVATE CONSULTING LIMITED,C-HC4864-C302,Lift Refurb-Building Contractor,21-Oct-11,"1,087.29",,
http://statistics.data.gov.uk/id/local-authority-district/23UB,Cheltenham Borough Council,459516,9750,EMMDEE BUILDING SERVICES,C-C22120-1801,Sports & Open S-RM-Electrical repairs,21-Oct-11,42.56,,
http://statistics.data.gov.uk/id/local-authority-district/23UB,Cheltenham Borough Council,459517,9752,EMMDEE BUILDING SERVICES,C-C22120-1801,Sports & Open S-RM-Electrical repairs,21-Oct-11,32.43,,
http://statistics.data.gov.uk/id/local-authority-district/23UB,Cheltenham Borough Council,459524,9692,EMMDEE BUILDING SERVICES,C-C22120-1801,Sports & Open S-RM-Electrical repairs,21-Oct-11,42.95,,
http://statistics.data.gov.uk/id/local-authority-district/23UB,Cheltenham Borough Council,459518,9746,EMMDEE BUILDING SERVICES,C-D13100-1801,Muni Off Blgs-RM-Electrical repairs,21-Oct-11,130.16,,
http://statistics.data.gov.uk/id/local-authority-district/23UB,Cheltenham Borough Council,459527,9856,EMMDEE BUILDING SERVICES,C-D13100-1801,Muni Off Blgs-RM-Electrical repairs,21-Oct-11,33.75,,
http://statistics.data.gov.uk/id/local-authority-district/23UB,Cheltenham Borough Council,459519,9748,EMMDEE BUILDING SERVICES,C-D13100-1801,Muni Off Blgs-RM-Electrical repairs,21-Oct-11,45.00,,
http://statistics.data.gov.uk/id/local-authority-district/23UB,Cheltenham Borough Council,459522,9747,EMMDEE BUILDING SERVICES,C-E21100-1801,Car Prks-Off St-RM-Electrical repairs,21-Oct-11,417.31,,
http://statistics.data.gov.uk/id/local-authority-district/23UB,Cheltenham Borough Council,459529,9094,EMMDEE BUILDING SERVICES,C-E21100-1801,Car Prks-Off St-RM-Electrical repairs,21-Oct-11,249.59,,
http://statistics.data.gov.uk/id/local-authority-district/23UB,Cheltenham Borough Council,459526,9855,EMMDEE BUILDING SERVICES,C-E21100-1801,Car Prks-Off St-RM-Electrical repairs,21-Oct-11,11.25,,
http://statistics.data.gov.uk/id/local-authority-district/23UB,Cheltenham Borough Council,459951,9853,EMMDEE BUILDING SERVICES,C-L11500-1801,Rec Facilities-RM-Electrical repairs,21-Oct-11,90.00,,
http://statistics.data.gov.uk/id/local-authority-district/23UB,Cheltenham Borough Council,459520,9693,EMMDEE BUILDING SERVICES,C-L11500-1801,Rec Facilities-RM-Electrical repairs,21-Oct-11,22.50,,
http://statistics.data.gov.uk/id/local-authority-district/23UB,Cheltenham Borough Council,459521,9751,EMMDEE BUILDING SERVICES,C-L11500-1801,Rec Facilities-RM-Electrical repairs,21-Oct-11,101.25,,
http://statistics.data.gov.uk/id/local-authority-district/23UB,Cheltenham Borough Council,459256,9745,EMMDEE BUILDING SERVICES,C-L21100-1801,Town Hall-RM-Electrical repairs,21-Oct-11,185.00,,
http://statistics.data.gov.uk/id/local-authority-district/23UB,Cheltenham Borough Council,459523,9749,EMMDEE BUILDING SERVICES,C-L21100-1801,Town Hall-RM-Electrical repairs,21-Oct-11,57.68,,
http://statistics.data.gov.uk/id/local-authority-district/23UB,Cheltenham Borough Council,459528,9637,EMMDEE BUILDING SERVICES,C-L21100-1801,Town Hall-RM-Electrical repairs,21-Oct-11,22.50,,
http://statistics.data.gov.uk/id/local-authority-district/23UB,Cheltenham Borough Council,459525,9854,EMMDEE BUILDING SERVICES,C-L21100-1801,Town Hall-RM-Electrical repairs,21-Oct-11,67.50,,
http://statistics.data.gov.uk/id/local-authority-district/23UB,Cheltenham Borough Council,460079,301267/9/2011,ENER-G,C-L11500-1402,Rec Facilities-Electricity,28-Oct-11,"2,733.65",,
http://statistics.data.gov.uk/id/local-authority-district/23UB,Cheltenham Borough Council,460300,1678,ERADICURE LIMITED,C-H4214G-1104,Gen Wks 2214-Council House repairs,28-Oct-11,600.00,,
http://statistics.data.gov.uk/id/local-authority-district/23UB,Cheltenham Borough Council,459984,SETTLEMENT,EUROPEAN EVENTS CORPORATION LTD,C-N13125-9205,ASH Ledger-Town Hall Invoices Paid,21-Oct-11,-292.73,,
http://statistics.data.gov.uk/id/local-authority-district/23UB,Cheltenham Borough Council,459984,SETTLEMENT,EUROPEAN EVENTS CORPORATION LTD,C-Z12210-9128,Box Off A/C-Agent tickets paid out,21-Oct-11,"2,204.50",,
http://statistics.data.gov.uk/id/local-authority-district/23UB,Cheltenham Borough Council,458935,REDACTED,FARMINGTON BUILDERS,C-HC4100-C801,Dis.Adapt.HRA-Grants,14-Oct-11,"4,837.00",,
http://statistics.data.gov.uk/id/local-authority-district/23UB,Cheltenham Borough Council,460375,REDACTED,FARMINGTON BUILDERS,C-HC7440-C801,DFG.96.Act-Grants,28-Oct-11,"4,418.00",,
http://statistics.data.gov.uk/id/local-authority-district/23UB,Cheltenham Borough Council,459353,5003,FERNMONT LIMITED,C-HC4867-C302,Misc Works-Building Contractor,21-Oct-11,800.00,,
http://statistics.data.gov.uk/id/local-authority-district/23UB,Cheltenham Borough Council,459354,5005,FERNMONT LIMITED,C-HC4867-C302,Misc Works-Building Contractor,21-Oct-11,450.00,,
http://statistics.data.gov.uk/id/local-authority-district/23UB,Cheltenham Borough Council,459355,5004,FERNMONT LIMITED,C-HC4867-C302,Misc Works-Building Contractor,21-Oct-11,450.00,,
http://statistics.data.gov.uk/id/local-authority-district/23UB,Cheltenham Borough Council,459000,1091,FLU EXPRESS LIMITED,C-D12300-3250,Personnel and P-Occupational Health,14-Oct-11,940.50,,
http://statistics.data.gov.uk/id/local-authority-district/23UB,Cheltenham Borough Council,460096,1157,FLU EXPRESS LIMITED,C-D12300-3250,Personnel and P-Occupational Health,28-Oct-11,595.00,,
http://statistics.data.gov.uk/id/local-authority-district/23UB,Cheltenham Borough Council,458806,0379,FRONTLINE COMMUNICATION,C-L41100-3501,AG & M-Hire of outside services,07-Oct-11,"1,100.00",,
http://statistics.data.gov.uk/id/local-authority-district/23UB,Cheltenham Borough Council,460504,1002,FURNACE CONSTRUCTION CO LIMITED,C-E63100-1215,Cemetery & Crem-Cremator servicing & rep,28-Oct-11,"1,568.40",,
http://statistics.data.gov.uk/id/local-authority-district/23UB,Cheltenham Borough Council,458735,5196,FUTRA LTD,C-C24150-3170,Fleet Managemnt-Fuel system maintenance,07-Oct-11,904.00,,
http://statistics.data.gov.uk/id/local-authority-district/23UB,Cheltenham Borough Council,458616,GMG/SHP/944277,G PAYNE,C-C23100-3934,Ref. Collection-TP Gen-Imprest/Excess,07-Oct-11,"6,000.00",,
http://statistics.data.gov.uk/id/local-authority-district/23UB,Cheltenham Borough Council,459181,80001484,G4S CASH SERVICES (UK) LTD,C-D12450-3502,Cash Rec / Bnkg-Cash transportation,14-Oct-11,294.69,,
http://statistics.data.gov.uk/id/local-authority-district/23UB,Cheltenham Borough Council,459181,80001484,G4S CASH SERVICES (UK) LTD,C-D12450-3502,Cash Rec / Bnkg-Cash transportation,14-Oct-11,488.86,,
http://statistics.data.gov.uk/id/local-authority-district/23UB,Cheltenham Borough Council,459182,80001485,G4S CASH SERVICES (UK) LTD,C-D12455-3502,CarPk Inc Colln-Cash transportation,14-Oct-11,12.04,,
http://statistics.data.gov.uk/id/local-authority-district/23UB,Cheltenham Borough Council,459948,80002699,G4S CASH SERVICES (UK) LTD,C-D12450-3502,Cash Rec / Bnkg-Cash transportation,21-Oct-11,257.07,,
http://statistics.data.gov.uk/id/local-authority-district/23UB,Cheltenham Borough Council,459948,80002699,G4S CASH SERVICES (UK) LTD,C-D12450-3502,Cash Rec / Bnkg-Cash transportation,21-Oct-11,436.98,,
http://statistics.data.gov.uk/id/local-authority-district/23UB,Cheltenham Borough Council,459949,01428724,G4S CASH SERVICES (UK) LTD,C-D12450-3502,Cash Rec / Bnkg-Cash transportation,21-Oct-11,694.81,,
http://statistics.data.gov.uk/id/local-authority-district/23UB,Cheltenham Borough Council,459947,80002700,G4S CASH SERVICES (UK) LTD,C-D12455-3502,CarPk Inc Colln-Cash transportation,21-Oct-11,13.26,,
http://statistics.data.gov.uk/id/local-authority-district/23UB,Cheltenham Borough Council,459950,01428673,G4S CASH SERVICES (UK) LTD,C-D12455-3502,CarPk Inc Colln-Cash transportation,21-Oct-11,906.20,,
http://statistics.data.gov.uk/id/local-authority-district/23UB,Cheltenham Borough Council,460086,3329,GAVCA,C-D39150-3800,SLA-CCAVA-One-Off Grant Expenditure,28-Oct-11,"5,000.00",,
http://statistics.data.gov.uk/id/local-authority-district/23UB,Cheltenham Borough Council,460085,3208,GAVCA,C-D39150-3801,SLA-GCVS (Cheltenham)-Grants,28-Oct-11,"17,000.00",,
http://statistics.data.gov.uk/id/local-authority-district/23UB,Cheltenham Borough Council,448381,B59622,GEESINK NORBA,C-C24100-3501,Fleet Maint-Hire of outside services,07-Oct-11,365.71,,
http://statistics.data.gov.uk/id/local-authority-district/23UB,Cheltenham Borough Council,447242,011628,GEESINK NORBA,C-C24100-3582,Fleet Maint-DSO Invoices,07-Oct-11,-722.24,,
http://statistics.data.gov.uk/id/local-authority-district/23UB,Cheltenham Borough Council,448380,B59539,GEESINK NORBA,C-C24100-3582,Fleet Maint-DSO Invoices,07-Oct-11,135.77,,
http://statistics.data.gov.uk/id/local-authority-district/23UB,Cheltenham Borough Council,458716,865764,GEESINK NORBA,C-C24100-3582,Fleet Maint-DSO Invoices,07-Oct-11,812.54,,
http://statistics.data.gov.uk/id/local-authority-district/23UB,Cheltenham Borough Council,458441,RND12111/08/11,GILLMANS SERVICE,C-H33400-3102,Sheltered.Hsg-Equipment rental,07-Oct-11,62.62,,
http://statistics.data.gov.uk/id/local-authority-district/23UB,Cheltenham Borough Council,458443,RND1181/08/11,GILLMANS SERVICE,C-H33400-3102,Sheltered.Hsg-Equipment rental,07-Oct-11,48.15,,
http://statistics.data.gov.uk/id/local-authority-district/23UB,Cheltenham Borough Council,458445,RND1179/08/11,GILLMANS SERVICE,C-H33400-3102,Sheltered.Hsg-Equipment rental,07-Oct-11,60.09,,
http://statistics.data.gov.uk/id/local-authority-district/23UB,Cheltenham Borough Council,458447,RND1144/08/11,GILLMANS SERVICE,C-H33400-3102,Sheltered.Hsg-Equipment rental,07-Oct-11,75.00,,
http://statistics.data.gov.uk/id/local-authority-district/23UB,Cheltenham Borough Council,458461,RND1239/08/2011,GILLMANS SERVICE,C-H33400-3102,Sheltered.Hsg-Equipment rental,07-Oct-11,49.63,,
http://statistics.data.gov.uk/id/local-authority-district/23UB,Cheltenham Borough Council,458460,RND112/08/11,GILLMANS SERVICE,C-H33400-3102,Sheltered.Hsg-Equipment rental,07-Oct-11,72.30,,
http://statistics.data.gov.uk/id/local-authority-district/23UB,Cheltenham Borough Council,458459,RND115/08/11,GILLMANS SERVICE,C-H33400-3102,Sheltered.Hsg-Equipment rental,07-Oct-11,40.13,,
http://statistics.data.gov.uk/id/local-authority-district/23UB,Cheltenham Borough Council,458458,RND117/08/11,GILLMANS SERVICE,C-H33400-3102,Sheltered.Hsg-Equipment rental,07-Oct-11,40.13,,
http://statistics.data.gov.uk/id/local-authority-district/23UB,Cheltenham Borough Council,458457,RND124/08/11,GILLMANS SERVICE,C-H33400-3102,Sheltered.Hsg-Equipment rental,07-Oct-11,31.45,,
http://statistics.data.gov.uk/id/local-authority-district/23UB,Cheltenham Borough Council,458456,RND125/08/11,GILLMANS SERVICE,C-H33400-3102,Sheltered.Hsg-Equipment rental,07-Oct-11,34.15,,
http://statistics.data.gov.uk/id/local-authority-district/23UB,Cheltenham Borough Council,458455,RND182/08/11,GILLMANS SERVICE,C-H33400-3102,Sheltered.Hsg-Equipment rental,07-Oct-11,73.65,,
http://statistics.data.gov.uk/id/local-authority-district/23UB,Cheltenham Borough Council,458454,RND187/08/11,GILLMANS SERVICE,C-H33400-3102,Sheltered.Hsg-Equipment rental,07-Oct-11,141.90,,
http://statistics.data.gov.uk/id/local-authority-district/23UB,Cheltenham Borough Council,458453,RND190/08/11,GILLMANS SERVICE,C-H33400-3102,Sheltered.Hsg-Equipment rental,07-Oct-11,35.00,,
http://statistics.data.gov.uk/id/local-authority-district/23UB,Cheltenham Borough Council,458452,RND192/08/11,GILLMANS SERVICE,C-H33400-3102,Sheltered.Hsg-Equipment rental,07-Oct-11,49.50,,
http://statistics.data.gov.uk/id/local-authority-district/23UB,Cheltenham Borough Council,458451,RND1107/08/11,GILLMANS SERVICE,C-H33400-3102,Sheltered.Hsg-Equipment rental,07-Oct-11,33.95,,
http://statistics.data.gov.uk/id/local-authority-district/23UB,Cheltenham Borough Council,458450,RND1126/08/11,GILLMANS SERVICE,C-H33400-3102,Sheltered.Hsg-Equipment rental,07-Oct-11,42.00,,
http://statistics.data.gov.uk/id/local-authority-district/23UB,Cheltenham Borough Council,458449,RND1131/08/11,GILLMANS SERVICE,C-H33400-3102,Sheltered.Hsg-Equipment rental,07-Oct-11,43.00,,
http://statistics.data.gov.uk/id/local-authority-district/23UB,Cheltenham Borough Council,458448,RND1143/08/11,GILLMANS SERVICE,C-H33400-3102,Sheltered.Hsg-Equipment rental,07-Oct-11,46.60,,
http://statistics.data.gov.uk/id/local-authority-district/23UB,Cheltenham Borough Council,458446,RND1145/08/11,GILLMANS SERVICE,C-H33400-3102,Sheltered.Hsg-Equipment rental,07-Oct-11,46.60,,
http://statistics.data.gov.uk/id/local-authority-district/23UB,Cheltenham Borough Council,458444,RND1180/08/11,GILLMANS SERVICE,C-H33400-3102,Sheltered.Hsg-Equipment rental,07-Oct-11,50.55,,
http://statistics.data.gov.uk/id/local-authority-district/23UB,Cheltenham Borough Council,458442,RND1203/08/11,GILLMANS SERVICE,C-H33400-3102,Sheltered.Hsg-Equipment rental,07-Oct-11,59.65,,
http://statistics.data.gov.uk/id/local-authority-district/23UB,Cheltenham Borough Council,458440,RND1212/08/11,GILLMANS SERVICE,C-H33400-3102,Sheltered.Hsg-Equipment rental,07-Oct-11,53.52,,
http://statistics.data.gov.uk/id/local-authority-district/23UB,Cheltenham Borough Council,460306,RND1145/09/11,GILLMANS SERVICE,C-H33400-3102,Sheltered.Hsg-Equipment rental,28-Oct-11,46.60,,
http://statistics.data.gov.uk/id/local-authority-district/23UB,Cheltenham Borough Council,460308,RND112/09/11,GILLMANS SERVICE,C-H33400-3102,Sheltered.Hsg-Equipment rental,28-Oct-11,72.30,,
http://statistics.data.gov.uk/id/local-authority-district/23UB,Cheltenham Borough Council,460307,RND1144/09/11,GILLMANS SERVICE,C-H33400-3102,Sheltered.Hsg-Equipment rental,28-Oct-11,75.00,,
http://statistics.data.gov.uk/id/local-authority-district/23UB,Cheltenham Borough Council,460309,RND115/09/11,GILLMANS SERVICE,C-H33400-3102,Sheltered.Hsg-Equipment rental,28-Oct-11,40.13,,
http://statistics.data.gov.uk/id/local-authority-district/23UB,Cheltenham Borough Council,460311,RND124/09/11,GILLMANS SERVICE,C-H33400-3102,Sheltered.Hsg-Equipment rental,28-Oct-11,31.45,,
http://statistics.data.gov.uk/id/local-authority-district/23UB,Cheltenham Borough Council,460313,RND1131/09/11,GILLMANS SERVICE,C-H33400-3102,Sheltered.Hsg-Equipment rental,28-Oct-11,43.00,,
http://statistics.data.gov.uk/id/local-authority-district/23UB,Cheltenham Borough Council,460315,RND1107/09/11,GILLMANS SERVICE,C-H33400-3102,Sheltered.Hsg-Equipment rental,28-Oct-11,33.95,,
http://statistics.data.gov.uk/id/local-authority-district/23UB,Cheltenham Borough Council,460324,RND1212/09/11,GILLMANS SERVICE,C-H33400-3102,Sheltered.Hsg-Equipment rental,28-Oct-11,53.52,,
http://statistics.data.gov.uk/id/local-authority-district/23UB,Cheltenham Borough Council,460323,RND1179/09/11,GILLMANS SERVICE,C-H33400-3102,Sheltered.Hsg-Equipment rental,28-Oct-11,60.09,,
http://statistics.data.gov.uk/id/local-authority-district/23UB,Cheltenham Borough Council,460322,RND1180/09/11,GILLMANS SERVICE,C-H33400-3102,Sheltered.Hsg-Equipment rental,28-Oct-11,50.55,,
http://statistics.data.gov.uk/id/local-authority-district/23UB,Cheltenham Borough Council,460321,RND1181/09/11,GILLMANS SERVICE,C-H33400-3102,Sheltered.Hsg-Equipment rental,28-Oct-11,48.15,,
http://statistics.data.gov.uk/id/local-authority-district/23UB,Cheltenham Borough Council,460320,rnd125/09/11,GILLMANS SERVICE,C-H33400-3102,Sheltered.Hsg-Equipment rental,28-Oct-11,34.15,,
http://statistics.data.gov.uk/id/local-authority-district/23UB,Cheltenham Borough Council,460319,RND182/09/11,GILLMANS SERVICE,C-H33400-3102,Sheltered.Hsg-Equipment rental,28-Oct-11,73.65,,
http://statistics.data.gov.uk/id/local-authority-district/23UB,Cheltenham Borough Council,460318,RND187/09/11,GILLMANS SERVICE,C-H33400-3102,Sheltered.Hsg-Equipment rental,28-Oct-11,141.90,,
http://statistics.data.gov.uk/id/local-authority-district/23UB,Cheltenham Borough Council,460317,RND190//09/11,GILLMANS SERVICE,C-H33400-3102,Sheltered.Hsg-Equipment rental,28-Oct-11,35.00,,
http://statistics.data.gov.uk/id/local-authority-district/23UB,Cheltenham Borough Council,460316,RND192/09/11,GILLMANS SERVICE,C-H33400-3102,Sheltered.Hsg-Equipment rental,28-Oct-11,49.50,,
http://statistics.data.gov.uk/id/local-authority-district/23UB,Cheltenham Borough Council,460327,RND1239/09/2011,GILLMANS SERVICE,C-H33400-3102,Sheltered.Hsg-Equipment rental,28-Oct-11,49.63,,
http://statistics.data.gov.uk/id/local-authority-district/23UB,Cheltenham Borough Council,460326,RND1203/09/11,GILLMANS SERVICE,C-H33400-3102,Sheltered.Hsg-Equipment rental,28-Oct-11,59.65,,
http://statistics.data.gov.uk/id/local-authority-district/23UB,Cheltenham Borough Council,460325,RND1211/09/11,GILLMANS SERVICE,C-H33400-3102,Sheltered.Hsg-Equipment rental,28-Oct-11,62.62,,
http://statistics.data.gov.uk/id/local-authority-district/23UB,Cheltenham Borough Council,460314,RND1126/09/11,GILLMANS SERVICE,C-H33400-3102,Sheltered.Hsg-Equipment rental,28-Oct-11,42.00,,
http://statistics.data.gov.uk/id/local-authority-district/23UB,Cheltenham Borough Council,460312,RND1143/09/11,GILLMANS SERVICE,C-H33400-3102,Sheltered.Hsg-Equipment rental,28-Oct-11,46.60,,
http://statistics.data.gov.uk/id/local-authority-district/23UB,Cheltenham Borough Council,460310,RND1117/09/11,GILLMANS SERVICE,C-H33400-3102,Sheltered.Hsg-Equipment rental,28-Oct-11,40.13,,
http://statistics.data.gov.uk/id/local-authority-district/23UB,Cheltenham Borough Council,458913,613625,GLASDON UK LTD,C-B51160-3501,Civic Pride-Hire of outside services,14-Oct-11,573.03,,
http://statistics.data.gov.uk/id/local-authority-district/23UB,Cheltenham Borough Council,460000,22905,GLIDE MEDIA MARKETING,C-L31100-3510,TIC-Promotion & Marketing,21-Oct-11,90.20,,
http://statistics.data.gov.uk/id/local-authority-district/23UB,Cheltenham Borough Council,459997,23066,GLIDE MEDIA MARKETING,C-L31100-3510,TIC-Promotion & Marketing,21-Oct-11,315.00,,
http://statistics.data.gov.uk/id/local-authority-district/23UB,Cheltenham Borough Council,459999,22904,GLIDE MEDIA MARKETING,C-L31100-3510,TIC-Promotion & Marketing,21-Oct-11,90.20,,
http://statistics.data.gov.uk/id/local-authority-district/23UB,Cheltenham Borough Council,459998,23065,GLIDE MEDIA MARKETING,C-L31100-3510,TIC-Promotion & Marketing,21-Oct-11,"1,233.60",,
http://statistics.data.gov.uk/id/local-authority-district/23UB,Cheltenham Borough Council,459161,1800200516,GLOUCESTERSHIRE COUNTY COUNCIL,C-D12310-0205,Corporate Trg-Training fees/exp (Corp),14-Oct-11,100.00,,
http://statistics.data.gov.uk/id/local-authority-district/23UB,Cheltenham Borough Council,459199,1800199594,GLOUCESTERSHIRE COUNTY COUNCIL,C-E36200-4528,On-St Car Prkng-Net income paid to GCC,14-Oct-11,"119,286.34",,
http://statistics.data.gov.uk/id/local-authority-district/23UB,Cheltenham Borough Council,458998,1800199486,GLOUCESTERSHIRE COUNTY COUNCIL,C-E36200-3501,On-St Car Prkng-Hire of outside services,21-Oct-11,96.00,,
http://statistics.data.gov.uk/id/local-authority-district/23UB,Cheltenham Borough Council,459179,0014/2011,GLOUCESTERSHIRE COUNTY COUNCIL,C-D21950-3501,Community Plan-Hire of outside services,21-Oct-11,"2,000.00",,
http://statistics.data.gov.uk/id/local-authority-district/23UB,Cheltenham Borough Council,460082,1800202889,GLOUCESTERSHIRE COUNTY COUNCIL,C-D11715-3501,Nghbd Man Servs-Hire of outside services,28-Oct-11,139.73,,
http://statistics.data.gov.uk/id/local-authority-district/23UB,Cheltenham Borough Council,460164,1800200643,GLOUCESTERSHIRE COUNTY COUNCIL,C-D21250-3925,Civil Emergency-Civil Emergency planning,28-Oct-11,"13,990.00",,
http://statistics.data.gov.uk/id/local-authority-district/23UB,Cheltenham Borough Council,460165,1800202898,GLOUCESTERSHIRE COUNTY COUNCIL,C-D21600-3503,Land Charges-Fees,28-Oct-11,"12,057.88",,
http://statistics.data.gov.uk/id/local-authority-district/23UB,Cheltenham Borough Council,460330,ADULT ED FOOD,GLOUCESTERSHIRE COUNTY COUNCIL,C-D39120-3801,SLA- R.Equality-Grants,28-Oct-11,720.00,,
http://statistics.data.gov.uk/id/local-authority-district/23UB,Cheltenham Borough Council,458654,CHEL09,GLOUCESTERSHIRE DEVELOPMENT AGENCY,C-L31100-3623,TIC-Cmpter-sftwre lic purch,07-Oct-11,"1,550.00",,
http://statistics.data.gov.uk/id/local-authority-district/23UB,Cheltenham Borough Council,460084,1628,GLOUCESTERSHIRE WILDLIFE TRUST,C-D21970-3677,Parish Pride-Parish Council - Community,28-Oct-11,"2,486.12",,
http://statistics.data.gov.uk/id/local-authority-district/23UB,Cheltenham Borough Council,458731,47884,GOOCH GROUP LTD,C-D14100-3501,Depot Building-Hire of outside services,07-Oct-11,200.00,,
http://statistics.data.gov.uk/id/local-authority-district/23UB,Cheltenham Borough Council,458473,47259,GOOCH GROUP LTD,C-H4209G-1104,Gen Wks 2209-Council House repairs,07-Oct-11,"1,129.21",,
http://statistics.data.gov.uk/id/local-authority-district/23UB,Cheltenham Borough Council,460453,48133,GOOCH GROUP LTD,C-E21100-1701,Car Prks-Off St-Cleaning,28-Oct-11,73.11,,
http://statistics.data.gov.uk/id/local-authority-district/23UB,Cheltenham Borough Council,460517,48156,GOOCH GROUP LTD,C-E21100-1701,Car Prks-Off St-Cleaning,28-Oct-11,560.00,,
http://statistics.data.gov.uk/id/local-authority-district/23UB,Cheltenham Borough Council,460522,48384,GOOCH GROUP LTD,C-E21100-1701,Car Prks-Off St-Cleaning,28-Oct-11,144.73,,
http://statistics.data.gov.uk/id/local-authority-district/23UB,Cheltenham Borough Council,460455,48238,GOOCH GROUP LTD,C-E21100-1701,Car Prks-Off St-Cleaning,28-Oct-11,167.13,,
http://statistics.data.gov.uk/id/local-authority-district/23UB,Cheltenham Borough Council,460157,48350,GOOCH GROUP LTD,C-L11500-1706,Rec Facilities-Cleaning,28-Oct-11,14.84,,
http://statistics.data.gov.uk/id/local-authority-district/23UB,Cheltenham Borough Council,460157,48350,GOOCH GROUP LTD,C-L11500-1706,Rec Facilities-Cleaning,28-Oct-11,29.68,,
http://statistics.data.gov.uk/id/local-authority-district/23UB,Cheltenham Borough Council,460157,48350,GOOCH GROUP LTD,C-L11500-1706,Rec Facilities-Cleaning,28-Oct-11,20.38,,
http://statistics.data.gov.uk/id/local-authority-district/23UB,Cheltenham Borough Council,460074,47885,GOOCH GROUP LTD,C-L41100-1703,AG & M-Window cleaning,28-Oct-11,132.00,,
http://statistics.data.gov.uk/id/local-authority-district/23UB,Cheltenham Borough Council,460075,48004,GOOCH GROUP LTD,C-L41100-1703,AG & M-Window cleaning,28-Oct-11,117.00,,
http://statistics.data.gov.uk/id/local-authority-district/23UB,Cheltenham Borough Council,460118,349,GPL GREENWAY PARTNERSHIP LIMITED,C-C22110-1301,Parks & Gardens-Routine grounds maint,28-Oct-11,151.20,,
http://statistics.data.gov.uk/id/local-authority-district/23UB,Cheltenham Borough Council,460120,347,GPL GREENWAY PARTNERSHIP LIMITED,C-C22110-1301,Parks & Gardens-Routine grounds maint,28-Oct-11,395.60,,
http://statistics.data.gov.uk/id/local-authority-district/23UB,Cheltenham Borough Council,460121,348,GPL GREENWAY PARTNERSHIP LIMITED,C-C22110-1301,Parks & Gardens-Routine grounds maint,28-Oct-11,315.00,,
http://statistics.data.gov.uk/id/local-authority-district/23UB,Cheltenham Borough Council,460119,350,GPL GREENWAY PARTNERSHIP LIMITED,C-C22110-1301,Parks & Gardens-Routine grounds maint,28-Oct-11,64.00,,
http://statistics.data.gov.uk/id/local-authority-district/23UB,Cheltenham Borough Council,460199,18/016753,GREENHAM TOOL CO LTD,C-N42250-3112,DSO Stores - Stock purchases,28-Oct-11,793.80,,
http://statistics.data.gov.uk/id/local-authority-district/23UB,Cheltenham Borough Council,460198,18/016754,GREENHAM TOOL CO LTD,C-N42250-3112,DSO Stores - Stock purchases,28-Oct-11,228.80,,
http://statistics.data.gov.uk/id/local-authority-district/23UB,Cheltenham Borough Council,458659,328,GREENWAY PARTNERSHIP LIMITED,C-D13100-1809,Muni Off Blgs-RM-sanitary works,07-Oct-11,33.75,,
http://statistics.data.gov.uk/id/local-authority-district/23UB,Cheltenham Borough Council,458660,330,GREENWAY PARTNERSHIP LIMITED,C-D13100-1809,Muni Off Blgs-RM-sanitary works,07-Oct-11,29.00,,
http://statistics.data.gov.uk/id/local-authority-district/23UB,Cheltenham Borough Council,458669,361,GREENWAY PARTNERSHIP LIMITED,C-D13100-1809,Muni Off Blgs-RM-sanitary works,07-Oct-11,90.00,,
http://statistics.data.gov.uk/id/local-authority-district/23UB,Cheltenham Borough Council,458773,355,GREENWAY PARTNERSHIP LIMITED,C-L41100-3131,AG & M-Exhibition & Display,07-Oct-11,198.00,,
http://statistics.data.gov.uk/id/local-authority-district/23UB,Cheltenham Borough Council,458776,354,GREENWAY PARTNERSHIP LIMITED,C-L41100-3131,AG & M-Exhibition & Display,07-Oct-11,120.00,,
http://statistics.data.gov.uk/id/local-authority-district/23UB,Cheltenham Borough Council,458776,354,GREENWAY PARTNERSHIP LIMITED,C-L41100-3131,AG & M-Exhibition & Display,07-Oct-11,156.00,,
http://statistics.data.gov.uk/id/local-authority-district/23UB,Cheltenham Borough Council,458776,354,GREENWAY PARTNERSHIP LIMITED,C-L41100-3131,AG & M-Exhibition & Display,07-Oct-11,120.00,,
http://statistics.data.gov.uk/id/local-authority-district/23UB,Cheltenham Borough Council,458776,354,GREENWAY PARTNERSHIP LIMITED,C-L41100-3131,AG & M-Exhibition & Display,07-Oct-11,86.00,,
http://statistics.data.gov.uk/id/local-authority-district/23UB,Cheltenham Borough Council,458776,354,GREENWAY PARTNERSHIP LIMITED,C-L41100-3131,AG & M-Exhibition & Display,07-Oct-11,38.00,,
http://statistics.data.gov.uk/id/local-authority-district/23UB,Cheltenham Borough Council,460371,REDACTED,GROVE BUILDING SERVICES,C-HC4100-C801,Dis.Adapt.HRA-Grants,28-Oct-11,"20,590.00",,
http://statistics.data.gov.uk/id/local-authority-district/23UB,Cheltenham Borough Council,460361,REDACTED,GROVE BUILDING SERVICES,C-HC7440-C801,DFG.96.Act-Grants,28-Oct-11,"6,570.00",,
http://statistics.data.gov.uk/id/local-authority-district/23UB,Cheltenham Borough Council,459262,7030,GSB LOAMS,C-C22120-3121,Spts/Open Space-Materials-Contract,21-Oct-11,"1,548.00",,
http://statistics.data.gov.uk/id/local-authority-district/23UB,Cheltenham Borough Council,459906,6021,GYMNOVA,C-L11500-3101,Rec Facilities-Equipment purchases,21-Oct-11,199.00,,
http://statistics.data.gov.uk/id/local-authority-district/23UB,Cheltenham Borough Council,459906,6021,GYMNOVA,C-L11500-3101,Rec Facilities-Equipment purchases,21-Oct-11,210.00,,
http://statistics.data.gov.uk/id/local-authority-district/23UB,Cheltenham Borough Council,459906,6021,GYMNOVA,C-L11500-3101,Rec Facilities-Equipment purchases,21-Oct-11,"3,150.00",,
http://statistics.data.gov.uk/id/local-authority-district/23UB,Cheltenham Borough Council,460357,5232,HALSALL  CONSTRUCTION LIMITED,C-HC4845-C302,Neighbrhd works-Building Contractor,28-Oct-11,"6,321.00",,
http://statistics.data.gov.uk/id/local-authority-district/23UB,Cheltenham Borough Council,460071,1001467570,HAYS MONTROSE,C-IT0074-3501,Waste Company-Hire of outside services,28-Oct-11,"7,200.00",,
http://statistics.data.gov.uk/id/local-authority-district/23UB,Cheltenham Borough Council,460388,SIAL/00052417,HEREFORDSHIRE HOUSING LIMITED,C-H33400-1117,Sheltered.Hsg-Hereford City-Fees,28-Oct-11,481.65,,
http://statistics.data.gov.uk/id/local-authority-district/23UB,Cheltenham Borough Council,460389,SIAL/00052514,HEREFORDSHIRE HOUSING LIMITED,C-H33400-1117,Sheltered.Hsg-Hereford City-Fees,28-Oct-11,152.10,,
http://statistics.data.gov.uk/id/local-authority-district/23UB,Cheltenham Borough Council,460392,SIAL/00052511,HEREFORDSHIRE HOUSING LIMITED,C-H33400-1117,Sheltered.Hsg-Hereford City-Fees,28-Oct-11,121.68,,
http://statistics.data.gov.uk/id/local-authority-district/23UB,Cheltenham Borough Council,460394,SIAL/00052509,HEREFORDSHIRE HOUSING LIMITED,C-H33400-1117,Sheltered.Hsg-Hereford City-Fees,28-Oct-11,456.30,,
http://statistics.data.gov.uk/id/local-authority-district/23UB,Cheltenham Borough Council,460396,SIAL/00052507,HEREFORDSHIRE HOUSING LIMITED,C-H33400-1117,Sheltered.Hsg-Hereford City-Fees,28-Oct-11,344.76,,
http://statistics.data.gov.uk/id/local-authority-district/23UB,Cheltenham Borough Council,460398,SIAL/00052505,HEREFORDSHIRE HOUSING LIMITED,C-H33400-1117,Sheltered.Hsg-Hereford City-Fees,28-Oct-11,192.66,,
http://statistics.data.gov.uk/id/local-authority-district/23UB,Cheltenham Borough Council,460400,SIAL/00052503,HEREFORDSHIRE HOUSING LIMITED,C-H33400-1117,Sheltered.Hsg-Hereford City-Fees,28-Oct-11,375.18,,
http://statistics.data.gov.uk/id/local-authority-district/23UB,Cheltenham Borough Council,460403,SIAL/00052569,HEREFORDSHIRE HOUSING LIMITED,C-H33400-1117,Sheltered.Hsg-Hereford City-Fees,28-Oct-11,"5,149.03",,
http://statistics.data.gov.uk/id/local-authority-district/23UB,Cheltenham Borough Council,460402,SIAL/00052501,HEREFORDSHIRE HOUSING LIMITED,C-H33400-1117,Sheltered.Hsg-Hereford City-Fees,28-Oct-11,182.52,,
http://statistics.data.gov.uk/id/local-authority-district/23UB,Cheltenham Borough Council,460401,SIAL/00052502,HEREFORDSHIRE HOUSING LIMITED,C-H33400-1117,Sheltered.Hsg-Hereford City-Fees,28-Oct-11,243.36,,
http://statistics.data.gov.uk/id/local-authority-district/23UB,Cheltenham Borough Council,460399,SIAL/00052504,HEREFORDSHIRE HOUSING LIMITED,C-H33400-1117,Sheltered.Hsg-Hereford City-Fees,28-Oct-11,45.63,,
http://statistics.data.gov.uk/id/local-authority-district/23UB,Cheltenham Borough Council,460397,SIAL/00052506,HEREFORDSHIRE HOUSING LIMITED,C-H33400-1117,Sheltered.Hsg-Hereford City-Fees,28-Oct-11,50.70,,
http://statistics.data.gov.uk/id/local-authority-district/23UB,Cheltenham Borough Council,460395,SIAL/00052508,HEREFORDSHIRE HOUSING LIMITED,C-H33400-1117,Sheltered.Hsg-Hereford City-Fees,28-Oct-11,283.92,,
http://statistics.data.gov.uk/id/local-authority-district/23UB,Cheltenham Borough Council,460393,SIAL/00052510,HEREFORDSHIRE HOUSING LIMITED,C-H33400-1117,Sheltered.Hsg-Hereford City-Fees,28-Oct-11,147.03,,
http://statistics.data.gov.uk/id/local-authority-district/23UB,Cheltenham Borough Council,460391,SIAL/00052512,HEREFORDSHIRE HOUSING LIMITED,C-H33400-1117,Sheltered.Hsg-Hereford City-Fees,28-Oct-11,131.82,,
http://statistics.data.gov.uk/id/local-authority-district/23UB,Cheltenham Borough Council,460390,SIAL/00052513,HEREFORDSHIRE HOUSING LIMITED,C-H33400-1117,Sheltered.Hsg-Hereford City-Fees,28-Oct-11,141.96,,
http://statistics.data.gov.uk/id/local-authority-district/23UB,Cheltenham Borough Council,460088,HWP 11-12,HESTERS WAY PARTNERSHIP LIMITED,C-D37100-3841,Hesters Way-Grants - Hesters Way R.A.,28-Oct-11,"20,100.00",,
http://statistics.data.gov.uk/id/local-authority-district/23UB,Cheltenham Borough Council,458898,6727530,HEWLETT PACKARD LIMITED,C-D11820-3660,IT Infrastructu-Hardware PC & Servers,14-Oct-11,"2,690.00",,
http://statistics.data.gov.uk/id/local-authority-district/23UB,Cheltenham Borough Council,460126,12235,HEYLAND MARINE,C-C22120-1301,Spts/Open Space-Routine grounds maint,28-Oct-11,480.00,,
http://statistics.data.gov.uk/id/local-authority-district/23UB,Cheltenham Borough Council,460126,12235,HEYLAND MARINE,C-C22120-1301,Spts/Open Space-Routine grounds maint,28-Oct-11,68.00,,
http://statistics.data.gov.uk/id/local-authority-district/23UB,Cheltenham Borough Council,460126,12235,HEYLAND MARINE,C-C22120-1301,Spts/Open Space-Routine grounds maint,28-Oct-11,95.00,,
http://statistics.data.gov.uk/id/local-authority-district/23UB,Cheltenham Borough Council,460126,12235,HEYLAND MARINE,C-C22120-1301,Spts/Open Space-Routine grounds maint,28-Oct-11,34.00,,
http://statistics.data.gov.uk/id/local-authority-district/23UB,Cheltenham Borough Council,459863,19861,HOGE 100 BUSINESS SYSTEMS LTD,C-E63100-3109,Cemetery & Crem-Computer Equipment,21-Oct-11,"3,329.00",,
http://statistics.data.gov.uk/id/local-authority-district/23UB,Cheltenham Borough Council,460356,150062AA9,IAN WILLIAMS LIMITED,C-H45205-1104,Ext Repairs & R-Council House repairs,28-Oct-11,"24,208.88",,
http://statistics.data.gov.uk/id/local-authority-district/23UB,Cheltenham Borough Council,460516,19765,IMPERIAL CIVIL ENFORCEMENT SOLUTIONS LTD,C-E36200-3623,On-St Car Prkng-Cmpter-sftwre lic purch,28-Oct-11,"2,500.00",,
http://statistics.data.gov.uk/id/local-authority-district/23UB,Cheltenham Borough Council,459976,54407183,IMPERIAL COMMERCIALS  LTD,C-C24100-3582,Fleet Maint-DSO Invoices,21-Oct-11,115.00,,
http://statistics.data.gov.uk/id/local-authority-district/23UB,Cheltenham Borough Council,459980,54407240,IMPERIAL COMMERCIALS  LTD,C-C24100-3582,Fleet Maint-DSO Invoices,21-Oct-11,175.00,,
http://statistics.data.gov.uk/id/local-authority-district/23UB,Cheltenham Borough Council,459978,54407201,IMPERIAL COMMERCIALS  LTD,C-C24100-3582,Fleet Maint-DSO Invoices,21-Oct-11,29.00,,
http://statistics.data.gov.uk/id/local-authority-district/23UB,Cheltenham Borough Council,459977,54407174,IMPERIAL COMMERCIALS  LTD,C-C24100-3582,Fleet Maint-DSO Invoices,21-Oct-11,247.00,,
http://statistics.data.gov.uk/id/local-authority-district/23UB,Cheltenham Borough Council,459496,5396,INDUSTRIAL MEDICAL AND SAFETY SVCE LTD,C-D12300-3250,Personnel and P-Occupational Health,21-Oct-11,"1,878.33",,
http://statistics.data.gov.uk/id/local-authority-district/23UB,Cheltenham Borough Council,458771,PSI015455,INTRINSIC TECHNOLOGY LIMITED,C-DC4003-C101,Telephy Switch-Project Est for this Year,07-Oct-11,"2,072.00",,
http://statistics.data.gov.uk/id/local-authority-district/23UB,Cheltenham Borough Council,458771,PSI015455,INTRINSIC TECHNOLOGY LIMITED,C-DC4003-C101,Telephy Switch-Project Est for this Year,07-Oct-11,"1,008.00",,
http://statistics.data.gov.uk/id/local-authority-district/23UB,Cheltenham Borough Council,458771,PSI015455,INTRINSIC TECHNOLOGY LIMITED,C-DC4003-C101,Telephy Switch-Project Est for this Year,07-Oct-11,"9,514.96",,
http://statistics.data.gov.uk/id/local-authority-district/23UB,Cheltenham Borough Council,458771,PSI015455,INTRINSIC TECHNOLOGY LIMITED,C-DC4003-C101,Telephy Switch-Project Est for this Year,07-Oct-11,"16,128.00",,
http://statistics.data.gov.uk/id/local-authority-district/23UB,Cheltenham Borough Council,458771,PSI015455,INTRINSIC TECHNOLOGY LIMITED,C-DC4003-C101,Telephy Switch-Project Est for this Year,07-Oct-11,796.13,,
http://statistics.data.gov.uk/id/local-authority-district/23UB,Cheltenham Borough Council,458771,PSI015455,INTRINSIC TECHNOLOGY LIMITED,C-DC4003-C101,Telephy Switch-Project Est for this Year,07-Oct-11,"6,953.34",,
http://statistics.data.gov.uk/id/local-authority-district/23UB,Cheltenham Borough Council,458771,PSI015455,INTRINSIC TECHNOLOGY LIMITED,C-DC4003-C101,Telephy Switch-Project Est for this Year,07-Oct-11,526.33,,
http://statistics.data.gov.uk/id/local-authority-district/23UB,Cheltenham Borough Council,458771,PSI015455,INTRINSIC TECHNOLOGY LIMITED,C-DC4003-C101,Telephy Switch-Project Est for this Year,07-Oct-11,"1,654.80",,
http://statistics.data.gov.uk/id/local-authority-district/23UB,Cheltenham Borough Council,458807,CSIC60102-2,ISG PEARCE LIMITED,C-LC4006-C402,AG&M Dev Scheme-Building Contractor,14-Oct-11,"91,228.00",,
http://statistics.data.gov.uk/id/local-authority-district/23UB,Cheltenham Borough Council,459254,P33127CP/110910,J & S SEDDON PAINTING LTD,C-L21200-3501,Pump Room-Hire of outside services,21-Oct-11,567.00,,
http://statistics.data.gov.uk/id/local-authority-district/23UB,Cheltenham Borough Council,459254,P33127CP/110910,J & S SEDDON PAINTING LTD,C-L21200-3501,Pump Room-Hire of outside services,21-Oct-11,24.00,,
http://statistics.data.gov.uk/id/local-authority-district/23UB,Cheltenham Borough Council,458897,81,J.J.MORRELL,C-D11400-3501,Audit & Assrnce-Hire of outside services,14-Oct-11,"2,389.50",,
http://statistics.data.gov.uk/id/local-authority-district/23UB,Cheltenham Borough Council,460463,802,JASON R C BAYLISS,C-C22110-1301,Parks & Gardens-Routine grounds maint,28-Oct-11,35.00,,
http://statistics.data.gov.uk/id/local-authority-district/23UB,Cheltenham Borough Council,460143,699,JASON R C BAYLISS,C-C22110-1805,Parks & Gardens-RM-Int. fixtures/fitting,28-Oct-11,45.00,,
http://statistics.data.gov.uk/id/local-authority-district/23UB,Cheltenham Borough Council,460144,706,JASON R C BAYLISS,C-C22120-1119,Spts/Open Space-Playground Maint,28-Oct-11,860.00,,
http://statistics.data.gov.uk/id/local-authority-district/23UB,Cheltenham Borough Council,460145,707,JASON R C BAYLISS,C-C22120-1119,Spts/Open Space-Playground Maint,28-Oct-11,185.00,,
http://statistics.data.gov.uk/id/local-authority-district/23UB,Cheltenham Borough Council,460147,709,JASON R C BAYLISS,C-C22120-1119,Spts/Open Space-Playground Maint,28-Oct-11,265.00,,
http://statistics.data.gov.uk/id/local-authority-district/23UB,Cheltenham Borough Council,460146,708,JASON R C BAYLISS,C-C22120-1119,Spts/Open Space-Playground Maint,28-Oct-11,123.50,,
http://statistics.data.gov.uk/id/local-authority-district/23UB,Cheltenham Borough Council,460485,801,JASON R C BAYLISS,C-C22120-1301,Spts/Open Space-Routine grounds maint,28-Oct-11,"1,041.00",,
http://statistics.data.gov.uk/id/local-authority-district/23UB,Cheltenham Borough Council,460149,702,JASON R C BAYLISS,C-C22120-3874,Spts/Open Space-Grants-Conservation,28-Oct-11,170.00,,
http://statistics.data.gov.uk/id/local-authority-district/23UB,Cheltenham Borough Council,460472,800,JASON R C BAYLISS,C-LC6006-C306,Play Area Maint-Landscape Contractor,28-Oct-11,"1,300.00",,
http://statistics.data.gov.uk/id/local-authority-district/23UB,Cheltenham Borough Council,460142,705,JASON R C BAYLISS,C-LC6006-C601,Play Area Maint-Equipment,28-Oct-11,475.00,,
http://statistics.data.gov.uk/id/local-authority-district/23UB,Cheltenham Borough Council,460142,705,JASON R C BAYLISS,C-LC6006-C601,Play Area Maint-Equipment,28-Oct-11,146.50,,
http://statistics.data.gov.uk/id/local-authority-district/23UB,Cheltenham Borough Council,460142,705,JASON R C BAYLISS,C-N11250-9227,Excluded,28-Oct-11,-85.40,,
http://statistics.data.gov.uk/id/local-authority-district/23UB,Cheltenham Borough Council,460143,699,JASON R C BAYLISS,C-N11250-9227,Excluded,28-Oct-11,-5.00,,
http://statistics.data.gov.uk/id/local-authority-district/23UB,Cheltenham Borough Council,460144,706,JASON R C BAYLISS,C-N11250-9227,Excluded,28-Oct-11,-118.40,,
http://statistics.data.gov.uk/id/local-authority-district/23UB,Cheltenham Borough Council,460472,800,JASON R C BAYLISS,C-N11250-9227,Excluded,28-Oct-11,-185.00,,
http://statistics.data.gov.uk/id/local-authority-district/23UB,Cheltenham Borough Council,460463,802,JASON R C BAYLISS,C-N11250-9227,Excluded,28-Oct-11,-3.80,,
http://statistics.data.gov.uk/id/local-authority-district/23UB,Cheltenham Borough Council,460149,702,JASON R C BAYLISS,C-N11250-9227,Excluded,28-Oct-11,-25.00,,
http://statistics.data.gov.uk/id/local-authority-district/23UB,Cheltenham Borough Council,460147,709,JASON R C BAYLISS,C-N11250-9227,Excluded,28-Oct-11,-48.20,,
http://statistics.data.gov.uk/id/local-authority-district/23UB,Cheltenham Borough Council,460485,801,JASON R C BAYLISS,C-N11250-9227,Excluded,28-Oct-11,-152.00,,
http://statistics.data.gov.uk/id/local-authority-district/23UB,Cheltenham Borough Council,460146,708,JASON R C BAYLISS,C-N11250-9227,Excluded,28-Oct-11,-2.00,,
http://statistics.data.gov.uk/id/local-authority-district/23UB,Cheltenham Borough Council,460145,707,JASON R C BAYLISS,C-N11250-9227,Excluded,28-Oct-11,-24.20,,
http://statistics.data.gov.uk/id/local-authority-district/23UB,Cheltenham Borough Council,460156,425193,JC LEISURE CONNEXIONS LTD,C-L11500-3101,Rec Facilities-Equipment purchases,28-Oct-11,10.00,,
http://statistics.data.gov.uk/id/local-authority-district/23UB,Cheltenham Borough Council,460156,425193,JC LEISURE CONNEXIONS LTD,C-L11500-3101,Rec Facilities-Equipment purchases,28-Oct-11,490.00,,
http://statistics.data.gov.uk/id/local-authority-district/23UB,Cheltenham Borough Council,459489,S&P249,JOHN SPIERS & JON BODEN,C-1T30G1-3568,Spiers & Boden-Artist Fees,21-Oct-11,"1,250.00",,
http://statistics.data.gov.uk/id/local-authority-district/23UB,Cheltenham Borough Council,459489,S&P249,JOHN SPIERS & JON BODEN,C-1T30G1-3569,Spiers & Boden-Artist Expenses(TravAccom,21-Oct-11,100.00,,
http://statistics.data.gov.uk/id/local-authority-district/23UB,Cheltenham Borough Council,458559,987,K B BUILDING SERVICES UK LIMITED,C-C22110-3101,Parks & Gardens-Equipment purchases,07-Oct-11,540.00,,
http://statistics.data.gov.uk/id/local-authority-district/23UB,Cheltenham Borough Council,458560,985,K B BUILDING SERVICES UK LIMITED,C-C22110-3101,Parks & Gardens-Equipment purchases,07-Oct-11,"1,920.00",,
http://statistics.data.gov.uk/id/local-authority-district/23UB,Cheltenham Borough Council,458561,983,K B BUILDING SERVICES UK LIMITED,C-C22110-3101,Parks & Gardens-Equipment purchases,07-Oct-11,366.00,,
http://statistics.data.gov.uk/id/local-authority-district/23UB,Cheltenham Borough Council,458816,959,K B BUILDING SERVICES UK LIMITED,C-H4209G-1104,Gen Wks 2209-Council House repairs,07-Oct-11,"3,507.00",,
http://statistics.data.gov.uk/id/local-authority-district/23UB,Cheltenham Borough Council,458816,959,K B BUILDING SERVICES UK LIMITED,C-N11250-9227,Excluded,07-Oct-11,-562.40,,
http://statistics.data.gov.uk/id/local-authority-district/23UB,Cheltenham Borough Council,458561,983,K B BUILDING SERVICES UK LIMITED,C-N11250-9227,Excluded,07-Oct-11,-68.00,,
http://statistics.data.gov.uk/id/local-authority-district/23UB,Cheltenham Borough Council,458560,985,K B BUILDING SERVICES UK LIMITED,C-N11250-9227,Excluded,07-Oct-11,-347.40,,
http://statistics.data.gov.uk/id/local-authority-district/23UB,Cheltenham Borough Council,458559,987,K B BUILDING SERVICES UK LIMITED,C-N11250-9227,Excluded,07-Oct-11,-99.00,,
http://statistics.data.gov.uk/id/local-authority-district/23UB,Cheltenham Borough Council,460412,980,K B BUILDING SERVICES UK LIMITED,C-H4203V-1104,Voids 2203-Council House repairs,28-Oct-11,"1,538.00",,
http://statistics.data.gov.uk/id/local-authority-district/23UB,Cheltenham Borough Council,460289,986,K B BUILDING SERVICES UK LIMITED,C-HC4841-C302,Major Voids-Building Contractor,28-Oct-11,956.00,,
http://statistics.data.gov.uk/id/local-authority-district/23UB,Cheltenham Borough Council,460412,980,K B BUILDING SERVICES UK LIMITED,C-N11250-9227,Excluded,28-Oct-11,-209.00,,
http://statistics.data.gov.uk/id/local-authority-district/23UB,Cheltenham Borough Council,460289,986,K B BUILDING SERVICES UK LIMITED,C-N11250-9227,Excluded,28-Oct-11,-154.00,,
http://statistics.data.gov.uk/id/local-authority-district/23UB,Cheltenham Borough Council,459345,1593,KERRY PLUMBING LIMITED,C-H44752-1104,Dis Adapts-Tech-Council House repairs,21-Oct-11,"1,810.00",,
http://statistics.data.gov.uk/id/local-authority-district/23UB,Cheltenham Borough Council,459345,1593,KERRY PLUMBING LIMITED,C-N11250-9227,Excluded,21-Oct-11,-162.00,,
http://statistics.data.gov.uk/id/local-authority-district/23UB,Cheltenham Borough Council,458893,5500421492,KPMG LLP,C-D21200-3507,Corp Mgt-Audit Commission fees,14-Oct-11,"27,072.50",,
http://statistics.data.gov.uk/id/local-authority-district/23UB,Cheltenham Borough Council,459309,6654,L AND D SCAFFOLDING LIMITED,C-H4203G-1104,Gen Wks 2203-Council House repairs,21-Oct-11,546.00,,
http://statistics.data.gov.uk/id/local-authority-district/23UB,Cheltenham Borough Council,460329,6673,L AND D SCAFFOLDING LIMITED,C-H4214G-1104,Gen Wks 2214-Council House repairs,28-Oct-11,749.00,,
http://statistics.data.gov.uk/id/local-authority-district/23UB,Cheltenham Borough Council,460520,121-002177,L G BROWN ASSOCIATES,C-E21100-3401,Car Prks-Off St-Printing - general,28-Oct-11,995.40,,
http://statistics.data.gov.uk/id/local-authority-district/23UB,Cheltenham Borough Council,460520,121-002177,L G BROWN ASSOCIATES,C-E36200-3401,On-St Car Prkng-Printing - general,28-Oct-11,995.40,,
http://statistics.data.gov.uk/id/local-authority-district/23UB,Cheltenham Borough Council,458673,16-09-2011,LECKHAMPTON VILLAGE HALL,C-D21950-3501,Community Plan-Hire of outside services,07-Oct-11,500.00,,
http://statistics.data.gov.uk/id/local-authority-district/23UB,Cheltenham Borough Council,460134,378953,LISTER WILDER LTD,C-C22120-3874,Spts/Open Space-Grants-Conservation,28-Oct-11,573.18,,
http://statistics.data.gov.uk/id/local-authority-district/23UB,Cheltenham Borough Council,460134,378953,LISTER WILDER LTD,C-C22120-3874,Spts/Open Space-Grants-Conservation,28-Oct-11,158.49,,
http://statistics.data.gov.uk/id/local-authority-district/23UB,Cheltenham Borough Council,458990,3746,LLOYDS TSB,C-L11500-3501,Rec Facilities-Hire of outside services,14-Oct-11,812.25,,
http://statistics.data.gov.uk/id/local-authority-district/23UB,Cheltenham Borough Council,458990,3746,LLOYDS TSB,C-L11500-3501,Rec Facilities-Hire of outside services,14-Oct-11,125.00,,
http://statistics.data.gov.uk/id/local-authority-district/23UB,Cheltenham Borough Council,458990,3746,LLOYDS TSB,C-L11500-3501,Rec Facilities-Hire of outside services,14-Oct-11,45.00,,
http://statistics.data.gov.uk/id/local-authority-district/23UB,Cheltenham Borough Council,458997,21998,LLOYDS TSB COMMERCIAL LTD,C-E21100-3501,Car Prks-Off St-Hire of outside services,14-Oct-11,435.00,,
http://statistics.data.gov.uk/id/local-authority-district/23UB,Cheltenham Borough Council,458997,21998,LLOYDS TSB COMMERCIAL LTD,C-E21100-3501,Car Prks-Off St-Hire of outside services,14-Oct-11,435.00,,
http://statistics.data.gov.uk/id/local-authority-district/23UB,Cheltenham Borough Council,458997,21998,LLOYDS TSB COMMERCIAL LTD,C-E21100-3501,Car Prks-Off St-Hire of outside services,14-Oct-11,435.00,,
http://statistics.data.gov.uk/id/local-authority-district/23UB,Cheltenham Borough Council,459939,21999,LLOYDS TSB COMMERCIAL LTD,C-E21100-3501,Car Prks-Off St-Hire of outside services,21-Oct-11,174.00,,
http://statistics.data.gov.uk/id/local-authority-district/23UB,Cheltenham Borough Council,459942,21673,LLOYDS TSB COMMERCIAL LTD,C-E21100-3501,Car Prks-Off St-Hire of outside services,21-Oct-11,449.50,,
http://statistics.data.gov.uk/id/local-authority-district/23UB,Cheltenham Borough Council,459940,21675,LLOYDS TSB COMMERCIAL LTD,C-E21100-3501,Car Prks-Off St-Hire of outside services,21-Oct-11,181.25,,
http://statistics.data.gov.uk/id/local-authority-district/23UB,Cheltenham Borough Council,459942,21673,LLOYDS TSB COMMERCIAL LTD,C-E21100-3501,Car Prks-Off St-Hire of outside services,21-Oct-11,"2,604.00",,
http://statistics.data.gov.uk/id/local-authority-district/23UB,Cheltenham Borough Council,459942,21673,LLOYDS TSB COMMERCIAL LTD,C-E21100-3501,Car Prks-Off St-Hire of outside services,21-Oct-11,449.50,,
http://statistics.data.gov.uk/id/local-authority-district/23UB,Cheltenham Borough Council,459942,21673,LLOYDS TSB COMMERCIAL LTD,C-E21100-3501,Car Prks-Off St-Hire of outside services,21-Oct-11,449.50,,
http://statistics.data.gov.uk/id/local-authority-district/23UB,Cheltenham Borough Council,458891,104850,LOGOTECH,C-D11300-3623,Accountancy-Cmpter-sftwre lic purch,14-Oct-11,"1,500.00",,
http://statistics.data.gov.uk/id/local-authority-district/23UB,Cheltenham Borough Council,458892,104851,LOGOTECH,C-D32700-3501,Debt Mgt-Hire of outside services,14-Oct-11,"1,000.00",,
http://statistics.data.gov.uk/id/local-authority-district/23UB,Cheltenham Borough Council,459956,REDACTED,LOXWOOD WINDOW COMPANY LTD,C-HC4100-C801,Dis.Adapt.HRA-Grants,21-Oct-11,"2,622.00",,
http://statistics.data.gov.uk/id/local-authority-district/23UB,Cheltenham Borough Council,459864,11459,LUBBE & SONS BULBS LTD,C-C22140-3127,Nursery-Materials-Bedding,21-Oct-11,"1,719.58",,
http://statistics.data.gov.uk/id/local-authority-district/23UB,Cheltenham Borough Council,459870,11460,LUBBE & SONS BULBS LTD,C-C22140-3127,Nursery-Materials-Bedding,21-Oct-11,168.50,,
http://statistics.data.gov.uk/id/local-authority-district/23UB,Cheltenham Borough Council,459867,11461,LUBBE & SONS BULBS LTD,C-C22140-3127,Nursery-Materials-Bedding,21-Oct-11,43.20,,
http://statistics.data.gov.uk/id/local-authority-district/23UB,Cheltenham Borough Council,459866,11462,LUBBE & SONS BULBS LTD,C-C22140-3127,Nursery-Materials-Bedding,21-Oct-11,"1,088.00",,
http://statistics.data.gov.uk/id/local-authority-district/23UB,Cheltenham Borough Council,458896,359,M J BURKE,C-H22400-5204,Homelessness-Provision of accommo(B&B),14-Oct-11,309.15,,
http://statistics.data.gov.uk/id/local-authority-district/23UB,Cheltenham Borough Council,458895,358,M J BURKE,C-H22400-5204,Homelessness-Provision of accommo(B&B),14-Oct-11,400.75,,
http://statistics.data.gov.uk/id/local-authority-district/23UB,Cheltenham Borough Council,458894,357,M J BURKE,C-H22400-5204,Homelessness-Provision of accommo(B&B),14-Oct-11,148.85,,
http://statistics.data.gov.uk/id/local-authority-district/23UB,Cheltenham Borough Council,458551,08/09/11,M R CLARKE DUGUID,C-E63100-1101,Cemetery & Crem-General building repairs,07-Oct-11,"1,300.00",,
http://statistics.data.gov.uk/id/local-authority-district/23UB,Cheltenham Borough Council,458551,08/09/11,M R CLARKE DUGUID,C-E63100-1101,Cemetery & Crem-General building repairs,07-Oct-11,300.00,,
http://statistics.data.gov.uk/id/local-authority-district/23UB,Cheltenham Borough Council,458551,08/09/11,M R CLARKE DUGUID,C-N11250-9227,Excluded,07-Oct-11,-140.00,,
http://statistics.data.gov.uk/id/local-authority-district/23UB,Cheltenham Borough Council,459133,REDACTED,MADGE LLOYD & GIBSON,C-H22225-3525,Housing Stndrds-N.A.A. Burials,14-Oct-11,"14,189.63",,
http://statistics.data.gov.uk/id/local-authority-district/23UB,Cheltenham Borough Council,459229,0022,MARK MASTERS,C-L11500-3522,Rec Facilities-Coaching scheme,21-Oct-11,200.00,,
http://statistics.data.gov.uk/id/local-authority-district/23UB,Cheltenham Borough Council,459229,0022,MARK MASTERS,C-L11500-3522,Rec Facilities-Coaching scheme,21-Oct-11,63.00,,
http://statistics.data.gov.uk/id/local-authority-district/23UB,Cheltenham Borough Council,459229,0022,MARK MASTERS,C-L11500-3522,Rec Facilities-Coaching scheme,21-Oct-11,210.00,,
http://statistics.data.gov.uk/id/local-authority-district/23UB,Cheltenham Borough Council,459229,0022,MARK MASTERS,C-L11500-3522,Rec Facilities-Coaching scheme,21-Oct-11,357.00,,
http://statistics.data.gov.uk/id/local-authority-district/23UB,Cheltenham Borough Council,459229,0022,MARK MASTERS,C-L11500-3522,Rec Facilities-Coaching scheme,21-Oct-11,126.00,,
http://statistics.data.gov.uk/id/local-authority-district/23UB,Cheltenham Borough Council,458905,2509,MARK WROOT AGRICULTURAL & GARDENS SERV,C-C22120-1301,Spts/Open Space-Routine grounds maint,14-Oct-11,"1,565.00",,
http://statistics.data.gov.uk/id/local-authority-district/23UB,Cheltenham Borough Council,459511,9030,MASSIE ELECTRICS,C-D13100-1801,Muni Off Blgs-RM-Electrical repairs,21-Oct-11,180.00,,
http://statistics.data.gov.uk/id/local-authority-district/23UB,Cheltenham Borough Council,459509,9029,MASSIE ELECTRICS,C-D13550-1801,Area Off -E.Hse-RM-Electrical repairs,21-Oct-11,71.30,,
http://statistics.data.gov.uk/id/local-authority-district/23UB,Cheltenham Borough Council,459508,9028,MASSIE ELECTRICS,C-D14100-1801,Depot Building-RM-Electrical repairs,21-Oct-11,33.75,,
http://statistics.data.gov.uk/id/local-authority-district/23UB,Cheltenham Borough Council,459510,9027,MASSIE ELECTRICS,C-D30200-1801,Misc Props & Ld-RM-Electrical repairs,21-Oct-11,50.00,,
http://statistics.data.gov.uk/id/local-authority-district/23UB,Cheltenham Borough Council,459721,9031,MASSIE ELECTRICS,C-E21150-1801,Royal Well B/S-RM-Electrical repairs,21-Oct-11,35.00,,
http://statistics.data.gov.uk/id/local-authority-district/23UB,Cheltenham Borough Council,459513,9033,MASSIE ELECTRICS,C-L11500-1801,Rec Facilities-RM-Electrical repairs,21-Oct-11,62.00,,
http://statistics.data.gov.uk/id/local-authority-district/23UB,Cheltenham Borough Council,459512,9032,MASSIE ELECTRICS,C-L41100-1801,AG & M-RM-Electrical repairs,21-Oct-11,56.40,,
http://statistics.data.gov.uk/id/local-authority-district/23UB,Cheltenham Borough Council,459514,9034,MASSIE ELECTRICS,C-L41100-1806,AG & M-RM-Ext. fixtures/fittings,21-Oct-11,68.90,,
http://statistics.data.gov.uk/id/local-authority-district/23UB,Cheltenham Borough Council,459515,9026,MASSIE ELECTRICS,C-L41100-3101,AG & M-Equipment purchases,21-Oct-11,350.00,,
http://statistics.data.gov.uk/id/local-authority-district/23UB,Cheltenham Borough Council,458936,REDACTED,MEARS HOME IMPROVEMENTS LTD,C-HC4100-C801,Dis.Adapt.HRA-Grants,14-Oct-11,604.33,,
http://statistics.data.gov.uk/id/local-authority-district/23UB,Cheltenham Borough Council,458934,REDACTED,MEARS HOME IMPROVEMENTS LTD,C-HC4100-C801,Dis.Adapt.HRA-Grants,14-Oct-11,633.13,,
http://statistics.data.gov.uk/id/local-authority-district/23UB,Cheltenham Borough Council,459969,REDACTED,MEARS HOME IMPROVEMENTS LTD,C-HC7440-C801,DFG.96.Act-Grants,21-Oct-11,"1,880.63",,
http://statistics.data.gov.uk/id/local-authority-district/23UB,Cheltenham Borough Council,460373,REDACTED,MEARS HOME IMPROVEMENTS LTD,C-HC4100-C801,Dis.Adapt.HRA-Grants,28-Oct-11,"2,967.48",,
http://statistics.data.gov.uk/id/local-authority-district/23UB,Cheltenham Borough Council,460359,REDACTED,MEARS HOME IMPROVEMENTS LTD,C-HC7440-C801,DFG.96.Act-Grants,28-Oct-11,990.00,,
http://statistics.data.gov.uk/id/local-authority-district/23UB,Cheltenham Borough Council,460376,REDACTED,MEARS HOME IMPROVEMENTS LTD,C-HC7440-C801,DFG.96.Act-Grants,28-Oct-11,552.25,,
http://statistics.data.gov.uk/id/local-authority-district/23UB,Cheltenham Borough Council,460366,REDACTED,MEARS HOME IMPROVEMENTS LTD,C-HC7440-C801,DFG.96.Act-Grants,28-Oct-11,612.50,,
http://statistics.data.gov.uk/id/local-authority-district/23UB,Cheltenham Borough Council,458928,03011,MG WINDOWS CHELTENHAM LIMITED,C-H44350-1104,Window Repairs-Council House repairs,14-Oct-11,540.00,,
http://statistics.data.gov.uk/id/local-authority-district/23UB,Cheltenham Borough Council,459031,03070,MG WINDOWS CHELTENHAM LIMITED,C-H44350-1104,Window Repairs-Council House repairs,14-Oct-11,29.60,,
http://statistics.data.gov.uk/id/local-authority-district/23UB,Cheltenham Borough Council,459033,03073,MG WINDOWS CHELTENHAM LIMITED,C-H44350-1104,Window Repairs-Council House repairs,14-Oct-11,20.00,,
http://statistics.data.gov.uk/id/local-authority-district/23UB,Cheltenham Borough Council,459035,03072,MG WINDOWS CHELTENHAM LIMITED,C-H44350-1104,Window Repairs-Council House repairs,14-Oct-11,26.61,,
http://statistics.data.gov.uk/id/local-authority-district/23UB,Cheltenham Borough Council,459037,03075,MG WINDOWS CHELTENHAM LIMITED,C-H44350-1104,Window Repairs-Council House repairs,14-Oct-11,35.80,,
http://statistics.data.gov.uk/id/local-authority-district/23UB,Cheltenham Borough Council,459053,03061,MG WINDOWS CHELTENHAM LIMITED,C-H44350-1104,Window Repairs-Council House repairs,14-Oct-11,49.90,,
http://statistics.data.gov.uk/id/local-authority-district/23UB,Cheltenham Borough Council,459052,03051,MG WINDOWS CHELTENHAM LIMITED,C-H44350-1104,Window Repairs-Council House repairs,14-Oct-11,30.00,,
http://statistics.data.gov.uk/id/local-authority-district/23UB,Cheltenham Borough Council,459051,03047,MG WINDOWS CHELTENHAM LIMITED,C-H44350-1104,Window Repairs-Council House repairs,14-Oct-11,48.60,,
http://statistics.data.gov.uk/id/local-authority-district/23UB,Cheltenham Borough Council,459050,03056,MG WINDOWS CHELTENHAM LIMITED,C-H44350-1104,Window Repairs-Council House repairs,14-Oct-11,10.00,,
http://statistics.data.gov.uk/id/local-authority-district/23UB,Cheltenham Borough Council,459049,03055,MG WINDOWS CHELTENHAM LIMITED,C-H44350-1104,Window Repairs-Council House repairs,14-Oct-11,28.99,,
http://statistics.data.gov.uk/id/local-authority-district/23UB,Cheltenham Borough Council,459048,03054,MG WINDOWS CHELTENHAM LIMITED,C-H44350-1104,Window Repairs-Council House repairs,14-Oct-11,50.53,,
http://statistics.data.gov.uk/id/local-authority-district/23UB,Cheltenham Borough Council,459047,03059,MG WINDOWS CHELTENHAM LIMITED,C-H44350-1104,Window Repairs-Council House repairs,14-Oct-11,21.70,,
http://statistics.data.gov.uk/id/local-authority-district/23UB,Cheltenham Borough Council,459046,03049,MG WINDOWS CHELTENHAM LIMITED,C-H44350-1104,Window Repairs-Council House repairs,14-Oct-11,85.70,,
http://statistics.data.gov.uk/id/local-authority-district/23UB,Cheltenham Borough Council,459045,03060,MG WINDOWS CHELTENHAM LIMITED,C-H44350-1104,Window Repairs-Council House repairs,14-Oct-11,23.75,,
http://statistics.data.gov.uk/id/local-authority-district/23UB,Cheltenham Borough Council,459044,03052,MG WINDOWS CHELTENHAM LIMITED,C-H44350-1104,Window Repairs-Council House repairs,14-Oct-11,10.00,,
http://statistics.data.gov.uk/id/local-authority-district/23UB,Cheltenham Borough Council,459043,03053,MG WINDOWS CHELTENHAM LIMITED,C-H44350-1104,Window Repairs-Council House repairs,14-Oct-11,140.41,,
http://statistics.data.gov.uk/id/local-authority-district/23UB,Cheltenham Borough Council,459042,03062,MG WINDOWS CHELTENHAM LIMITED,C-H44350-1104,Window Repairs-Council House repairs,14-Oct-11,2.50,,
http://statistics.data.gov.uk/id/local-authority-district/23UB,Cheltenham Borough Council,459040,03063,MG WINDOWS CHELTENHAM LIMITED,C-H44350-1104,Window Repairs-Council House repairs,14-Oct-11,2.50,,
http://statistics.data.gov.uk/id/local-authority-district/23UB,Cheltenham Borough Council,459039,03068,MG WINDOWS CHELTENHAM LIMITED,C-H44350-1104,Window Repairs-Council House repairs,14-Oct-11,69.00,,
http://statistics.data.gov.uk/id/local-authority-district/23UB,Cheltenham Borough Council,459038,03065,MG WINDOWS CHELTENHAM LIMITED,C-H44350-1104,Window Repairs-Council House repairs,14-Oct-11,103.66,,
http://statistics.data.gov.uk/id/local-authority-district/23UB,Cheltenham Borough Council,459036,03069,MG WINDOWS CHELTENHAM LIMITED,C-H44350-1104,Window Repairs-Council House repairs,14-Oct-11,40.00,,
http://statistics.data.gov.uk/id/local-authority-district/23UB,Cheltenham Borough Council,459034,03071,MG WINDOWS CHELTENHAM LIMITED,C-H44350-1104,Window Repairs-Council House repairs,14-Oct-11,29.60,,
http://statistics.data.gov.uk/id/local-authority-district/23UB,Cheltenham Borough Council,459064,03034,MG WINDOWS CHELTENHAM LIMITED,C-H44350-1104,Window Repairs-Council House repairs,14-Oct-11,28.60,,
http://statistics.data.gov.uk/id/local-authority-district/23UB,Cheltenham Borough Council,459063,03038,MG WINDOWS CHELTENHAM LIMITED,C-H44350-1104,Window Repairs-Council House repairs,14-Oct-11,182.78,,
http://statistics.data.gov.uk/id/local-authority-district/23UB,Cheltenham Borough Council,459062,03039,MG WINDOWS CHELTENHAM LIMITED,C-H44350-1104,Window Repairs-Council House repairs,14-Oct-11,24.00,,
http://statistics.data.gov.uk/id/local-authority-district/23UB,Cheltenham Borough Council,459061,03033,MG WINDOWS CHELTENHAM LIMITED,C-H44350-1104,Window Repairs-Council House repairs,14-Oct-11,24.00,,
http://statistics.data.gov.uk/id/local-authority-district/23UB,Cheltenham Borough Council,459060,03036,MG WINDOWS CHELTENHAM LIMITED,C-H44350-1104,Window Repairs-Council House repairs,14-Oct-11,28.00,,
http://statistics.data.gov.uk/id/local-authority-district/23UB,Cheltenham Borough Council,459059,03037,MG WINDOWS CHELTENHAM LIMITED,C-H44350-1104,Window Repairs-Council House repairs,14-Oct-11,14.00,,
http://statistics.data.gov.uk/id/local-authority-district/23UB,Cheltenham Borough Council,459058,03042,MG WINDOWS CHELTENHAM LIMITED,C-H44350-1104,Window Repairs-Council House repairs,14-Oct-11,56.90,,
http://statistics.data.gov.uk/id/local-authority-district/23UB,Cheltenham Borough Council,459057,03043,MG WINDOWS CHELTENHAM LIMITED,C-H44350-1104,Window Repairs-Council House repairs,14-Oct-11,36.53,,
http://statistics.data.gov.uk/id/local-authority-district/23UB,Cheltenham Borough Council,459056,03044,MG WINDOWS CHELTENHAM LIMITED,C-H44350-1104,Window Repairs-Council House repairs,14-Oct-11,38.46,,
http://statistics.data.gov.uk/id/local-authority-district/23UB,Cheltenham Borough Council,459055,02789,MG WINDOWS CHELTENHAM LIMITED,C-H44350-1104,Window Repairs-Council House repairs,14-Oct-11,100.40,,
http://statistics.data.gov.uk/id/local-authority-district/23UB,Cheltenham Borough Council,459054,03045,MG WINDOWS CHELTENHAM LIMITED,C-H44350-1104,Window Repairs-Council House repairs,14-Oct-11,31.24,,
http://statistics.data.gov.uk/id/local-authority-district/23UB,Cheltenham Borough Council,459032,03074,MG WINDOWS CHELTENHAM LIMITED,C-H44350-1104,Window Repairs-Council House repairs,14-Oct-11,81.32,,
http://statistics.data.gov.uk/id/local-authority-district/23UB,Cheltenham Borough Council,459030,03076,MG WINDOWS CHELTENHAM LIMITED,C-H44350-1104,Window Repairs-Council House repairs,14-Oct-11,38.99,,
http://statistics.data.gov.uk/id/local-authority-district/23UB,Cheltenham Borough Council,459028,03093,MG WINDOWS CHELTENHAM LIMITED,C-H44350-1104,Window Repairs-Council House repairs,14-Oct-11,73.40,,
http://statistics.data.gov.uk/id/local-authority-district/23UB,Cheltenham Borough Council,459029,03077,MG WINDOWS CHELTENHAM LIMITED,C-H44350-1104,Window Repairs-Council House repairs,14-Oct-11,12.50,,
http://statistics.data.gov.uk/id/local-authority-district/23UB,Cheltenham Borough Council,459041,02995,MG WINDOWS CHELTENHAM LIMITED,C-HC4873-C302,Window/Door Ren-Building Contractor,14-Oct-11,670.00,,
http://statistics.data.gov.uk/id/local-authority-district/23UB,Cheltenham Borough Council,459533,03099,MG WINDOWS CHELTENHAM LIMITED,C-H44350-1104,Window Repairs-Council House repairs,21-Oct-11,21.72,,
http://statistics.data.gov.uk/id/local-authority-district/23UB,Cheltenham Borough Council,459538,03048,MG WINDOWS CHELTENHAM LIMITED,C-H44350-1104,Window Repairs-Council House repairs,21-Oct-11,20.00,,
http://statistics.data.gov.uk/id/local-authority-district/23UB,Cheltenham Borough Council,459540,03086,MG WINDOWS CHELTENHAM LIMITED,C-H44350-1104,Window Repairs-Council House repairs,21-Oct-11,33.48,,
http://statistics.data.gov.uk/id/local-authority-district/23UB,Cheltenham Borough Council,459542,03084,MG WINDOWS CHELTENHAM LIMITED,C-H44350-1104,Window Repairs-Council House repairs,21-Oct-11,38.60,,
http://statistics.data.gov.uk/id/local-authority-district/23UB,Cheltenham Borough Council,459557,03132,MG WINDOWS CHELTENHAM LIMITED,C-H44350-1104,Window Repairs-Council House repairs,21-Oct-11,25.80,,
http://statistics.data.gov.uk/id/local-authority-district/23UB,Cheltenham Borough Council,459556,03102,MG WINDOWS CHELTENHAM LIMITED,C-H44350-1104,Window Repairs-Council House repairs,21-Oct-11,32.60,,
http://statistics.data.gov.uk/id/local-authority-district/23UB,Cheltenham Borough Council,459555,03066,MG WINDOWS CHELTENHAM LIMITED,C-H44350-1104,Window Repairs-Council House repairs,21-Oct-11,119.36,,
http://statistics.data.gov.uk/id/local-authority-district/23UB,Cheltenham Borough Council,459554,03103,MG WINDOWS CHELTENHAM LIMITED,C-H44350-1104,Window Repairs-Council House repairs,21-Oct-11,81.89,,
http://statistics.data.gov.uk/id/local-authority-district/23UB,Cheltenham Borough Council,459553,03126,MG WINDOWS CHELTENHAM LIMITED,C-H44350-1104,Window Repairs-Council House repairs,21-Oct-11,26.90,,
http://statistics.data.gov.uk/id/local-authority-district/23UB,Cheltenham Borough Council,459552,03032,MG WINDOWS CHELTENHAM LIMITED,C-H44350-1104,Window Repairs-Council House repairs,21-Oct-11,47.76,,
http://statistics.data.gov.uk/id/local-authority-district/23UB,Cheltenham Borough Council,459551,03130,MG WINDOWS CHELTENHAM LIMITED,C-H44350-1104,Window Repairs-Council House repairs,21-Oct-11,49.08,,
http://statistics.data.gov.uk/id/local-authority-district/23UB,Cheltenham Borough Council,459550,03131,MG WINDOWS CHELTENHAM LIMITED,C-H44350-1104,Window Repairs-Council House repairs,21-Oct-11,47.44,,
http://statistics.data.gov.uk/id/local-authority-district/23UB,Cheltenham Borough Council,459549,03067,MG WINDOWS CHELTENHAM LIMITED,C-H44350-1104,Window Repairs-Council House repairs,21-Oct-11,"5,876.99",,
http://statistics.data.gov.uk/id/local-authority-district/23UB,Cheltenham Borough Council,459548,03050,MG WINDOWS CHELTENHAM LIMITED,C-H44350-1104,Window Repairs-Council House repairs,21-Oct-11,289.40,,
http://statistics.data.gov.uk/id/local-authority-district/23UB,Cheltenham Borough Council,459547,03087,MG WINDOWS CHELTENHAM LIMITED,C-H44350-1104,Window Repairs-Council House repairs,21-Oct-11,41.57,,
http://statistics.data.gov.uk/id/local-authority-district/23UB,Cheltenham Borough Council,459546,03091,MG WINDOWS CHELTENHAM LIMITED,C-H44350-1104,Window Repairs-Council House repairs,21-Oct-11,20.00,,
http://statistics.data.gov.uk/id/local-authority-district/23UB,Cheltenham Borough Council,459545,03096,MG WINDOWS CHELTENHAM LIMITED,C-H44350-1104,Window Repairs-Council House repairs,21-Oct-11,47.22,,
http://statistics.data.gov.uk/id/local-authority-district/23UB,Cheltenham Borough Council,459544,03083,MG WINDOWS CHELTENHAM LIMITED,C-H44350-1104,Window Repairs-Council House repairs,21-Oct-11,30.00,,
http://statistics.data.gov.uk/id/local-authority-district/23UB,Cheltenham Borough Council,459543,03085,MG WINDOWS CHELTENHAM LIMITED,C-H44350-1104,Window Repairs-Council House repairs,21-Oct-11,40.00,,
http://statistics.data.gov.uk/id/local-authority-district/23UB,Cheltenham Borough Council,459566,03127,MG WINDOWS CHELTENHAM LIMITED,C-H44350-1104,Window Repairs-Council House repairs,21-Oct-11,67.20,,
http://statistics.data.gov.uk/id/local-authority-district/23UB,Cheltenham Borough Council,459565,03122,MG WINDOWS CHELTENHAM LIMITED,C-H44350-1104,Window Repairs-Council House repairs,21-Oct-11,82.38,,
http://statistics.data.gov.uk/id/local-authority-district/23UB,Cheltenham Borough Council,459564,03119,MG WINDOWS CHELTENHAM LIMITED,C-H44350-1104,Window Repairs-Council House repairs,21-Oct-11,38.60,,
http://statistics.data.gov.uk/id/local-authority-district/23UB,Cheltenham Borough Council,459563,03121,MG WINDOWS CHELTENHAM LIMITED,C-H44350-1104,Window Repairs-Council House repairs,21-Oct-11,32.23,,
http://statistics.data.gov.uk/id/local-authority-district/23UB,Cheltenham Borough Council,459562,03125,MG WINDOWS CHELTENHAM LIMITED,C-H44350-1104,Window Repairs-Council House repairs,21-Oct-11,90.14,,
http://statistics.data.gov.uk/id/local-authority-district/23UB,Cheltenham Borough Council,459561,03120,MG WINDOWS CHELTENHAM LIMITED,C-H44350-1104,Window Repairs-Council House repairs,21-Oct-11,38.40,,
http://statistics.data.gov.uk/id/local-authority-district/23UB,Cheltenham Borough Council,459560,03095,MG WINDOWS CHELTENHAM LIMITED,C-H44350-1104,Window Repairs-Council House repairs,21-Oct-11,244.67,,
http://statistics.data.gov.uk/id/local-authority-district/23UB,Cheltenham Borough Council,459559,03089,MG WINDOWS CHELTENHAM LIMITED,C-H44350-1104,Window Repairs-Council House repairs,21-Oct-11,96.99,,
http://statistics.data.gov.uk/id/local-authority-district/23UB,Cheltenham Borough Council,459558,03129,MG WINDOWS CHELTENHAM LIMITED,C-H44350-1104,Window Repairs-Council House repairs,21-Oct-11,20.30,,
http://statistics.data.gov.uk/id/local-authority-district/23UB,Cheltenham Borough Council,459575,03109,MG WINDOWS CHELTENHAM LIMITED,C-H44350-1104,Window Repairs-Council House repairs,21-Oct-11,178.86,,
http://statistics.data.gov.uk/id/local-authority-district/23UB,Cheltenham Borough Council,459574,03128,MG WINDOWS CHELTENHAM LIMITED,C-H44350-1104,Window Repairs-Council House repairs,21-Oct-11,48.60,,
http://statistics.data.gov.uk/id/local-authority-district/23UB,Cheltenham Borough Council,459573,03111,MG WINDOWS CHELTENHAM LIMITED,C-H44350-1104,Window Repairs-Council House repairs,21-Oct-11,20.00,,
http://statistics.data.gov.uk/id/local-authority-district/23UB,Cheltenham Borough Council,459572,03123,MG WINDOWS CHELTENHAM LIMITED,C-H44350-1104,Window Repairs-Council House repairs,21-Oct-11,99.58,,
http://statistics.data.gov.uk/id/local-authority-district/23UB,Cheltenham Borough Council,459571,03124,MG WINDOWS CHELTENHAM LIMITED,C-H44350-1104,Window Repairs-Council House repairs,21-Oct-11,119.91,,
http://statistics.data.gov.uk/id/local-authority-district/23UB,Cheltenham Borough Council,459570,03117,MG WINDOWS CHELTENHAM LIMITED,C-H44350-1104,Window Repairs-Council House repairs,21-Oct-11,66.68,,
http://statistics.data.gov.uk/id/local-authority-district/23UB,Cheltenham Borough Council,459569,03118,MG WINDOWS CHELTENHAM LIMITED,C-H44350-1104,Window Repairs-Council House repairs,21-Oct-11,105.70,,
http://statistics.data.gov.uk/id/local-authority-district/23UB,Cheltenham Borough Council,459568,03114,MG WINDOWS CHELTENHAM LIMITED,C-H44350-1104,Window Repairs-Council House repairs,21-Oct-11,39.35,,
http://statistics.data.gov.uk/id/local-authority-district/23UB,Cheltenham Borough Council,459567,03116,MG WINDOWS CHELTENHAM LIMITED,C-H44350-1104,Window Repairs-Council House repairs,21-Oct-11,40.00,,
http://statistics.data.gov.uk/id/local-authority-district/23UB,Cheltenham Borough Council,459389,03035,MG WINDOWS CHELTENHAM LIMITED,C-H44350-1104,Window Repairs-Council House repairs,21-Oct-11,550.00,,
http://statistics.data.gov.uk/id/local-authority-district/23UB,Cheltenham Borough Council,459388,02754,MG WINDOWS CHELTENHAM LIMITED,C-H44350-1104,Window Repairs-Council House repairs,21-Oct-11,373.00,,
http://statistics.data.gov.uk/id/local-authority-district/23UB,Cheltenham Borough Council,459387,03040,MG WINDOWS CHELTENHAM LIMITED,C-H44350-1104,Window Repairs-Council House repairs,21-Oct-11,278.00,,
http://statistics.data.gov.uk/id/local-authority-district/23UB,Cheltenham Borough Council,459386,03080,MG WINDOWS CHELTENHAM LIMITED,C-H44350-1104,Window Repairs-Council House repairs,21-Oct-11,30.91,,
http://statistics.data.gov.uk/id/local-authority-district/23UB,Cheltenham Borough Council,459385,03090,MG WINDOWS CHELTENHAM LIMITED,C-H44350-1104,Window Repairs-Council House repairs,21-Oct-11,45.80,,
http://statistics.data.gov.uk/id/local-authority-district/23UB,Cheltenham Borough Council,459384,03079,MG WINDOWS CHELTENHAM LIMITED,C-H44350-1104,Window Repairs-Council House repairs,21-Oct-11,25.80,,
http://statistics.data.gov.uk/id/local-authority-district/23UB,Cheltenham Borough Council,459383,03078,MG WINDOWS CHELTENHAM LIMITED,C-H44350-1104,Window Repairs-Council House repairs,21-Oct-11,12.50,,
http://statistics.data.gov.uk/id/local-authority-district/23UB,Cheltenham Borough Council,459382,03088,MG WINDOWS CHELTENHAM LIMITED,C-H44350-1104,Window Repairs-Council House repairs,21-Oct-11,35.80,,
http://statistics.data.gov.uk/id/local-authority-district/23UB,Cheltenham Borough Council,459381,03108,MG WINDOWS CHELTENHAM LIMITED,C-H44350-1104,Window Repairs-Council House repairs,21-Oct-11,25.80,,
http://statistics.data.gov.uk/id/local-authority-district/23UB,Cheltenham Borough Council,459380,03106,MG WINDOWS CHELTENHAM LIMITED,C-H44350-1104,Window Repairs-Council House repairs,21-Oct-11,103.90,,
http://statistics.data.gov.uk/id/local-authority-district/23UB,Cheltenham Borough Council,459379,03110,MG WINDOWS CHELTENHAM LIMITED,C-H44350-1104,Window Repairs-Council House repairs,21-Oct-11,45.20,,
http://statistics.data.gov.uk/id/local-authority-district/23UB,Cheltenham Borough Council,459378,03112,MG WINDOWS CHELTENHAM LIMITED,C-H44350-1104,Window Repairs-Council House repairs,21-Oct-11,2.50,,
http://statistics.data.gov.uk/id/local-authority-district/23UB,Cheltenham Borough Council,459377,03107,MG WINDOWS CHELTENHAM LIMITED,C-H44350-1104,Window Repairs-Council House repairs,21-Oct-11,33.55,,
http://statistics.data.gov.uk/id/local-authority-district/23UB,Cheltenham Borough Council,459376,03105,MG WINDOWS CHELTENHAM LIMITED,C-H44350-1104,Window Repairs-Council House repairs,21-Oct-11,20.00,,
http://statistics.data.gov.uk/id/local-authority-district/23UB,Cheltenham Borough Council,459375,03113,MG WINDOWS CHELTENHAM LIMITED,C-H44350-1104,Window Repairs-Council House repairs,21-Oct-11,59.30,,
http://statistics.data.gov.uk/id/local-authority-district/23UB,Cheltenham Borough Council,459374,3058,MG WINDOWS CHELTENHAM LIMITED,C-H44350-1104,Window Repairs-Council House repairs,21-Oct-11,33.95,,
http://statistics.data.gov.uk/id/local-authority-district/23UB,Cheltenham Borough Council,459591,03101,MG WINDOWS CHELTENHAM LIMITED,C-H44350-1104,Window Repairs-Council House repairs,21-Oct-11,28.41,,
http://statistics.data.gov.uk/id/local-authority-district/23UB,Cheltenham Borough Council,459588,03104,MG WINDOWS CHELTENHAM LIMITED,C-H44350-1104,Window Repairs-Council House repairs,21-Oct-11,35.20,,
http://statistics.data.gov.uk/id/local-authority-district/23UB,Cheltenham Borough Council,459583,03092,MG WINDOWS CHELTENHAM LIMITED,C-H44350-1104,Window Repairs-Council House repairs,21-Oct-11,54.29,,
http://statistics.data.gov.uk/id/local-authority-district/23UB,Cheltenham Borough Council,459579,03082,MG WINDOWS CHELTENHAM LIMITED,C-H44350-1104,Window Repairs-Council House repairs,21-Oct-11,64.46,,
http://statistics.data.gov.uk/id/local-authority-district/23UB,Cheltenham Borough Council,459576,03115,MG WINDOWS CHELTENHAM LIMITED,C-H44350-1104,Window Repairs-Council House repairs,21-Oct-11,147.37,,
http://statistics.data.gov.uk/id/local-authority-district/23UB,Cheltenham Borough Council,459541,03081,MG WINDOWS CHELTENHAM LIMITED,C-H44350-1104,Window Repairs-Council House repairs,21-Oct-11,30.00,,
http://statistics.data.gov.uk/id/local-authority-district/23UB,Cheltenham Borough Council,459539,03094,MG WINDOWS CHELTENHAM LIMITED,C-H44350-1104,Window Repairs-Council House repairs,21-Oct-11,20.00,,
http://statistics.data.gov.uk/id/local-authority-district/23UB,Cheltenham Borough Council,459537,03057,MG WINDOWS CHELTENHAM LIMITED,C-H44350-1104,Window Repairs-Council House repairs,21-Oct-11,58.10,,
http://statistics.data.gov.uk/id/local-authority-district/23UB,Cheltenham Borough Council,459534,03100,MG WINDOWS CHELTENHAM LIMITED,C-H44350-1104,Window Repairs-Council House repairs,21-Oct-11,85.70,,
http://statistics.data.gov.uk/id/local-authority-district/23UB,Cheltenham Borough Council,459535,03046,MG WINDOWS CHELTENHAM LIMITED,C-H44350-1104,Window Repairs-Council House repairs,21-Oct-11,20.00,,
http://statistics.data.gov.uk/id/local-authority-district/23UB,Cheltenham Borough Council,459536,03064,MG WINDOWS CHELTENHAM LIMITED,C-H44350-1104,Window Repairs-Council House repairs,21-Oct-11,2.50,,
http://statistics.data.gov.uk/id/local-authority-district/23UB,Cheltenham Borough Council,460385,03149,MG WINDOWS CHELTENHAM LIMITED,C-H44350-1104,Window Repairs-Council House repairs,28-Oct-11,44.08,,
http://statistics.data.gov.uk/id/local-authority-district/23UB,Cheltenham Borough Council,460387,03153,MG WINDOWS CHELTENHAM LIMITED,C-H44350-1104,Window Repairs-Council House repairs,28-Oct-11,252.82,,
http://statistics.data.gov.uk/id/local-authority-district/23UB,Cheltenham Borough Council,460384,03154,MG WINDOWS CHELTENHAM LIMITED,C-H44350-1104,Window Repairs-Council House repairs,28-Oct-11,49.40,,
http://statistics.data.gov.uk/id/local-authority-district/23UB,Cheltenham Borough Council,460383,03147,MG WINDOWS CHELTENHAM LIMITED,C-H44350-1104,Window Repairs-Council House repairs,28-Oct-11,95.04,,
http://statistics.data.gov.uk/id/local-authority-district/23UB,Cheltenham Borough Council,460382,03152,MG WINDOWS CHELTENHAM LIMITED,C-H44350-1104,Window Repairs-Council House repairs,28-Oct-11,28.26,,
http://statistics.data.gov.uk/id/local-authority-district/23UB,Cheltenham Borough Council,460381,03145,MG WINDOWS CHELTENHAM LIMITED,C-H44350-1104,Window Repairs-Council House repairs,28-Oct-11,28.60,,
http://statistics.data.gov.uk/id/local-authority-district/23UB,Cheltenham Borough Council,460380,03146,MG WINDOWS CHELTENHAM LIMITED,C-H44350-1104,Window Repairs-Council House repairs,28-Oct-11,24.55,,
http://statistics.data.gov.uk/id/local-authority-district/23UB,Cheltenham Borough Council,460379,03144,MG WINDOWS CHELTENHAM LIMITED,C-H44350-1104,Window Repairs-Council House repairs,28-Oct-11,101.49,,
http://statistics.data.gov.uk/id/local-authority-district/23UB,Cheltenham Borough Council,460378,03141,MG WINDOWS CHELTENHAM LIMITED,C-H44350-1104,Window Repairs-Council House repairs,28-Oct-11,20.00,,
http://statistics.data.gov.uk/id/local-authority-district/23UB,Cheltenham Borough Council,460374,03143,MG WINDOWS CHELTENHAM LIMITED,C-H44350-1104,Window Repairs-Council House repairs,28-Oct-11,22.25,,
http://statistics.data.gov.uk/id/local-authority-district/23UB,Cheltenham Borough Council,460372,03142,MG WINDOWS CHELTENHAM LIMITED,C-H44350-1104,Window Repairs-Council House repairs,28-Oct-11,20.00,,
http://statistics.data.gov.uk/id/local-authority-district/23UB,Cheltenham Borough Council,460370,03140,MG WINDOWS CHELTENHAM LIMITED,C-H44350-1104,Window Repairs-Council House repairs,28-Oct-11,10.00,,
http://statistics.data.gov.uk/id/local-authority-district/23UB,Cheltenham Borough Council,460368,03148,MG WINDOWS CHELTENHAM LIMITED,C-H44350-1104,Window Repairs-Council House repairs,28-Oct-11,26.74,,
http://statistics.data.gov.uk/id/local-authority-district/23UB,Cheltenham Borough Council,460363,03151,MG WINDOWS CHELTENHAM LIMITED,C-H44350-1104,Window Repairs-Council House repairs,28-Oct-11,18.00,,
http://statistics.data.gov.uk/id/local-authority-district/23UB,Cheltenham Borough Council,460362,03157,MG WINDOWS CHELTENHAM LIMITED,C-H44350-1104,Window Repairs-Council House repairs,28-Oct-11,25.80,,
http://statistics.data.gov.uk/id/local-authority-district/23UB,Cheltenham Borough Council,460358,03156,MG WINDOWS CHELTENHAM LIMITED,C-H44350-1104,Window Repairs-Council House repairs,28-Oct-11,39.60,,
http://statistics.data.gov.uk/id/local-authority-district/23UB,Cheltenham Borough Council,460348,03098,MG WINDOWS CHELTENHAM LIMITED,C-H44350-1104,Window Repairs-Council House repairs,28-Oct-11,40.90,,
http://statistics.data.gov.uk/id/local-authority-district/23UB,Cheltenham Borough Council,460345,03097,MG WINDOWS CHELTENHAM LIMITED,C-H44350-1104,Window Repairs-Council House repairs,28-Oct-11,28.87,,
http://statistics.data.gov.uk/id/local-authority-district/23UB,Cheltenham Borough Council,460386,03150,MG WINDOWS CHELTENHAM LIMITED,C-H44350-1104,Window Repairs-Council House repairs,28-Oct-11,51.48,,
http://statistics.data.gov.uk/id/local-authority-district/23UB,Cheltenham Borough Council,460355,03139,MG WINDOWS CHELTENHAM LIMITED,C-HC4841-C302,Major Voids-Building Contractor,28-Oct-11,947.18,,
http://statistics.data.gov.uk/id/local-authority-district/23UB,Cheltenham Borough Council,460350,03138,MG WINDOWS CHELTENHAM LIMITED,C-HC4841-C302,Major Voids-Building Contractor,28-Oct-11,981.29,,
http://statistics.data.gov.uk/id/local-authority-district/23UB,Cheltenham Borough Council,458629,38431,MHG SUPPLIES LTD,C-L11500-3101,Rec Facilities-Equipment purchases,07-Oct-11,"1,715.00",,
http://statistics.data.gov.uk/id/local-authority-district/23UB,Cheltenham Borough Council,458629,38431,MHG SUPPLIES LTD,C-L11500-3101,Rec Facilities-Equipment purchases,07-Oct-11,14.00,,
http://statistics.data.gov.uk/id/local-authority-district/23UB,Cheltenham Borough Council,458629,38431,MHG SUPPLIES LTD,C-L11500-3101,Rec Facilities-Equipment purchases,07-Oct-11,20.00,,
http://statistics.data.gov.uk/id/local-authority-district/23UB,Cheltenham Borough Council,458809,1000280,MIDLANDS VEHICLE RENTAL LIMITED,C-C24100-2701,Fleet Maint-Hired transport,07-Oct-11,"1,012.50",,
http://statistics.data.gov.uk/id/local-authority-district/23UB,Cheltenham Borough Council,459185,1000281,MIDLANDS VEHICLE RENTAL LIMITED,C-C24100-2701,Fleet Maint-Hired transport,14-Oct-11,"1,125.00",,
http://statistics.data.gov.uk/id/local-authority-district/23UB,Cheltenham Borough Council,460183,094103,MISS DAWN EMBREY,C-H22400-5204,Homelessness-Provision of accommo(B&B),28-Oct-11,"1,126.35",,
http://statistics.data.gov.uk/id/local-authority-district/23UB,Cheltenham Borough Council,459116,16555 16555,REDACTED,C-P12250-9104,Tenants Rent-Refunds,14-Oct-11,"1,059.27",,
http://statistics.data.gov.uk/id/local-authority-district/23UB,Cheltenham Borough Council,459497,5822-90351425,MITIE,C-PM0040-R048,Recreation Cent-Other Internal Improveme,21-Oct-11,640.00,,
http://statistics.data.gov.uk/id/local-authority-district/23UB,Cheltenham Borough Council,459303,GAS AUDITS SEP,MORGAN LAMBERT,C-H46100-1104,Cen.Heat.Serv-Council House repairs,21-Oct-11,704.00,,
http://statistics.data.gov.uk/id/local-authority-district/23UB,Cheltenham Borough Council,458825,IN681210,MORRIS LUBRICANTS,C-C24150-3103,Fleet Managemen-Equipment repairs & main,07-Oct-11,"2,385.00",,
http://statistics.data.gov.uk/id/local-authority-district/23UB,Cheltenham Borough Council,459127,REDACTED,REDACTED,C-B52300-8494,Bldg Control-TBC - BC Fees - Full Plans,21-Oct-11,682.13,,
http://statistics.data.gov.uk/id/local-authority-district/23UB,Cheltenham Borough Council,459120,REDACTED,REDACTED,C-P12250-9104,Tenants Rent-Refunds,21-Oct-11,911.17,,
http://statistics.data.gov.uk/id/local-authority-district/23UB,Cheltenham Borough Council,459953,REDACTED,REDACTED,C-H22400-3828,Homelessness-Prevention Fund,21-Oct-11,595.00,,
http://statistics.data.gov.uk/id/local-authority-district/23UB,Cheltenham Borough Council,458579,CEMETERY GATE,MR JOHN SUREDA,C-E63100-3501,Cemetery & Crem-Hire of outside services,07-Oct-11,780.60,,
http://statistics.data.gov.uk/id/local-authority-district/23UB,Cheltenham Borough Council,460450,BOUNCERS GATE,MR JOHN SUREDA,C-E63100-3501,Cemetery & Crem-Hire of outside services,28-Oct-11,806.62,,
http://statistics.data.gov.uk/id/local-authority-district/23UB,Cheltenham Borough Council,459373,H447521104 L609,MR M J LOVERIDGE,C-H44752-1104,Dis Adapts-Tech-Council House repairs,21-Oct-11,68.00,,
http://statistics.data.gov.uk/id/local-authority-district/23UB,Cheltenham Borough Council,459372,L608,MR M J LOVERIDGE,C-H44752-1104,Dis Adapts-Tech-Council House repairs,21-Oct-11,68.00,,
http://statistics.data.gov.uk/id/local-authority-district/23UB,Cheltenham Borough Council,459365,L599,MR M J LOVERIDGE,C-HC4847-C302,AldridgeCl Roof-Building Contractor,21-Oct-11,107.00,,
http://statistics.data.gov.uk/id/local-authority-district/23UB,Cheltenham Borough Council,459369,L603,MR M J LOVERIDGE,C-HC4847-C302,AldridgeCl Roof-Building Contractor,21-Oct-11,107.00,,
http://statistics.data.gov.uk/id/local-authority-district/23UB,Cheltenham Borough Council,459371,L605,MR M J LOVERIDGE,C-HC4847-C302,AldridgeCl Roof-Building Contractor,21-Oct-11,108.00,,
http://statistics.data.gov.uk/id/local-authority-district/23UB,Cheltenham Borough Council,459370,L604,MR M J LOVERIDGE,C-HC4847-C302,AldridgeCl Roof-Building Contractor,21-Oct-11,107.00,,
http://statistics.data.gov.uk/id/local-authority-district/23UB,Cheltenham Borough Council,459368,l601,MR M J LOVERIDGE,C-HC4847-C302,AldridgeCl Roof-Building Contractor,21-Oct-11,107.00,,
http://statistics.data.gov.uk/id/local-authority-district/23UB,Cheltenham Borough Council,459366,l600,MR M J LOVERIDGE,C-HC4847-C302,AldridgeCl Roof-Building Contractor,21-Oct-11,107.00,,
http://statistics.data.gov.uk/id/local-authority-district/23UB,Cheltenham Borough Council,459367,l602,MR M J LOVERIDGE,C-HC4847-C302,AldridgeCl Roof-Building Contractor,21-Oct-11,107.00,,
http://statistics.data.gov.uk/id/local-authority-district/23UB,Cheltenham Borough Council,460236,REDACTED,REDACTED,C-H22400-3828,Homelessness-Prevention Fund,28-Oct-11,600.00,,
http://statistics.data.gov.uk/id/local-authority-district/23UB,Cheltenham Borough Council,459958,REDACTED,REDACTED,C-P12250-9104,Tenants Rent-Refunds,21-Oct-11,"1,193.20",,
http://statistics.data.gov.uk/id/local-authority-district/23UB,Cheltenham Borough Council,460353,REDACTED,REDACTED,C-B52300-8494,Bldg Control-TBC - BC Fees - Full Plans,28-Oct-11,502.13,,
http://statistics.data.gov.uk/id/local-authority-district/23UB,Cheltenham Borough Council,458580,SETTLEMENT,MRS R CREED T/A HOWLERS COMEDY CLUB,C-N13125-9205,ASH Ledger-Town Hall Invoices Paid,07-Oct-11,-364.32,,
http://statistics.data.gov.uk/id/local-authority-district/23UB,Cheltenham Borough Council,458580,SETTLEMENT,MRS R CREED T/A HOWLERS COMEDY CLUB,C-Z12210-9138,Box Off A/C-TH Hirers Tkt Pd out,07-Oct-11,"1,653.00",,
http://statistics.data.gov.uk/id/local-authority-district/23UB,Cheltenham Borough Council,459952,REDACTED,REDACTED,C-H22400-3828,Homelessness-Prevention Fund,21-Oct-11,595.00,,
http://statistics.data.gov.uk/id/local-authority-district/23UB,Cheltenham Borough Council,460344,REDACTED,REDACTED,C-H22400-3828,Homelessness-Prevention Fund,28-Oct-11,600.00,,
http://statistics.data.gov.uk/id/local-authority-district/23UB,Cheltenham Borough Council,458815,D208,NATIONAL EXPRESS LIMITED,C-Z12310-3941,TIC Agency-Coach Tours - Expenses,07-Oct-11,"1,459.77",,
http://statistics.data.gov.uk/id/local-authority-district/23UB,Cheltenham Borough Council,458817,D208,NATIONAL EXPRESS LIMITED,C-Z12310-3941,TIC Agency-Coach Tours - Expenses,07-Oct-11,-34.56,,
http://statistics.data.gov.uk/id/local-authority-district/23UB,Cheltenham Borough Council,457259,ARCN/00017894,NATIONAL EXPRESS LIMITED,C-Z12310-3943,TIC Agency-National Express Payments,07-Oct-11,-40.36,,
http://statistics.data.gov.uk/id/local-authority-district/23UB,Cheltenham Borough Council,459243,497,NATURE FIRST LIMITED,C-E63100-1305,Cemetery & Crem-Tree surgery,21-Oct-11,850.00,,
http://statistics.data.gov.uk/id/local-authority-district/23UB,Cheltenham Borough Council,459244,498,NATURE FIRST LIMITED,C-E63100-1305,Cemetery & Crem-Tree surgery,21-Oct-11,275.00,,
http://statistics.data.gov.uk/id/local-authority-district/23UB,Cheltenham Borough Council,458794,BREWERY C/P Q2,NFUMIS NO 9 A/C,C-Z13020-4903,Brewery Car Prk-Brewery share of net inc,07-Oct-11,"8,851.50",,
http://statistics.data.gov.uk/id/local-authority-district/23UB,Cheltenham Borough Council,459200,NT499,NICK TURNER PHOTOGRAPHY,C-L31100-3510,TIC-Promotion & Marketing,21-Oct-11,900.00,,
http://statistics.data.gov.uk/id/local-authority-district/23UB,Cheltenham Borough Council,459128,55683678,NORTHCLIFFE MEDIA LTD,C-1T18G1-3510,Tony Hawks-Promotion & Marketing,14-Oct-11,90.83,,
http://statistics.data.gov.uk/id/local-authority-district/23UB,Cheltenham Borough Council,459128,55683678,NORTHCLIFFE MEDIA LTD,C-1T20F1-3510,Eva Cassidy-Promotion & Marketing,14-Oct-11,90.82,,
http://statistics.data.gov.uk/id/local-authority-district/23UB,Cheltenham Borough Council,459128,55683678,NORTHCLIFFE MEDIA LTD,C-1T20G1-3510,60s Gold-Promotion & Marketing,14-Oct-11,90.83,,
http://statistics.data.gov.uk/id/local-authority-district/23UB,Cheltenham Borough Council,459128,55683678,NORTHCLIFFE MEDIA LTD,C-1T23F1-3510,Johnny Cash-Promotion & Marketing,14-Oct-11,90.83,,
http://statistics.data.gov.uk/id/local-authority-district/23UB,Cheltenham Borough Council,459128,55683678,NORTHCLIFFE MEDIA LTD,C-1T28F1-3510,The Manfreds-Promotion & Marketing,14-Oct-11,90.83,,
http://statistics.data.gov.uk/id/local-authority-district/23UB,Cheltenham Borough Council,459128,55683678,NORTHCLIFFE MEDIA LTD,C-1T30F1-3510,Colin Fry-Promotion & Marketing,14-Oct-11,90.83,,
http://statistics.data.gov.uk/id/local-authority-district/23UB,Cheltenham Borough Council,459128,55683678,NORTHCLIFFE MEDIA LTD,C-1T31G1-3510,Steve Hall-Promotion & Marketing,14-Oct-11,90.83,,
http://statistics.data.gov.uk/id/local-authority-district/23UB,Cheltenham Borough Council,459350,7958 36028 20,NPOWER,C-H33700-1402,Estate Services-Electricity,21-Oct-11,"2,303.48",,
http://statistics.data.gov.uk/id/local-authority-district/23UB,Cheltenham Borough Council,460087,2011/138,OAKLEY REGENERATION PARTNERSHIP,C-D37200-3840,Whaddon-Grants - Whaddon R.A.,28-Oct-11,"20,100.00",,
http://statistics.data.gov.uk/id/local-authority-district/23UB,Cheltenham Borough Council,458810,31684,OCONNOR CONSTRUCTION AND  PLANT HIRE,C-C24100-2701,Fleet Maint-Hired transport,07-Oct-11,250.00,,
http://statistics.data.gov.uk/id/local-authority-district/23UB,Cheltenham Borough Council,458811,31714,OCONNOR CONSTRUCTION AND  PLANT HIRE,C-C24100-2701,Fleet Maint-Hired transport,07-Oct-11,250.00,,
http://statistics.data.gov.uk/id/local-authority-district/23UB,Cheltenham Borough Council,459241,851044781,OFFICE DEPOT,C-D11800-3410,IT Services-Stationery & office supps,21-Oct-11,21.50,,
http://statistics.data.gov.uk/id/local-authority-district/23UB,Cheltenham Borough Council,459241,851044781,OFFICE DEPOT,C-D11800-3410,IT Services-Stationery & office supps,21-Oct-11,2.07,,
http://statistics.data.gov.uk/id/local-authority-district/23UB,Cheltenham Borough Council,459241,851044781,OFFICE DEPOT,C-D11830-3410,Corporate Print-Stationery & office supp,21-Oct-11,122.00,,
http://statistics.data.gov.uk/id/local-authority-district/23UB,Cheltenham Borough Council,459241,851044781,OFFICE DEPOT,C-D11830-3410,Corporate Print-Stationery & office supp,21-Oct-11,9.16,,
http://statistics.data.gov.uk/id/local-authority-district/23UB,Cheltenham Borough Council,459241,851044781,OFFICE DEPOT,C-D12300-3410,Personnel and P-Stationery & office supp,21-Oct-11,0.62,,
http://statistics.data.gov.uk/id/local-authority-district/23UB,Cheltenham Borough Council,459241,851044781,OFFICE DEPOT,C-D12300-3410,Personnel and P-Stationery & office supp,21-Oct-11,7.00,,
http://statistics.data.gov.uk/id/local-authority-district/23UB,Cheltenham Borough Council,459241,851044781,OFFICE DEPOT,C-D12300-3410,Personnel and P-Stationery & office supp,21-Oct-11,1.05,,
http://statistics.data.gov.uk/id/local-authority-district/23UB,Cheltenham Borough Council,459241,851044781,OFFICE DEPOT,C-D12300-3410,Personnel and P-Stationery & office supp,21-Oct-11,14.48,,
http://statistics.data.gov.uk/id/local-authority-district/23UB,Cheltenham Borough Council,459241,851044781,OFFICE DEPOT,C-D12300-3410,Personnel and P-Stationery & office supp,21-Oct-11,7.52,,
http://statistics.data.gov.uk/id/local-authority-district/23UB,Cheltenham Borough Council,459241,851044781,OFFICE DEPOT,C-D12300-3410,Personnel and P-Stationery & office supp,21-Oct-11,5.74,,
http://statistics.data.gov.uk/id/local-authority-district/23UB,Cheltenham Borough Council,459241,851044781,OFFICE DEPOT,C-D12300-3410,Personnel and P-Stationery & office supp,21-Oct-11,2.07,,
http://statistics.data.gov.uk/id/local-authority-district/23UB,Cheltenham Borough Council,459241,851044781,OFFICE DEPOT,C-D13100-3410,Muni Off Blgs-Stationery & office supps,21-Oct-11,4.72,,
http://statistics.data.gov.uk/id/local-authority-district/23UB,Cheltenham Borough Council,459241,851044781,OFFICE DEPOT,C-D13100-3410,Muni Off Blgs-Stationery & office supps,21-Oct-11,15.04,,
http://statistics.data.gov.uk/id/local-authority-district/23UB,Cheltenham Borough Council,459241,851044781,OFFICE DEPOT,C-E21400-3410,Shopmobility-Stationery & office supps,21-Oct-11,17.60,,
http://statistics.data.gov.uk/id/local-authority-district/23UB,Cheltenham Borough Council,459927,951218153,OFFICE DEPOT,C-E36200-3410,On-St Car Prkng-Stationery & office supp,21-Oct-11,183.00,,
http://statistics.data.gov.uk/id/local-authority-district/23UB,Cheltenham Borough Council,459241,851044781,OFFICE DEPOT,C-E63100-3410,Cemetery & Crem-Stationery & office supp,21-Oct-11,23.94,,
http://statistics.data.gov.uk/id/local-authority-district/23UB,Cheltenham Borough Council,459241,851044781,OFFICE DEPOT,C-E63100-3410,Cemetery & Crem-Stationery & office supp,21-Oct-11,0.90,,
http://statistics.data.gov.uk/id/local-authority-district/23UB,Cheltenham Borough Council,459241,851044781,OFFICE DEPOT,C-E72500-3410,Built Env Div-Stationery & office supps,21-Oct-11,27.06,,
http://statistics.data.gov.uk/id/local-authority-district/23UB,Cheltenham Borough Council,459928,951211275,OFFICE DEPOT,C-E72500-3410,Built Env Div-Stationery & office supps,21-Oct-11,5.19,,
http://statistics.data.gov.uk/id/local-authority-district/23UB,Cheltenham Borough Council,459241,851044781,OFFICE DEPOT,C-E72500-3410,Built Env Div-Stationery & office supps,21-Oct-11,1.95,,
http://statistics.data.gov.uk/id/local-authority-district/23UB,Cheltenham Borough Council,459241,851044781,OFFICE DEPOT,C-E72500-3410,Built Env Div-Stationery & office supps,21-Oct-11,1.34,,
http://statistics.data.gov.uk/id/local-authority-district/23UB,Cheltenham Borough Council,459241,851044781,OFFICE DEPOT,C-E72500-3410,Built Env Div-Stationery & office supps,21-Oct-11,5.79,,
http://statistics.data.gov.uk/id/local-authority-district/23UB,Cheltenham Borough Council,459241,851044781,OFFICE DEPOT,C-E72500-3410,Built Env Div-Stationery & office supps,21-Oct-11,7.24,,
http://statistics.data.gov.uk/id/local-authority-district/23UB,Cheltenham Borough Council,459241,851044781,OFFICE DEPOT,C-E72500-3410,Built Env Div-Stationery & office supps,21-Oct-11,2.48,,
http://statistics.data.gov.uk/id/local-authority-district/23UB,Cheltenham Borough Council,459241,851044781,OFFICE DEPOT,C-E72500-3410,Built Env Div-Stationery & office supps,21-Oct-11,0.62,,
http://statistics.data.gov.uk/id/local-authority-district/23UB,Cheltenham Borough Council,459240,951037645,OFFICE DEPOT,C-H22600-3410,Community Servs-Stationery & office supp,21-Oct-11,0.35,,
http://statistics.data.gov.uk/id/local-authority-district/23UB,Cheltenham Borough Council,459240,951037645,OFFICE DEPOT,C-H22600-3410,Community Servs-Stationery & office supp,21-Oct-11,11.30,,
http://statistics.data.gov.uk/id/local-authority-district/23UB,Cheltenham Borough Council,459240,951037645,OFFICE DEPOT,C-H22600-3410,Community Servs-Stationery & office supp,21-Oct-11,36.60,,
http://statistics.data.gov.uk/id/local-authority-district/23UB,Cheltenham Borough Council,459240,951037645,OFFICE DEPOT,C-H22600-3410,Community Servs-Stationery & office supp,21-Oct-11,4.28,,
http://statistics.data.gov.uk/id/local-authority-district/23UB,Cheltenham Borough Council,459240,951037645,OFFICE DEPOT,C-H22600-3410,Community Servs-Stationery & office supp,21-Oct-11,1.12,,
http://statistics.data.gov.uk/id/local-authority-district/23UB,Cheltenham Borough Council,459240,951037645,OFFICE DEPOT,C-H22600-3410,Community Servs-Stationery & office supp,21-Oct-11,11.75,,
http://statistics.data.gov.uk/id/local-authority-district/23UB,Cheltenham Borough Council,459910,951115650,OFFICE DEPOT,C-L11500-3410,Rec Facilities-Stationery & office supps,21-Oct-11,10.71,,
http://statistics.data.gov.uk/id/local-authority-district/23UB,Cheltenham Borough Council,459910,951115650,OFFICE DEPOT,C-L11500-3410,Rec Facilities-Stationery & office supps,21-Oct-11,0.80,,
http://statistics.data.gov.uk/id/local-authority-district/23UB,Cheltenham Borough Council,459910,951115650,OFFICE DEPOT,C-L11500-3410,Rec Facilities-Stationery & office supps,21-Oct-11,3.16,,
http://statistics.data.gov.uk/id/local-authority-district/23UB,Cheltenham Borough Council,459910,951115650,OFFICE DEPOT,C-L11500-3410,Rec Facilities-Stationery & office supps,21-Oct-11,0.97,,
http://statistics.data.gov.uk/id/local-authority-district/23UB,Cheltenham Borough Council,459910,951115650,OFFICE DEPOT,C-L11500-3410,Rec Facilities-Stationery & office supps,21-Oct-11,1.95,,
http://statistics.data.gov.uk/id/local-authority-district/23UB,Cheltenham Borough Council,459910,951115650,OFFICE DEPOT,C-L11500-3410,Rec Facilities-Stationery & office supps,21-Oct-11,5.65,,
http://statistics.data.gov.uk/id/local-authority-district/23UB,Cheltenham Borough Council,459910,951115650,OFFICE DEPOT,C-L11500-3410,Rec Facilities-Stationery & office supps,21-Oct-11,2.07,,
http://statistics.data.gov.uk/id/local-authority-district/23UB,Cheltenham Borough Council,459910,951115650,OFFICE DEPOT,C-L11500-3410,Rec Facilities-Stationery & office supps,21-Oct-11,48.80,,
http://statistics.data.gov.uk/id/local-authority-district/23UB,Cheltenham Borough Council,459910,951115650,OFFICE DEPOT,C-L11500-3410,Rec Facilities-Stationery & office supps,21-Oct-11,6.20,,
http://statistics.data.gov.uk/id/local-authority-district/23UB,Cheltenham Borough Council,459910,951115650,OFFICE DEPOT,C-L11500-3410,Rec Facilities-Stationery & office supps,21-Oct-11,5.74,,
http://statistics.data.gov.uk/id/local-authority-district/23UB,Cheltenham Borough Council,459241,851044781,OFFICE DEPOT,C-L41100-3410,AG & M-Stationery & office supps,21-Oct-11,0.90,,
http://statistics.data.gov.uk/id/local-authority-district/23UB,Cheltenham Borough Council,459241,851044781,OFFICE DEPOT,C-L41100-3410,AG & M-Stationery & office supps,21-Oct-11,6.92,,
http://statistics.data.gov.uk/id/local-authority-district/23UB,Cheltenham Borough Council,459892,951200605,OFFICE DEPOT,C-L41100-3410,AG & M-Stationery & office supps,21-Oct-11,0.70,,
http://statistics.data.gov.uk/id/local-authority-district/23UB,Cheltenham Borough Council,459892,951200605,OFFICE DEPOT,C-L41100-3410,AG & M-Stationery & office supps,21-Oct-11,24.40,,
http://statistics.data.gov.uk/id/local-authority-district/23UB,Cheltenham Borough Council,459892,951200605,OFFICE DEPOT,C-L41100-3410,AG & M-Stationery & office supps,21-Oct-11,2.40,,
http://statistics.data.gov.uk/id/local-authority-district/23UB,Cheltenham Borough Council,459892,951200605,OFFICE DEPOT,C-L41100-3410,AG & M-Stationery & office supps,21-Oct-11,3.29,,
http://statistics.data.gov.uk/id/local-authority-district/23UB,Cheltenham Borough Council,459892,951200605,OFFICE DEPOT,C-L41100-3410,AG & M-Stationery & office supps,21-Oct-11,5.26,,
http://statistics.data.gov.uk/id/local-authority-district/23UB,Cheltenham Borough Council,459241,851044781,OFFICE DEPOT,C-L41100-3410,AG & M-Stationery & office supps,21-Oct-11,1.86,,
http://statistics.data.gov.uk/id/local-authority-district/23UB,Cheltenham Borough Council,459241,851044781,OFFICE DEPOT,C-L41100-3410,AG & M-Stationery & office supps,21-Oct-11,1.80,,
http://statistics.data.gov.uk/id/local-authority-district/23UB,Cheltenham Borough Council,459241,851044781,OFFICE DEPOT,C-L41100-3410,AG & M-Stationery & office supps,21-Oct-11,1.80,,
http://statistics.data.gov.uk/id/local-authority-district/23UB,Cheltenham Borough Council,459241,851044781,OFFICE DEPOT,C-L41100-3410,AG & M-Stationery & office supps,21-Oct-11,5.58,,
http://statistics.data.gov.uk/id/local-authority-district/23UB,Cheltenham Borough Council,460161,951299725,OFFICE DEPOT,C-D11100-3410,CEO Management-Stationery & office supps,28-Oct-11,0.58,,
http://statistics.data.gov.uk/id/local-authority-district/23UB,Cheltenham Borough Council,460160,951122174,OFFICE DEPOT,C-D11300-3410,Accountancy-Stationery & office supps,28-Oct-11,6.28,,
http://statistics.data.gov.uk/id/local-authority-district/23UB,Cheltenham Borough Council,460160,951122174,OFFICE DEPOT,C-D11300-3410,Accountancy-Stationery & office supps,28-Oct-11,7.04,,
http://statistics.data.gov.uk/id/local-authority-district/23UB,Cheltenham Borough Council,460160,951122174,OFFICE DEPOT,C-D11400-3410,Audit & Assrnce-Stationery & office supp,28-Oct-11,0.98,,
http://statistics.data.gov.uk/id/local-authority-district/23UB,Cheltenham Borough Council,460160,951122174,OFFICE DEPOT,C-D11700-3410,Pol & Info Mgmt-Stationery & office supp,28-Oct-11,0.22,,
http://statistics.data.gov.uk/id/local-authority-district/23UB,Cheltenham Borough Council,460160,951122174,OFFICE DEPOT,C-D11800-3410,IT Services-Stationery & office supps,28-Oct-11,1.73,,
http://statistics.data.gov.uk/id/local-authority-district/23UB,Cheltenham Borough Council,460160,951122174,OFFICE DEPOT,C-D11800-3410,IT Services-Stationery & office supps,28-Oct-11,0.93,,
http://statistics.data.gov.uk/id/local-authority-district/23UB,Cheltenham Borough Council,460163,951200604,OFFICE DEPOT,C-D11800-3410,IT Services-Stationery & office supps,28-Oct-11,11.76,,
http://statistics.data.gov.uk/id/local-authority-district/23UB,Cheltenham Borough Council,460160,951122174,OFFICE DEPOT,C-D11800-3410,IT Services-Stationery & office supps,28-Oct-11,30.90,,
http://statistics.data.gov.uk/id/local-authority-district/23UB,Cheltenham Borough Council,460160,951122174,OFFICE DEPOT,C-D11800-3410,IT Services-Stationery & office supps,28-Oct-11,7.48,,
http://statistics.data.gov.uk/id/local-authority-district/23UB,Cheltenham Borough Council,460160,951122174,OFFICE DEPOT,C-D11800-3410,IT Services-Stationery & office supps,28-Oct-11,0.45,,
http://statistics.data.gov.uk/id/local-authority-district/23UB,Cheltenham Borough Council,460160,951122174,OFFICE DEPOT,C-D11830-3410,Corporate Print-Stationery & office supp,28-Oct-11,61.00,,
http://statistics.data.gov.uk/id/local-authority-district/23UB,Cheltenham Borough Council,460161,951299725,OFFICE DEPOT,C-D11830-3410,Corporate Print-Stationery & office supp,28-Oct-11,122.00,,
http://statistics.data.gov.uk/id/local-authority-district/23UB,Cheltenham Borough Council,460163,951200604,OFFICE DEPOT,C-D11830-3410,Corporate Print-Stationery & office supp,28-Oct-11,122.00,,
http://statistics.data.gov.uk/id/local-authority-district/23UB,Cheltenham Borough Council,460161,951299725,OFFICE DEPOT,C-D12300-3410,Personnel and P-Stationery & office supp,28-Oct-11,6.68,,
http://statistics.data.gov.uk/id/local-authority-district/23UB,Cheltenham Borough Council,460161,951299725,OFFICE DEPOT,C-D12300-3410,Personnel and P-Stationery & office supp,28-Oct-11,9.64,,
http://statistics.data.gov.uk/id/local-authority-district/23UB,Cheltenham Borough Council,460161,951299725,OFFICE DEPOT,C-D12430-3410,Housing & CT Be-Stationery & office supp,28-Oct-11,14.85,,
http://statistics.data.gov.uk/id/local-authority-district/23UB,Cheltenham Borough Council,460160,951122174,OFFICE DEPOT,C-D12440-3410,Coun Tax overhe-Stationery & office supp,28-Oct-11,1.75,,
http://statistics.data.gov.uk/id/local-authority-district/23UB,Cheltenham Borough Council,460160,951122174,OFFICE DEPOT,C-D12440-3410,Coun Tax overhe-Stationery & office supp,28-Oct-11,1.27,,
http://statistics.data.gov.uk/id/local-authority-district/23UB,Cheltenham Borough Council,460160,951122174,OFFICE DEPOT,C-D13160-3410,Custodians-Muni-Stationery & office supp,28-Oct-11,4.33,,
http://statistics.data.gov.uk/id/local-authority-district/23UB,Cheltenham Borough Council,460160,951122174,OFFICE DEPOT,C-D21100-3205,Dem Process-Committee refreshments,28-Oct-11,7.73,,
http://statistics.data.gov.uk/id/local-authority-district/23UB,Cheltenham Borough Council,460161,951299725,OFFICE DEPOT,C-D21100-3410,Dem Process-Stationery & office supps,28-Oct-11,0.23,,
http://statistics.data.gov.uk/id/local-authority-district/23UB,Cheltenham Borough Council,460161,951299725,OFFICE DEPOT,C-D21100-3410,Dem Process-Stationery & office supps,28-Oct-11,4.91,,
http://statistics.data.gov.uk/id/local-authority-district/23UB,Cheltenham Borough Council,460161,951299725,OFFICE DEPOT,C-D21100-3410,Dem Process-Stationery & office supps,28-Oct-11,3.93,,
http://statistics.data.gov.uk/id/local-authority-district/23UB,Cheltenham Borough Council,460161,951299725,OFFICE DEPOT,C-D21100-3410,Dem Process-Stationery & office supps,28-Oct-11,1.82,,
http://statistics.data.gov.uk/id/local-authority-district/23UB,Cheltenham Borough Council,460161,951299725,OFFICE DEPOT,C-D21100-3410,Dem Process-Stationery & office supps,28-Oct-11,2.79,,
http://statistics.data.gov.uk/id/local-authority-district/23UB,Cheltenham Borough Council,460161,951299725,OFFICE DEPOT,C-D21100-3410,Dem Process-Stationery & office supps,28-Oct-11,0.93,,
http://statistics.data.gov.uk/id/local-authority-district/23UB,Cheltenham Borough Council,460161,951299725,OFFICE DEPOT,C-D21100-3410,Dem Process-Stationery & office supps,28-Oct-11,1.08,,
http://statistics.data.gov.uk/id/local-authority-district/23UB,Cheltenham Borough Council,460163,951200604,OFFICE DEPOT,C-D21400-3410,Electoral Regn-Stationery & office supps,28-Oct-11,10.62,,
